Body Name,Service Area,Expenses type,Invoice Payment Date,Transaction Number,Supplier Name,Net Amount
Manchester City Council,Manchester Leisure,Rents,02-Jan-24,5105908752,Accommodation Links Ltd,89674.57
Manchester City Council,Manchester Leisure,Third party payments relating to Voluntary Organisations,02-Jan-24,5105908755,Albert Kennedy Trust,758.33
Manchester City Council,Adult Social Care,Equipment,02-Jan-24,5105908765,Drive Devilbiss Healthcare Ltd,1560
Manchester City Council,Adult Social Care,Equipment,02-Jan-24,5105908768,Drive Devilbiss Healthcare Ltd,1121
Manchester City Council,Adult Social Care,Payments for services,02-Jan-24,5105908767,FoodSync CIC,3415
Manchester City Council,Adult Social Care,Training and Development,02-Jan-24,1908314163,Gender Intelligence,877.99
Manchester City Council,Adult Social Care,Training and Development,02-Jan-24,1908314164,Gender Intelligence,525.49
Manchester City Council,Housing General Fund,Building Works,02-Jan-24,1908320527,Hoist & Shower Chair Company,1465
Manchester City Council,Housing General Fund,Building Works,02-Jan-24,1908320529,Hoist & Shower Chair Company,2518
Manchester City Council,Adult Social Care,Payments for services,02-Jan-24,5105908766,Kaleidoscope Project,2800
Manchester City Council,Adult Social Care,Payments for services,02-Jan-24,5105908769,Kaleidoscope Project,5600
Manchester City Council,Manchester Leisure,Rents,02-Jan-24,1908320700,Kramer & Company Properties,2891.26
Manchester City Council,Manchester Leisure,Rents,02-Jan-24,1908320701,Kramer & Company Properties,2725.8
Manchester City Council,Childrens & Education Services,Internal Repairs and Maintenance for buildings,02-Jan-24,5105908754,Manchester School Services Limited,3435.19
Manchester City Council,Corporate Services,Transport Taxis,02-Jan-24,1908320671,MANTAX TAXIS - VT,26046.28
Manchester City Council,Corporate Services,Transport Taxis,02-Jan-24,1908320672,MANTAX TAXIS - VT,24693.8
Manchester City Council,Manchester Leisure,Special Event,02-Jan-24,1908320703,Martial Events,5230.72
Manchester City Council,Manchester Leisure,Grant and subscriptions awarded,02-Jan-24,1908320709,North Manchester Community Kindness,600
Manchester City Council,Manchester Leisure,Payments to Contractors,02-Jan-24,5105908757,NSL Ltd,18275.62
Manchester City Council,Adult Social Care,Third party payments relating to Voluntary Organisations,02-Jan-24,5105908759,Places for People Living +,781.25
Manchester City Council,Manchester Leisure,Rents,02-Jan-24,1908320699,Primegold Properties LTD,2000
Manchester City Council,Housing Revenue Account,Council Dwelling Adaptations,02-Jan-24,5105908747,Pts Plumbing Trade Supplies,2132.83
Manchester City Council,Adult Social Care,Professional fees,02-Jan-24,1908308335,Redacted Personal Information,2000
Manchester City Council,Manchester Leisure,Rents,02-Jan-24,1908320698,Redacted Personal Information,5160
Manchester City Council,Manchester Leisure,Rents,02-Jan-24,1908320712,Redacted Personal Information,4770
Manchester City Council,Manchester Leisure,Furniture,02-Jan-24,1908320712,Redacted Personal Information,3600
Manchester City Council,Chief Executives,Legal Fees,02-Jan-24,5105908730,Redacted Personal Information,750
Manchester City Council,Childrens & Education Services,Home Care ,02-Jan-24,1908320707,Redacted Personal Information,609
Manchester City Council,Housing General Fund,Building Works,02-Jan-24,1908308340,Redacted Personal Information,10000
Manchester City Council,Manchester Leisure,Bed & Breakfast Acc,02-Jan-24,5105908726,Redacted Personal Information,-189525
Manchester City Council,Manchester Leisure,Bed & Breakfast Acc,02-Jan-24,5105908727,Redacted Personal Information,189525
Manchester City Council,Childrens & Education Services,Transport Coach Hire,02-Jan-24,1908320687,Redacted Personal Information,630
Manchester City Council,Manchester Leisure,Furniture,02-Jan-24,5105908761,Rtech Group Limited,5320.84
Manchester City Council,Manchester Leisure,Furniture,02-Jan-24,5105908762,Rtech Group Limited,4112.5
Manchester City Council,Manchester Leisure,Rents,02-Jan-24,1908320688,Second Chance Housing,2320
Manchester City Council,Manchester Leisure,Rents,02-Jan-24,1908320688,Second Chance Housing,6720
Manchester City Council,Manchester Leisure,Furniture,02-Jan-24,1908320688,Second Chance Housing,2400
Manchester City Council,Housing General Fund,Building Works,02-Jan-24,1908320525,Stannah Lift Services Ltd,2698
Manchester City Council,Housing General Fund,Building Works,02-Jan-24,1908320528,Stannah Lift Services Ltd,6356
Manchester City Council,Housing General Fund,Building Works,02-Jan-24,1908320530,Stannah Lift Services Ltd,6536
Manchester City Council,Housing General Fund,Building Works,02-Jan-24,1908320531,Stannah Lift Services Ltd,6717
Manchester City Council,Housing General Fund,Building Works,02-Jan-24,1908320526,UPS Building & Maintenance Ltd,11049.88
Manchester City Council,Chief Executives,Building Works,02-Jan-24,1908320689,Vital Energi Solutions Ltd,1920000
Manchester City Council,Adult Social Care,Furniture,02-Jan-24,5105908742,Wythenshawe Community Housing Group,500
Manchester City Council,Adult Social Care,Furniture,02-Jan-24,5105908743,Wythenshawe Community Housing Group,500
Manchester City Council,Adult Social Care,Furniture,02-Jan-24,5105908764,Wythenshawe Community Housing Group,500
Manchester City Council,Chief Executives,Counsel Costs,03-Jan-24,1908318514,18 St John Street Chambers,750
Manchester City Council,Childrens & Education Services,Professional fees,03-Jan-24,5105908782,Action For Children,10500
Manchester City Council,Childrens & Education Services,Professional fees,03-Jan-24,5105908783,Action For Children,10500
Manchester City Council,Chief Executives,Professional fees,03-Jan-24,1908320501,Alpha Biolaboratories Limited,770.25
Manchester City Council,Manchester Leisure,Library Materials Acquisition,03-Jan-24,1908322252,Askews and Holts,563.35
Manchester City Council,Childrens & Education Services,Payments for services,03-Jan-24,5105908852,Care Solutions Recruitment,519.2
Manchester City Council,Childrens & Education Services,Payments for services,03-Jan-24,5105908853,Care Solutions Recruitment,1038.4
Manchester City Council,Chief Executives,Counsel Costs,03-Jan-24,1908318513,Central Chambers,700
Manchester City Council,Manchester Leisure,Cleaning Equipment,03-Jan-24,5105908778,CPD Property Services,795
Manchester City Council,Adult Social Care,Training and Development,03-Jan-24,5105908825,Crisis Prevention Institution,1250
Manchester City Council,Childrens & Education Services,Counsel Costs,03-Jan-24,5105908772,DEANS COURT CHAMBERS,1750
Manchester City Council,Chief Executives,Counsel Costs,03-Jan-24,1908318562,DEANS COURT CHAMBERS,1150
Manchester City Council,Manchester Leisure,Library Materials Acquisition,03-Jan-24,1908322274,Didsbury News Limited,725.4
Manchester City Council,Manchester Leisure,Rents,03-Jan-24,5105908886,Eeven Homes Ltd.,18368.86
Manchester City Council,Manchester Leisure,Library Materials Acquisition,03-Jan-24,1908322266,Experian Limited,1219.92
Manchester City Council,Chief Executives,Professional fees,03-Jan-24,1908318554,Expert Psychology Consultancy Ltd,3088.8
Manchester City Council,Chief Executives,Professional fees,03-Jan-24,1908318559,Expert Psychology Consultancy Ltd,783.11
Manchester City Council,Chief Executives,Professional fees,03-Jan-24,1908318565,Expert Psychology Consultancy Ltd,2340
Manchester City Council,Corporate Services,WPS Awards,03-Jan-24,5105908822,Furniture Resource Centre Ltd,1061.06
Manchester City Council,Corporate Services,Cash Collection,03-Jan-24,1908323997,G4S Cash Solutions (Uk) Ltd,3064.74
Manchester City Council,Regeneration Finance,Off Indmnty Ins Prem,03-Jan-24,1908322290,Gallagher Bassett International Ltd,28000
Manchester City Council,Chief Executives,Professional fees,03-Jan-24,1908318550,Genemed Ltd,1663.25
Manchester City Council,Chief Executives,Advertising,03-Jan-24,5105908804,Global Radio Services Ltd,1991.43
Manchester City Council,Housing Revenue Account,Council Dwelling Adaptations,03-Jan-24,5105908838,GREEN GRANT INSTALLS,27470
Manchester City Council,Manchester Leisure,External repairs and maintenance for buildings,03-Jan-24,5105908881,Groundwork Landscapes Ltd,10500
Manchester City Council,Regeneration Finance,Hire of Premises,03-Jan-24,5105908898,Grove Village Residents association,9750
Manchester City Council,Corporate Services,Works and associated costs for Land and Buildings,03-Jan-24,5105908786,GVA Grimley Ltd,-518.66
Manchester City Council,Manchester Leisure,Catering,03-Jan-24,5105908851,Heart & Parcel,500
Manchester City Council,Manchester Leisure,Hire of Equipment,03-Jan-24,5105908745,Hirequirements Ltd,6062.2
Manchester City Council,Manchester Leisure,Rents,03-Jan-24,5105908865,Home Connections Lettings,1100
Manchester City Council,Corporate Services,I T Provision,03-Jan-24,5105908788,Insight Direct (Uk) Ltd,792
Manchester City Council,Manchester Leisure,Rents,03-Jan-24,5105908847,Intra City Investments,1160
Manchester City Council,Chief Executives,Legal Fees,03-Jan-24,5105908777,Isherwood Legal Limited,1008
Manchester City Council,Childrens & Education Services,Hire of Premises,03-Jan-24,5105908785,King's House Conference (Gtr Mcr),2908.5
Manchester City Council,Corporate Services,Rents,03-Jan-24,1908319869,Knight Frank LLP,1523.74
Manchester City Council,Manchester Leisure,Professional fees,03-Jan-24,5105908779,Locata (Housing Services) Ltd,1000
Manchester City Council,Manchester Leisure,Third party payments relating to Voluntary Organisations,03-Jan-24,5105908844,Locata (Housing Services) Ltd,850
Manchester City Council,Childrens & Education Services,Hire of Premises,03-Jan-24,5105908899,Manchester Vineyard,1306.67
Manchester City Council,Housing Revenue Account,Council Dwelling Adaptations,03-Jan-24,5105908897,Moores Furniture Group Limited,590.23
Manchester City Council,Corporate Services,Surveys Fees other,03-Jan-24,5105908884,OHS Ltd,996
Manchester City Council,Manchester Leisure,Payments to Sub-Contractors,03-Jan-24,5105908799,One Green World,950
Manchester City Council,Regeneration Finance,Training and Development,03-Jan-24,5105908814,Pearson Education Ltd,1012.8
Manchester City Council,Regeneration Finance,Training and Development,03-Jan-24,5105908817,Pearson Education Ltd,506.4
Manchester City Council,Chief Executives,Counsel Costs,03-Jan-24,1908318563,Redacted Personal Information,1156.25
Manchester City Council,Chief Executives,Payments to Sub-Contractors,03-Jan-24,5105908815,Redacted Personal Information,1052.46
Manchester City Council,Chief Executives,Professional fees,03-Jan-24,1908318561,Redacted Personal Information,1176.7
Manchester City Council,Manchester Leisure,Bed & Breakfast Acc,03-Jan-24,5105908896,Redacted Personal Information,5100
Manchester City Council,Manchester Leisure,Bed & Breakfast Acc,03-Jan-24,5105908878,Redacted Personal Information,12190
Manchester City Council,Manchester Leisure,Professional fees,03-Jan-24,5105908797,Redacted Personal Information,1000
Manchester City Council,Chief Executives,Payments to Sub-Contractors,03-Jan-24,5105908808,Redacted Personal Information,696.2
Manchester City Council,Chief Executives,Payments to Sub-Contractors,03-Jan-24,5105908816,Redacted Personal Information,711.98
Manchester City Council,Manchester Leisure,Counsel Costs,03-Jan-24,5105908775,Redacted Personal Information,2150
Manchester City Council,Regeneration Finance,Third party payments relating to Voluntary Organisations,03-Jan-24,5105908781,Sow the City,2622
Manchester City Council,Manchester Leisure,Goods purchased for resale in Council outlets,03-Jan-24,5105908870,Stone Marketing Ltd,1447.44
Manchester City Council,Childrens & Education Services,Payments for services,03-Jan-24,5105908901,Time Specialist Support Ltd,2468
Manchester City Council,Childrens & Education Services,Training and Development,03-Jan-24,5105908876,Tiptoes Child Therapy Services,762
Manchester City Council,Regeneration Finance,Training and Development,03-Jan-24,5105908803,Trinity College London,1472
Manchester City Council,Manchester Leisure,Professional fees,03-Jan-24,5105908885,University Of Manchester,550
Manchester City Council,Manchester Leisure,Library Materials Acquisition,03-Jan-24,1908322261,W.F.Howes Ltd,661.01
Manchester City Council,Manchester Leisure,Special Event,03-Jan-24,1908322296,World Taekwondo,8831.79
Manchester City Council,Adult Social Care,Contract Cleaning External,03-Jan-24,5105908773,YD Healthcare Ltd,1389
Manchester City Council,Manchester Leisure,Bed & Breakfast Acc,04-Jan-24,5105908902,247Hotel.Com,840
Manchester City Council,Manchester Leisure,Rents,04-Jan-24,5105908954,Accommodation Links Ltd,90074.57
Manchester City Council,Adult Social Care,Day Care Payments,04-Jan-24,5105908790,Age Concern Manchester,14165.43
Manchester City Council,Adult Social Care,Day Care Payments,04-Jan-24,5105908831,Age Concern Manchester,10520.49
Manchester City Council,Adult Social Care,Day Care Payments,04-Jan-24,5105908832,Age Concern Manchester,10000
Manchester City Council,Hospitality + Trading Services,Goods purchased for resale in Council outlets,04-Jan-24,5105909028,Albert Jones Memorials,4414.4
Manchester City Council,Manchester Leisure,Goods purchased for resale in Council outlets,04-Jan-24,5105908914,Ark Colour Design Ltd,800
Manchester City Council,Corporate Services,Agency staff provision,04-Jan-24,5105909010,Ashberry Recruitment Ltd,1968.3
Manchester City Council,Manchester Leisure,Refuse Collection,04-Jan-24,5105909109,Biffa Municipal Limited,1397669.24
Manchester City Council,Childrens & Education Services,Transport Coach Hire,04-Jan-24,5105909083,Bolton Mbc,10185
Manchester City Council,Childrens & Education Services,Transport Coach Hire,04-Jan-24,5105909083,Bolton Mbc,6350
Manchester City Council,Manchester Leisure,Grant and subscriptions awarded,04-Jan-24,5105908907,Burnage Good Neighbours,955
Manchester City Council,Manchester Leisure,Goods purchased for resale in Council outlets,04-Jan-24,5105908916,Canns Down Press Ltd,1044.38
Manchester City Council,Regeneration Finance,Professional fees,04-Jan-24,5105908906,CBRE Ltd (Glasgow),16000
Manchester City Council,Chief Executives,Counsel Costs,04-Jan-24,1908324643,Central Chambers,1400
Manchester City Council,Childrens & Education Services,Residential Care Homes Payments,04-Jan-24,5105908958,Central Mcr Uni Hospital t/a,117794.24
Manchester City Council,Hospitality + Trading Services,Agency staff provision,04-Jan-24,1908324626,Central Safety Services Ltd,14364
Manchester City Council,Childrens & Education Services,Professional fees,04-Jan-24,5105908874,Childrens & Families Across Borders,646.67
Manchester City Council,Regeneration Finance,CRB Fees,04-Jan-24,5105908939,Complete Background Screening Ltd,1027
Manchester City Council,Manchester Leisure,Goods purchased for resale in Council outlets,04-Jan-24,5105908913,Cornflower Ltd,1035
Manchester City Council,Chief Executives,Counsel Costs,04-Jan-24,1908322511,DEANS COURT CHAMBERS,750
Manchester City Council,Chief Executives,Counsel Costs,04-Jan-24,1908324006,DEANS COURT CHAMBERS,950
Manchester City Council,Manchester Leisure,Rents,04-Jan-24,5105908903,District Homes Cic,6129.14
Manchester City Council,Adult Social Care,Equipment,04-Jan-24,5105908869,Drive Devilbiss Healthcare Ltd,2691.9
Manchester City Council,Adult Social Care,Equipment,04-Jan-24,5105908887,Drive Devilbiss Healthcare Ltd,1121
Manchester City Council,Adult Social Care,Personal needs of client,04-Jan-24,5105908888,Drive Devilbiss Healthcare Ltd,905
Manchester City Council,Adult Social Care,Equipment,04-Jan-24,5105908867,Drive Devilbiss Sidhil Ltd,5055.94
Manchester City Council,Adult Social Care,Equipment,04-Jan-24,5105908868,Drive Devilbiss Sidhil Ltd,5848
Manchester City Council,Chief Executives,Counsel Costs,04-Jan-24,1908324632,Field Court Chambers,1000
Manchester City Council,Manchester Leisure,Agency staff provision,04-Jan-24,5105908963,GMCA,-23277.63
Manchester City Council,Manchester Leisure,Training and Development,04-Jan-24,1908320504,GovNet Communications,690
Manchester City Council,Adult Social Care,Funeral and coroner related services,04-Jan-24,5105909037,Greater Manchester Funeral Service,705
Manchester City Council,Adult Social Care,Funeral and coroner related services,04-Jan-24,5105909051,Greater Manchester Funeral Service,1632
Manchester City Council,Manchester Leisure,Equipment,04-Jan-24,5105908905,Groundwork Landscapes Ltd,2500
Manchester City Council,Manchester Leisure,Refuse Collection,04-Jan-24,5105908941,GTS Steam Cleaners,588.92
Manchester City Council,Manchester Leisure,Rents,04-Jan-24,5105909092,Housing Social Ltd,4720
Manchester City Council,Adult Social Care,Licences Purchase,04-Jan-24,5105908942,Insight Direct (Uk) Ltd,-547.11
Manchester City Council,Adult Social Care,Licences Purchase,04-Jan-24,5105908943,Insight Direct (Uk) Ltd,501.04
Manchester City Council,Chief Executives,Printing,04-Jan-24,5105909084,Integrity Print Ltd,900
Manchester City Council,Chief Executives,Licences Purchase,04-Jan-24,5105908959,ITS Software Systems Ltd,3750
Manchester City Council,Environment and Operations,Construction Works,04-Jan-24,5105909100,J.Hopkins (Contractors) Ltd.,23514.21
Manchester City Council,Environment and Operations,Construction Works,04-Jan-24,5105909121,J.Hopkins (Contractors) Ltd.,9416.59
Manchester City Council,Environment and Operations,Construction Works,04-Jan-24,5105909122,J.Hopkins (Contractors) Ltd.,5300
Manchester City Council,Environment and Operations,Construction Works,04-Jan-24,5105909123,J.Hopkins (Contractors) Ltd.,2086.75
Manchester City Council,Regeneration Finance,Professional Fees,04-Jan-24,5105909059,Jacobs UK Ltd,505.2
Manchester City Council,Childrens & Education Services,Professional fees,04-Jan-24,5105909015,Jayne O'Grady Education Consultancy,3800
Manchester City Council,Manchester Leisure,Goods purchased for resale in Council outlets,04-Jan-24,5105908923,Jo Lavelle Jewellery,666
Manchester City Council,Chief Executives,Counsel Costs,04-Jan-24,1908324008,Kenworthy's Chambers,850
Manchester City Council,Corporate Services,Rents,04-Jan-24,1908319873,Knight Frank LLP,220382
Manchester City Council,Housing Revenue Account,Council Dwelling Adaptations,04-Jan-24,5105908890,Knowsley Lift Services Limited,18393.2
Manchester City Council,Adult Social Care,Third party payments relating to Voluntary Organisations,04-Jan-24,5105908993,Life By Ringley,3960
Manchester City Council,Adult Social Care,Third party payments relating to Voluntary Organisations,04-Jan-24,5105908994,Life By Ringley,3255
Manchester City Council,Adult Social Care,Third party payments relating to Voluntary Organisations,04-Jan-24,5105908995,Life By Ringley,3255
Manchester City Council,Adult Social Care,Third party payments relating to Voluntary Organisations,04-Jan-24,5105908996,Life By Ringley,3255
Manchester City Council,Manchester Leisure,Grant and subscriptions awarded,04-Jan-24,5105908967,Manchester BME Network,30000
Manchester City Council,Manchester Leisure,Special Event,04-Jan-24,5105908929,Manchester International Roots,1100
Manchester City Council,Manchester Leisure,Special Event,04-Jan-24,5105908952,Manchester International Roots,-1100
Manchester City Council,Manchester Leisure,Special Event,04-Jan-24,5105908953,Manchester International Roots,1000
Manchester City Council,Regeneration Finance,Removal and Storage of Furniture,04-Jan-24,5105909058,Master Moves Ltd,813.87
Manchester City Council,Manchester Leisure,Equipment,04-Jan-24,5105909053,MECALUX UK LTD?,3615.5
Manchester City Council,Corporate Services,Security,04-Jan-24,5105909049,MITIE SECURITY LIMITED,132667.43
Manchester City Council,Corporate Services,Security,04-Jan-24,5105909101,MITIE SECURITY LIMITED,132667.43
Manchester City Council,Corporate Services,Security,04-Jan-24,5105909103,MITIE SECURITY LIMITED,132667.43
Manchester City Council,Corporate Services,Security,04-Jan-24,5105909105,MITIE SECURITY LIMITED,131861.03
Manchester City Council,Corporate Services,Security,04-Jan-24,5105909106,MITIE SECURITY LIMITED,129622.63
Manchester City Council,Corporate Services,Security,04-Jan-24,5105909107,MITIE SECURITY LIMITED,4194.04
Manchester City Council,Corporate Services,Security,04-Jan-24,5105908934,MITIE SECURITY LIMITED,1624.72
Manchester City Council,Corporate Services,Security,04-Jan-24,5105909050,MITIE SECURITY LIMITED,3174.18
Manchester City Council,Corporate Services,Security,04-Jan-24,5105909102,MITIE SECURITY LIMITED,6047.04
Manchester City Council,Corporate Services,Security,04-Jan-24,5105909104,MITIE SECURITY LIMITED,6941.22
Manchester City Council,Manchester Leisure,Cleaning Equipment and Materials,04-Jan-24,5105908830,Moston Janitorial Supplies Ltd,629.62
Manchester City Council,Childrens & Education Services,Transport Coach Hire,04-Jan-24,5105908904,New City Cars Ltd,24178
Manchester City Council,Manchester Leisure,Grant and subscriptions awarded,04-Jan-24,5105908964,North Manchester Community,1500
Manchester City Council,Manchester Leisure,Grant and subscriptions awarded,04-Jan-24,5105908964,North Manchester Community,1500
Manchester City Council,Highways Services,Building Materials for direct delivery,04-Jan-24,5105909036,Northern Marking Limited,907.9
Manchester City Council,Highways Services,Professional fees,04-Jan-24,5105908849,Pell Frischmann Consultants Ltd,6120
Manchester City Council,Chief Executives,Professional fees,04-Jan-24,1908324009,Pickering Psychology Services Ltd,648.07
Manchester City Council,Childrens & Education Services,Grant and subscriptions awarded,04-Jan-24,5105908927,Power 2,139668
Manchester City Council,Housing Revenue Account,Council Dwelling Adaptations,04-Jan-24,5105909095,Procare Shower & Bathroom Centre Lt,599.99
Manchester City Council,Housing Revenue Account,Council Dwelling Adaptations,04-Jan-24,5105909096,Procare Shower & Bathroom Centre Lt,1109.38
Manchester City Council,Housing Revenue Account,Council Dwelling Adaptations,04-Jan-24,5105909098,Procare Shower & Bathroom Centre Lt,3417.95
Manchester City Council,Housing Revenue Account,Council Dwelling Adaptations,04-Jan-24,5105909099,Procare Shower & Bathroom Centre Lt,2275.39
Manchester City Council,Corporate Services,Grant and subscriptions awarded,04-Jan-24,5105908908,Rating Publishing,995
Manchester City Council,Manchester Leisure,General Payments not otherwise categorised,04-Jan-24,1908314979,Redacted Personal Information,514
Manchester City Council,Chief Executives,Counsel Costs,04-Jan-24,1908318549,Redacted Personal Information,850
Manchester City Council,Manchester Leisure,Payments to Sub-Contractors,04-Jan-24,5105909001,Redacted Personal Information,4636.59
Manchester City Council,Manchester Leisure,Bed & Breakfast Acc,04-Jan-24,5105909068,Redacted Personal Information,5700
Manchester City Council,Manchester Leisure,Rents,04-Jan-24,1908325401,Redacted Personal Information,1160
Manchester City Council,Manchester Leisure,Furniture,04-Jan-24,1908325401,Redacted Personal Information,2250
Manchester City Council,Chief Executives,Counsel Costs,04-Jan-24,1908324633,Redacted Personal Information,800
Manchester City Council,Manchester Leisure,Goods purchased for resale in Council outlets,04-Jan-24,5105908915,Redacted Personal Information,992.57
Manchester City Council,Chief Executives,Payments to Sub-Contractors,04-Jan-24,5105908989,Redacted Personal Information,693.3
Manchester City Council,Chief Executives,Payments to Sub-Contractors,04-Jan-24,5105909115,Redacted Personal Information,827.25
Manchester City Council,Childrens & Education Services,Transport Coach Hire,04-Jan-24,5105908882,Redacted Personal Information,2310.56
Manchester City Council,Chief Executives,Payments to Sub-Contractors,04-Jan-24,5105908818,Redacted Personal Information,623.77
Manchester City Council,Chief Executives,Payments to Sub-Contractors,04-Jan-24,5105908979,Redacted Personal Information,682.5
Manchester City Council,Chief Executives,Payments to Sub-Contractors,04-Jan-24,5105909111,Redacted Personal Information,720
Manchester City Council,Housing Revenue Account,Council Dwelling Adaptations,04-Jan-24,5105908955,Rexel UK Ltd,63516.5
Manchester City Council,Housing Revenue Account,Council Dwelling Adaptations,04-Jan-24,5105909020,Rexel UK Ltd,10516.06
Manchester City Council,Housing Revenue Account,Council Dwelling Adaptations,04-Jan-24,5105909031,Rexel UK Ltd,2488.41
Manchester City Council,Housing Revenue Account,Council Dwelling Adaptations,04-Jan-24,5105909032,Rexel UK Ltd,6448.78
Manchester City Council,Housing Revenue Account,Council Dwelling Adaptations,04-Jan-24,5105909033,Rexel UK Ltd,11212.77
Manchester City Council,Housing Revenue Account,Council Dwelling Adaptations,04-Jan-24,5105909039,Rexel UK Ltd,2864.04
Manchester City Council,Manchester Leisure,Third party payments relating to Voluntary Organisations,04-Jan-24,5105907758,Safe Partnership Ltd,502.85
Manchester City Council,Chief Executives,Grant Payments,04-Jan-24,5105909094,SAP UK & Eire User Group,1200
Manchester City Council,Manchester Leisure,Rents,04-Jan-24,5105909035,T15 Consultancy Ltd,4752.21
Manchester City Council,Manchester Leisure,Rents,04-Jan-24,5105909062,T15 Consultancy Ltd,4238.91
Manchester City Council,Manchester Leisure,Furniture,04-Jan-24,5105908999,T15 Consultancy Ltd,5550
Manchester City Council,Hospitality + Trading Services,Compensation Payments,04-Jan-24,1908311940,Thompsons Sol,3132
Manchester City Council,Hospitality + Trading Services,Goods purchased for resale in Council outlets,04-Jan-24,5105909021,Treasured Memories Ltd,839.45
Manchester City Council,Adult Social Care,Personal needs of client,04-Jan-24,5105909048,Tunstall Healthcare (UK) Ltd,15760.36
Manchester City Council,Highways Services,Payments to Sub-Contractors,04-Jan-24,5105909004,Utilities Design & Planning Ltd,2000
Manchester City Council,Environment and Operations,Construction Works,04-Jan-24,5105909006,Wilde Consultants Ltd,4238
Manchester City Council,Environment and Operations,Construction Works,04-Jan-24,5105909007,Wilde Consultants Ltd,4909.5
Manchester City Council,Chief Executives,Counsel Costs,05-Jan-24,1908324711,18 St John Street Chambers,650
Manchester City Council,Childrens & Education Services,Transport Coach Hire,05-Jan-24,5105909164,AA Buses,8445
Manchester City Council,Childrens & Education Services,Supporting People Payments,05-Jan-24,5105909209,Action For Children Services Ltd,99108.25
Manchester City Council,Highways Services,Professional fees,05-Jan-24,1908325900,Adaugeo Solutions Ltd,7002.74
Manchester City Council,Corporate Services,Agency staff provision,05-Jan-24,5105909331,Adecco Uk Ltd,2224.7
Manchester City Council,Adult Social Care,Third party payments relating to Voluntary Organisations,05-Jan-24,5105909327,Afruca,16149
Manchester City Council,Adult Social Care,Equipment,05-Jan-24,5105909145,Aidapt Bathrooms Ltd,3600
Manchester City Council,Adult Social Care,"Consumable items eg Toilet rolls, soap etc",05-Jan-24,5105909043,All 4 Pets Limited,960
Manchester City Council,Chief Executives,Professional Fees,05-Jan-24,5105908931,Arcus Global Limited,5062.5
Manchester City Council,Manchester Leisure,Special Event,05-Jan-24,1908324705,Batala Manchester,750
Manchester City Council,Chief Executives,General Office expenses,05-Jan-24,5105909324,Bennett Workplace Solutions Ltd,927.69
Manchester City Council,Hospitality + Trading Services,Refuse Collection,05-Jan-24,5105909110,Biffa Municipal Limited,118087.86
Manchester City Council,Regeneration Finance,Refuse Collection,05-Jan-24,5105909368,Biffa Municipal Limited,507.2
Manchester City Council,Regeneration Finance,Refuse Collection,05-Jan-24,5105909369,Biffa Municipal Limited,-507.2
Manchester City Council,Adult Social Care,Equipment,05-Jan-24,5105909192,Briggs Equipment UK Limited,629.53
Manchester City Council,Childrens & Education Services,Transport Coach Hire,05-Jan-24,5105909266,Britannia Minibuses Ltd,1870
Manchester City Council,Childrens & Education Services,Transport Coach Hire,05-Jan-24,5105909267,Britannia Minibuses Ltd,2025
Manchester City Council,Childrens & Education Services,Transport Coach Hire,05-Jan-24,5105909268,Britannia Minibuses Ltd,2470
Manchester City Council,Corporate Services,Gas,05-Jan-24,5105909151,Calor Gas Ltd,693
Manchester City Council,Corporate Services,Gas,05-Jan-24,5105909152,Calor Gas Ltd,846
Manchester City Council,Childrens & Education Services,Carer Support Payments ,05-Jan-24,5105909298,Care Solutions Recruitment,10467.6
Manchester City Council,Childrens & Education Services,Carer Support Payments ,05-Jan-24,5105909371,Care Solutions Recruitment,9793.3
Manchester City Council,Adult Social Care,Third party payments to Health Authority,05-Jan-24,5105909176,Central Mcr Uni Hospital t/a,15972.75
Manchester City Council,Housing Revenue Account,Peaks & Plains Mgmt,05-Jan-24,5105909186,Cheshire Peaks & Plains,4401.46
Manchester City Council,Manchester Leisure,Rents,05-Jan-24,5105909198,Cheung Kong Asset Management Ltd,2490
Manchester City Council,Childrens & Education Services,Third party payments relating to Voluntary Organisations,05-Jan-24,5105909336,Citywall,6750
Manchester City Council,Manchester Leisure,Grant and subscriptions awarded,05-Jan-24,5105909277,Connect Futures,9000
Manchester City Council,Manchester Leisure,Grant and subscriptions awarded,05-Jan-24,5105909278,Connect Futures,5000
Manchester City Council,Manchester Leisure,Building Materials for direct delivery,05-Jan-24,5105909093,CPD Property Services,1995
Manchester City Council,Corporate Services,Vehicle Costs,05-Jan-24,1700163867,Cyclescheme Ltd,-990
Manchester City Council,Corporate Services,Vehicle Costs,05-Jan-24,1908325454,Cyclescheme Ltd,1332.5
Manchester City Council,Corporate Services,Vehicle Costs,05-Jan-24,1908325455,Cyclescheme Ltd,8587.49
Manchester City Council,Chief Executives,Legal Fees,05-Jan-24,5105909319,DLA Piper UK LLP,18500
Manchester City Council,Regeneration Finance,Professional fees,05-Jan-24,5105909205,dwconsultancy,4432.52
Manchester City Council,Corporate Services,Licences Purchase,05-Jan-24,5105909229,EPI-USE Labs Ltd,5161.94
Manchester City Council,Manchester Leisure,Special Event,05-Jan-24,5105909132,Fools Paradise,-7134
Manchester City Council,Manchester Leisure,Special Event,05-Jan-24,5105909133,Fools Paradise,7094
Manchester City Council,Corporate Services,WPS Awards,05-Jan-24,5105908729,Furniture Resource Centre Ltd,1102.32
Manchester City Council,Corporate Services,WPS Awards,05-Jan-24,5105909239,Furniture Resource Centre Ltd,587.17
Manchester City Council,Corporate Services,WPS Awards,05-Jan-24,5105909240,Furniture Resource Centre Ltd,634.28
Manchester City Council,Corporate Services,WPS Awards,05-Jan-24,5105909296,Furniture Resource Centre Ltd,1154.04
Manchester City Council,Corporate Services,WPS Awards,05-Jan-24,5105909317,Furniture Resource Centre Ltd,1303.15
Manchester City Council,Corporate Services,WPS Awards,05-Jan-24,5105909372,Furniture Resource Centre Ltd,525.78
Manchester City Council,Corporate Services,WPS Awards,05-Jan-24,5105909374,Furniture Resource Centre Ltd,1010.08
Manchester City Council,Libraries and Theatres,Vehicle Plant Furniture and Equipment,05-Jan-24,5105909340,FusionLX LTD.,581.82
Manchester City Council,Childrens & Education Services,Transport Coach Hire,05-Jan-24,5105908795,Galaxy Transport (Manchester) Ltd,12400
Manchester City Council,Childrens & Education Services,Transport Coach Hire,05-Jan-24,5105909117,Galaxy Transport (Manchester) Ltd,-14880
Manchester City Council,Chief Executives,Counsel Costs,05-Jan-24,1908325426,Garden Court North Chambers,1000
Manchester City Council,Manchester Leisure,Third party payments relating to Voluntary Organisations,05-Jan-24,5105909056,Greater Manchester Mental Health,9061
Manchester City Council,Corporate Services,Gym Membership,05-Jan-24,1908325450,Greenwich Leisure Limited,2592
Manchester City Council,Manchester Leisure,Refuse Collection,05-Jan-24,5105909292,GTS Steam Cleaners,602.17
Manchester City Council,Manchester Leisure,Refuse Collection,05-Jan-24,5105909301,GTS Steam Cleaners,1828.43
Manchester City Council,Manchester Leisure,Refuse Collection,05-Jan-24,5105909302,GTS Steam Cleaners,-1828.43
Manchester City Council,Manchester Leisure,Rents,05-Jan-24,5105909143,Housing Social Ltd,4720
Manchester City Council,Corporate Services,Telecoms Equip,05-Jan-24,5105909112,Insight Direct (Uk) Ltd,3939.6
Manchester City Council,Corporate Services,Telecoms Equip,05-Jan-24,5105909194,Insight Direct (Uk) Ltd,-3939.6
Manchester City Council,Corporate Services,I T Provision,05-Jan-24,5105909169,Iron Mountain,-767.69
Manchester City Council,Corporate Services,I T Provision,05-Jan-24,5105909306,Iron Mountain,563.84
Manchester City Council,Corporate Services,I T Provision,05-Jan-24,5105909307,Iron Mountain,584.6
Manchester City Council,Environment and Operations,Construction Works,05-Jan-24,5105909377,J.Hopkins (Contractors) Ltd.,18214.8
Manchester City Council,Childrens & Education Services,Transport Coach Hire,05-Jan-24,5105909339,JCT Travel Ltd,22550
Manchester City Council,Adult Social Care,Personal needs of client,05-Jan-24,5105909344,Jenx Ltd,573
Manchester City Council,Hospitality + Trading Services,Building Materials for direct delivery,05-Jan-24,5105909300,Killgerm Chemicals Ltd,1400
Manchester City Council,Childrens & Education Services,Day Care Payments,05-Jan-24,5105909280,Little Spuds Day Nursery,580
Manchester City Council,Childrens & Education Services,Day Care Payments,05-Jan-24,5105909303,Little Spuds Day Nursery,522
Manchester City Council,Libraries and Theatres,Works and associated costs for Land and Buildings,05-Jan-24,5105909285,M&G Transport & Technical Services,6002
Manchester City Council,Adult Social Care,Professional fees,05-Jan-24,5105909270,Manchester Action On Street Health,2000
Manchester City Council,Adult Social Care,Third party payments relating to Voluntary Organisations,05-Jan-24,5105909257,Manchester Action On Street Health,16686.08
Manchester City Council,Chief Executives,Third party payments relating to Voluntary Organisations,05-Jan-24,5105909403,Manchester Alliance For,147750
Manchester City Council,Chief Executives,Third party payments relating to Voluntary Organisations,05-Jan-24,5105909404,Manchester Alliance For,-147750
Manchester City Council,Adult Social Care,Equipment,05-Jan-24,5105909382,Mangar International Ltd/Winncare,8400
Manchester City Council,Regeneration Finance,Professional fees,05-Jan-24,5105909226,Migrant Support,58800
Manchester City Council,Manchester Leisure,Rents,05-Jan-24,5105909223,MJ Rental Ltd,95943.76
Manchester City Council,Childrens & Education Services,Transport Coach Hire,05-Jan-24,5105909305,New City Cars Ltd,18024
Manchester City Council,Corporate Services,Elec Car L-VAT contr,05-Jan-24,1908325445,Northumbria Healthcare NHS FT,1206.82
Manchester City Council,Corporate Services,Elec Car L-VAT contr,05-Jan-24,1908325448,Northumbria Healthcare NHS FT,6758.36
Manchester City Council,Corporate Services,Elec Car Lease,05-Jan-24,1908325445,Northumbria Healthcare NHS FT,13830.6
Manchester City Council,Corporate Services,Elec Car Lease,05-Jan-24,1908325448,Northumbria Healthcare NHS FT,76464.11
Manchester City Council,Manchester Leisure,Grant and subscriptions awarded,05-Jan-24,5105909187,On The Out CIC,20985.58
Manchester City Council,Manchester Leisure,Grant and subscriptions awarded,05-Jan-24,5105909189,On The Out CIC,2147.58
Manchester City Council,Manchester Leisure,Grant and subscriptions awarded,05-Jan-24,5105909190,On The Out CIC,3113.6
Manchester City Council,Childrens & Education Services,Grant Payments,05-Jan-24,1908325449,Paypoint,9611.6
Manchester City Council,Childrens & Education Services,Grant Payments,05-Jan-24,1908325451,Paypoint,6576.6
Manchester City Council,Manchester Leisure,Grant and subscriptions awarded,05-Jan-24,5105909318,Rainbow Surprise,1000
Manchester City Council,Manchester Leisure,Refuse Collection,05-Jan-24,5105908875,Ramora Ltd,13060
Manchester City Council,Childrens & Education Services,PNOR-Other Amenities,05-Jan-24,1908325890,Redacted Personal Information,500
Manchester City Council,Regeneration Finance,External repairs and maintenance for buildings,05-Jan-24,5105909208,Redacted Personal Information,3284.91
Manchester City Council,Corporate Services,Professional Fees,05-Jan-24,1908320670,Redacted Personal Information,750
Manchester City Council,Corporate Services,Rent Rebates,05-Jan-24,1908325894,Redacted Personal Information,639.98
Manchester City Council,Chief Executives,Signers/Interpreters,05-Jan-24,5105909119,Redacted Personal Information,714.75
Manchester City Council,Chief Executives,Counsel Costs,05-Jan-24,5105909184,Redacted Personal Information,1350
Manchester City Council,Chief Executives,Counsel Costs,05-Jan-24,5105909185,Redacted Personal Information,1900
Manchester City Council,Childrens & Education Services,Payments for services,05-Jan-24,5105908856,Redacted Personal Information,576
Manchester City Council,Chief Executives,Counsel Costs,05-Jan-24,1908324709,Redacted Personal Information,781.25
Manchester City Council,Manchester Leisure,Bed & Breakfast Acc,05-Jan-24,5105909349,Redacted Personal Information,1470
Manchester City Council,Childrens & Education Services,Transport Coach Hire,05-Jan-24,5105908801,RK Travel Ltd,2100
Manchester City Council,Childrens & Education Services,Payments for services,05-Jan-24,5105909269,Seashell trust,529.38
Manchester City Council,Manchester Leisure,Grant and subscriptions awarded,05-Jan-24,5105909275,Small Steps Consultants,3000
Manchester City Council,Manchester Leisure,Hire of Equipment,05-Jan-24,1908324637,Smart Office Systems Ltd,1190
Manchester City Council,Childrens & Education Services,Carer Support Payments ,05-Jan-24,5105909181,Staff Resources Ltd,36847.54
Manchester City Council,Corporate Services,Travel Season TLS,05-Jan-24,5105909154,Stagecoach Manchester,670
Manchester City Council,Corporate Services,Travel Season TLS,05-Jan-24,5105909155,Stagecoach Manchester,670
Manchester City Council,Corporate Services,Travel Season TLS,05-Jan-24,5105909157,Stagecoach Manchester,670
Manchester City Council,Corporate Services,Travel Season TLS,05-Jan-24,5105909159,Stagecoach Manchester,670
Manchester City Council,Corporate Services,Travel Season TLS,05-Jan-24,5105909160,Stagecoach Manchester,670
Manchester City Council,Corporate Services,Travel Season TLS,05-Jan-24,5105909163,Stagecoach Manchester,670
Manchester City Council,Hospitality + Trading Services,Vehicle Fuel Costs,05-Jan-24,5105907756,Standard Fuels Oils,14935.42
Manchester City Council,Hospitality + Trading Services,Vehicle Fuel Costs,05-Jan-24,5105909365,Standard Fuels Oils,-14935.42
Manchester City Council,Hospitality + Trading Services,Vehicle Fuel Costs,05-Jan-24,5105909366,Standard Fuels Oils,14935.42
Manchester City Council,Highways Services,Building Materials for direct delivery,05-Jan-24,5105909282,STANDARD SIGNS & TRAFFIC SYSTEMS,1837.5
Manchester City Council,Manchester Leisure,Third party payments relating to Voluntary Organisations,05-Jan-24,5105909183,Stepping Stone Projects,53023
Manchester City Council,Adult Social Care,Building Works,05-Jan-24,5105909182,Stepping Stone Projects,43228
Manchester City Council,Chief Executives,Printing,05-Jan-24,5105909076,Sterling Event Group,14994.66
Manchester City Council,Corporate Services,Water - Metered,05-Jan-24,5105909337,Suez Recycling and,1689.09
Manchester City Council,Manchester Leisure,ICT Sup & Maintnance,05-Jan-24,5105909291,TELEF�NICA TECH NI LTD,16469.79
Manchester City Council,Chief Executives,Third party payments relating to Voluntary Organisations,05-Jan-24,5105909204,The Bridgewater Hall,84245.25
Manchester City Council,Manchester Leisure,Third party payments relating to Voluntary Organisations,05-Jan-24,5105909087,The Depaul Trust,10603.5
Manchester City Council,Adult Social Care,Personal needs of client,05-Jan-24,5105909250,Tunstall Healthcare (UK) Ltd,8940
Manchester City Council,Adult Social Care,Personal needs of client,05-Jan-24,5105909281,Tunstall Healthcare (UK) Ltd,750
Manchester City Council,Adult Social Care,Personal needs of client,05-Jan-24,5105909284,Tunstall Healthcare (UK) Ltd,6186
Manchester City Council,Adult Social Care,Personal needs of client,05-Jan-24,5105909287,Tunstall Healthcare (UK) Ltd,6750
Manchester City Council,Chief Executives,Licences Purchase,05-Jan-24,5105909199,Verint Systems UK Ltd,9068.02
Manchester City Council,Manchester Leisure,Special Event,05-Jan-24,5105909193,Walk The Plank Ltd,5897.2
Manchester City Council,Chief Executives,Catering,05-Jan-24,5105909261,Wardley t/a HOME Cafe Bar,567.24
Manchester City Council,Chief Executives,Legal Fees,05-Jan-24,1908318547,Weightmans LLP Solicitors,1584.5
Manchester City Council,Chief Executives,Postage,05-Jan-24,5105909376,Whistl North Ltd,10004.46
Manchester City Council,Manchester Leisure,Grant and subscriptions awarded,05-Jan-24,5105909227,Wythenshawe Community Housing Group,50186
Manchester City Council,Hospitality + Trading Services,Insurance,05-Jan-24,1908325439,Zurich Municipal,4615
Manchester City Council,Hospitality + Trading Services,Bank Interest Rec'd,05-Jan-24,1908325439,Zurich Municipal,-895.93
Manchester City Council,Chief Executives,Counsel Costs,08-Jan-24,1908325837,18 St John Street Chambers,650
Manchester City Council,Chief Executives,Counsel Costs,08-Jan-24,1908325839,18 St John Street Chambers,1125
Manchester City Council,Chief Executives,Counsel Costs,08-Jan-24,1908325876,18 St John Street Chambers,1250
Manchester City Council,Chief Executives,Counsel Costs,08-Jan-24,1908325879,18 St John Street Chambers,650
Manchester City Council,Adult Social Care,Legal Fees,08-Jan-24,5105909126,39 Essex Street Chambers,650
Manchester City Council,Adult Social Care,Third party payments relating to Voluntary Organisations,08-Jan-24,5105908833,Age Concern Manchester,14500
Manchester City Council,Adult Social Care,Third party payments relating to Voluntary Organisations,08-Jan-24,5105908834,Age Concern Manchester,7500
Manchester City Council,Childrens & Education Services,Grant and subscriptions awarded,08-Jan-24,5105909553,Aim4 Hope CIC,10000
Manchester City Council,Manchester Leisure,Compensation Payments,08-Jan-24,1908325861,Antony Hodari Holding Ltd,3250
Manchester City Council,Adult Social Care,Personal needs of client,08-Jan-24,5105909514,Anywhere Care Ltd,4650
Manchester City Council,Corporate Services,Works and associated costs for Land and Buildings,08-Jan-24,5105909180,Apex Self Storage Ltd,1490.75
Manchester City Council,Manchester Leisure,Professional fees,08-Jan-24,5105909725,Arco Group Ltd,758.78
Manchester City Council,Hospitality + Trading Services,Funeral and coroner related services,08-Jan-24,5105909876,Arco Group Ltd,863.48
Manchester City Council,Corporate Services,Radio Charges,08-Jan-24,5105909531,AVOIRA Limited,1185
Manchester City Council,Manchester Leisure,Rents,08-Jan-24,5105909390,B & A Properties,43744
Manchester City Council,Manchester Leisure,Payments to Contractors,08-Jan-24,5105909108,Biffa Municipal Limited,214658.77
Manchester City Council,Manchester Leisure,Compensation Payments,08-Jan-24,1908325870,Bond Turner Solicitors,1175.07
Manchester City Council,Childrens & Education Services,Training and Development,08-Jan-24,1908326731,Cambridge University Press,2050
Manchester City Council,Adult Social Care,Payments for services,08-Jan-24,5105909537,Care Concepts Ltd,9953.15
Manchester City Council,Adult Social Care,Payments for services,08-Jan-24,5105909538,Care Concepts Ltd,-9953.15
Manchester City Council,Adult Social Care,Payments for services,08-Jan-24,5105909539,Care Concepts Ltd,9899.78
Manchester City Council,Childrens & Education Services,Carer Support Payments ,08-Jan-24,5105909407,Care Solutions Recruitment,9793.3
Manchester City Council,Childrens & Education Services,Professional fees,08-Jan-24,5105909520,Career Connect,4999
Manchester City Council,Chief Executives,Counsel Costs,08-Jan-24,1908325836,Central Chambers,600
Manchester City Council,Chief Executives,Counsel Costs,08-Jan-24,1908325840,Central Chambers,750
Manchester City Council,Chief Executives,Counsel Costs,08-Jan-24,1908325878,Central Chambers,750
Manchester City Council,Chief Executives,Counsel Costs,08-Jan-24,1908325887,Central Chambers,900
Manchester City Council,Chief Executives,Counsel Costs,08-Jan-24,1908325889,Central Chambers,700
Manchester City Council,Childrens & Education Services,Third party payments relating to Voluntary Organisations,08-Jan-24,5105909387,Central Mcr Uni Hospital t/a,9166.67
Manchester City Council,Chief Executives,Printing,08-Jan-24,5105909333,Chapel Press Ltd,1670
Manchester City Council,Chief Executives,Printing,08-Jan-24,5105909335,Chapel Press Ltd,779
Manchester City Council,Regeneration Finance,I T Provision,08-Jan-24,5105909406,Cornerstone Design and Marketing,-11225
Manchester City Council,Highways Services,Legal Fees,08-Jan-24,1908324003,Department For Work & Pensions,725
Manchester City Council,Childrens & Education Services,Other Insurance,08-Jan-24,5105909482,Diocese of Salford,2632.5
Manchester City Council,Manchester Leisure,Third party payments relating to Voluntary Organisations,08-Jan-24,5105909200,DISC Ltd,5545
Manchester City Council,Manchester Leisure,Third party payments relating to Voluntary Organisations,08-Jan-24,5105909211,DISC Ltd,6666
Manchester City Council,Manchester Leisure,Third party payments relating to Voluntary Organisations,08-Jan-24,5105909212,DISC Ltd,14495.87
Manchester City Council,Manchester Leisure,Third party payments relating to Voluntary Organisations,08-Jan-24,5105909213,DISC Ltd,18099.5
Manchester City Council,Manchester Leisure,Third party payments relating to Voluntary Organisations,08-Jan-24,5105909214,DISC Ltd,14033.16
Manchester City Council,Manchester Leisure,Third party payments relating to Voluntary Organisations,08-Jan-24,5105909215,DISC Ltd,5545
Manchester City Council,Manchester Leisure,Third party payments relating to Voluntary Organisations,08-Jan-24,5105909216,DISC Ltd,6666
Manchester City Council,Manchester Leisure,Third party payments relating to Voluntary Organisations,08-Jan-24,5105909217,DISC Ltd,14495.87
Manchester City Council,Manchester Leisure,Third party payments relating to Voluntary Organisations,08-Jan-24,5105909218,DISC Ltd,18099.5
Manchester City Council,Manchester Leisure,Third party payments relating to Voluntary Organisations,08-Jan-24,5105909219,DISC Ltd,14033.16
Manchester City Council,Adult Social Care,Equipment,08-Jan-24,5105909441,Drive Devilbiss Healthcare Ltd,2691.9
Manchester City Council,Adult Social Care,Equipment,08-Jan-24,5105909442,Drive Devilbiss Healthcare Ltd,2124
Manchester City Council,Adult Social Care,Equipment,08-Jan-24,5105909444,Drive Devilbiss Healthcare Ltd,5380
Manchester City Council,Childrens & Education Services,Grant and subscriptions awarded,08-Jan-24,5105909556,Ethnic Health Forum,9867
Manchester City Council,Manchester Leisure,Compensation Payments,08-Jan-24,1908325864,First Dispute Management,1255
Manchester City Council,Childrens & Education Services,Grant and subscriptions awarded,08-Jan-24,5105909555,Focus and Fly CIC,10000
Manchester City Council,Chief Executives,Floral Decorations,08-Jan-24,5105909558,Frog Flowers,1177
Manchester City Council,Corporate Services,WPS Awards,08-Jan-24,5105909512,Furniture Resource Centre Ltd,807.83
Manchester City Council,Manchester Leisure,Equipment,08-Jan-24,5105909168,GB Sport & Leisure UK Ltd,1019
Manchester City Council,Manchester Leisure,Training and Development,08-Jan-24,5105909447,Gender intelligence,899.39
Manchester City Council,Manchester Leisure,Rents,08-Jan-24,1908326733,Glenthorpe Homes,3580
Manchester City Council,Chief Executives,AGMA Contributions,08-Jan-24,5105909474,GMCA,5206
Manchester City Council,Chief Executives,Grant Payments,08-Jan-24,5105909413,GMPA,4000
Manchester City Council,Childrens & Education Services,Grant and subscriptions awarded,08-Jan-24,5105909530,Gorton Imagination Library,8150
Manchester City Council,Corporate Services,Grant and subscriptions awarded,08-Jan-24,1908324642,Greater Manchester Somali,750
Manchester City Council,Manchester Leisure,Rents,08-Jan-24,5105909128,Grovewell Properties LTD,1000
Manchester City Council,Childrens & Education Services,Grant and subscriptions awarded,08-Jan-24,5105909551,Hopewell,10000
Manchester City Council,Adult Social Care,Personal needs of client,08-Jan-24,5105909144,Independence Mobility Limited,2815
Manchester City Council,Manchester Leisure,Professional Fees,08-Jan-24,5105909127,Inforhousing,1200
Manchester City Council,Corporate Services,Licences Purchase,08-Jan-24,5105909499,Insight Direct (Uk) Ltd,4075.04
Manchester City Council,Regeneration Finance,I T Provision,08-Jan-24,5105909175,Insight Direct (Uk) Ltd,5129.7
Manchester City Council,Childrens & Education Services,Grant and subscriptions awarded,08-Jan-24,5105909552,Intergenerational Music Making CIC,8000
Manchester City Council,Adult Social Care,Equipment,08-Jan-24,5105909383,Invacare Limited,3600
Manchester City Council,Adult Social Care,Equipment,08-Jan-24,5105909384,Invacare Limited,3600
Manchester City Council,Adult Social Care,Equipment,08-Jan-24,5105909385,Invacare Limited,1716
Manchester City Council,Childrens & Education Services,Payments for services,08-Jan-24,5105909400,Jump Space Ltd,1975.38
Manchester City Council,Childrens & Education Services,Payments for services,08-Jan-24,5105909411,Jump Space Ltd,1616.22
Manchester City Council,Manchester Leisure,Rents,08-Jan-24,5105909463,Kaasuu Properties,3520
Manchester City Council,Childrens & Education Services,Grant and subscriptions awarded,08-Jan-24,5105909529,Karma Kids,10000
Manchester City Council,Childrens & Education Services,Third party payments relating to Voluntary Organisations,08-Jan-24,5105909431,Key Creative Psychotherapy Services,2100
Manchester City Council,Manchester Leisure,Rents,08-Jan-24,1908326734,Let Me Manchester Limited,1895
Manchester City Council,Manchester Leisure,Grant and subscriptions awarded,08-Jan-24,5105909414,Lidgate Grove Res Assoc,995
Manchester City Council,Manchester Leisure,Hire of Equipment,08-Jan-24,5105909273,Lightmedia Displays Ltd,3300
Manchester City Council,Adult Social Care,Legal Fees,08-Jan-24,5105909559,Lincoln House Chambers,1000
Manchester City Council,Chief Executives,Printing,08-Jan-24,5105909419,Mail Solutions,1897
Manchester City Council,Manchester Leisure,Grant and subscriptions awarded,08-Jan-24,5105909259,Manchester Action On Street Health,11098.34
Manchester City Council,Manchester Leisure,Third party payments relating to Voluntary Organisations,08-Jan-24,5105909258,Manchester Action On Street Health,3294.08
Manchester City Council,Chief Executives,Third party payments relating to Voluntary Organisations,08-Jan-24,5105909405,Manchester Alliance For,147750
Manchester City Council,Chief Executives,Signers/Interpreters,08-Jan-24,5105909465,MANCHESTER INTERPRETING &,605
Manchester City Council,Childrens & Education Services,Hire of Premises,08-Jan-24,5105909430,Manchester Vineyard,980
Manchester City Council,Corporate Services,Grant and subscriptions awarded,08-Jan-24,1908324644,Merseybank Garden Group,520
Manchester City Council,Manchester Leisure,Special Event,08-Jan-24,5105909464,Metrolink Limited,990
Manchester City Council,Manchester Leisure,Rents,08-Jan-24,5105909409,MJ Rental Ltd,3337.14
Manchester City Council,Manchester Leisure,Rents,08-Jan-24,5105909528,Momo Properties LTD,1490
Manchester City Council,Childrens & Education Services,Grant and subscriptions awarded,08-Jan-24,5105909557,North Manchester Community,10000
Manchester City Council,Manchester Leisure,Special Event,08-Jan-24,5105909309,Novum Audio Visual Limited,30000
Manchester City Council,Regeneration Finance,Storage Costs,08-Jan-24,5105909396,Oasis UK formerly Box-It (NW),534.2
Manchester City Council,Manchester Leisure,Payments to Sub-Contractors,08-Jan-24,5105909125,One Green World,800
Manchester City Council,Manchester Leisure,Compensation Payments,08-Jan-24,1908325867,Peasegoods,2900
Manchester City Council,Chief Executives,Equipment,08-Jan-24,5105909454,Quadient UK Ltd (Consumables),4064.93
Manchester City Council,Chief Executives,Stationery,08-Jan-24,5105909481,Quadient UK Ltd (Consumables),999.9
Manchester City Council,Highways Services,Catering,08-Jan-24,5105909380,Quaker Trading Ltd,944.67
Manchester City Council,Chief Executives,Professional fees,08-Jan-24,1908325921,Redacted Personal Information,1198.02
Manchester City Council,Manchester Leisure,Professional fees,08-Jan-24,5105909434,Redacted Personal Information,1521.3
Manchester City Council,Manchester Leisure,Professional fees,08-Jan-24,1908325909,Redacted Personal Information,1800
Manchester City Council,Chief Executives,Counsel Costs,08-Jan-24,1908325438,Redacted Personal Information,3000
Manchester City Council,Chief Executives,Counsel Costs,08-Jan-24,1908325923,Redacted Personal Information,783.33
Manchester City Council,Manchester Leisure,Bed & Breakfast Acc,08-Jan-24,5105909461,Redacted Personal Information,12586
Manchester City Council,Manchester Leisure,Rents,08-Jan-24,5105909511,Redacted Personal Information,2140
Manchester City Council,Chief Executives,Counsel Costs,08-Jan-24,1908325842,Redacted Personal Information,593.75
Manchester City Council,Chief Executives,Counsel Costs,08-Jan-24,1908325875,Redacted Personal Information,666.67
Manchester City Council,Highways Services,Compensation Payments,08-Jan-24,1908325865,Redacted Personal Information,1600
Manchester City Council,Manchester Leisure,Rents,08-Jan-24,5105909460,Redacted Personal Information,2490
Manchester City Council,Chief Executives,Payments to Sub-Contractors,08-Jan-24,5105909571,Redacted Personal Information,580.77
Manchester City Council,Manchester Leisure,Professional fees,08-Jan-24,5105909479,Redacted Personal Information,500
Manchester City Council,Chief Executives,Counsel Costs,08-Jan-24,1908325906,Redacted Personal Information,850
Manchester City Council,Childrens & Education Services,Professional fees,08-Jan-24,1908320505,Redacted Personal Information,6175
Manchester City Council,Manchester Leisure,Bed & Breakfast Acc,08-Jan-24,5105909391,Redacted Personal Information,1320
Manchester City Council,Manchester Leisure,Bed & Breakfast Acc,08-Jan-24,5105909421,Redacted Personal Information,830
Manchester City Council,Chief Executives,Professional fees,08-Jan-24,1908325907,Redacted Personal Information,1766.37
Manchester City Council,Manchester Leisure,External repairs and maintenance for buildings,08-Jan-24,1908294432,Remote Medical Services Ltd,758
Manchester City Council,Manchester Leisure,Furniture,08-Jan-24,5105909459,Rtech Group Limited,5341.67
Manchester City Council,Manchester Leisure,Furniture,08-Jan-24,5105909468,Rtech Group Limited,8445.83
Manchester City Council,Housing General Fund,Works and associated costs for Land and Buildings,08-Jan-24,5105909389,Salford City Council,750
Manchester City Council,Manchester Leisure,Grant and subscriptions awarded,08-Jan-24,5105909548,Sanctuary Housing Association,22304.01
Manchester City Council,Manchester Leisure,Grant and subscriptions awarded,08-Jan-24,5105909549,Sanctuary Housing Association,67977
Manchester City Council,Manchester Leisure,Compensation Payments,08-Jan-24,1908325869,SBW Law,1010
Manchester City Council,Corporate Services,ICT Sup & Maintnance,08-Jan-24,5105908732,Softcat,78235.76
Manchester City Council,Corporate Services,Travel Season TLS,08-Jan-24,5105909263,Stagecoach Manchester,670
Manchester City Council,Corporate Services,Travel Season TLS,08-Jan-24,5105909264,Stagecoach Manchester,670
Manchester City Council,Hospitality + Trading Services,Vehicle Fuel Costs,08-Jan-24,5105909386,Standard Fuels Oils,19441.2
Manchester City Council,Hospitality + Trading Services,Equipment,08-Jan-24,1908326694,Stapletons Tyre Services,1505.27
Manchester City Council,Corporate Services,Works and associated costs for Land and Buildings,08-Jan-24,5105909510,Stellar Network Solutions Ltd,-785
Manchester City Council,Childrens & Education Services,Travel,08-Jan-24,5105909457,Swans Travel Ltd,1580
Manchester City Council,Highways Services,Payments to Sub-Contractors,08-Jan-24,5105909246,SWECO UK Limited,9500
Manchester City Council,Manchester Leisure,Electricity,08-Jan-24,5105909422,Switch2 Energey Limited,2882.18
Manchester City Council,Manchester Leisure,Electricity,08-Jan-24,5105909437,Switch2 Energey Limited,818.74
Manchester City Council,Manchester Leisure,Electricity,08-Jan-24,5105909453,Switch2 Energey Limited,3182.19
Manchester City Council,Manchester Leisure,Security,08-Jan-24,5105909230,Synectics Security Limited,756.39
Manchester City Council,Manchester Leisure,Security,08-Jan-24,5105909297,Synectics Security Limited,1419.29
Manchester City Council,Chief Executives,Professional fees,08-Jan-24,1908325845,Target Psychology Ltd,2622.95
Manchester City Council,Manchester Leisure,Works and associated costs for Land and Buildings,08-Jan-24,5105909220,TGN Construction (Yorkshire) LTD,9880
Manchester City Council,Adult Social Care,Third party payments relating to Voluntary Organisations,08-Jan-24,5105909425,The Big Life Company,11596.4
Manchester City Council,Adult Social Care,Third party payments relating to Voluntary Organisations,08-Jan-24,5105909426,The Big Life Company,7730.9
Manchester City Council,Manchester Leisure,Third party payments relating to Voluntary Organisations,08-Jan-24,5105909222,The Depaul Trust,100000
Manchester City Council,Manchester Leisure,Goods purchased for resale in Council outlets,08-Jan-24,1908326674,THE SCHOOL OF LI FAIRE,1110.66
Manchester City Council,Adult Social Care,Third party payments relating to Voluntary Organisations,08-Jan-24,5105909129,The Shaw Centre,16967.36
Manchester City Council,Manchester Leisure,Rents,08-Jan-24,5105909502,The Whiteluck Group,14280
Manchester City Council,Manchester Leisure,Security,08-Jan-24,5105909483,UNIQUE SPECIALIST SERVICES,1404
Manchester City Council,Manchester Leisure,Rents,08-Jan-24,5105909399,VSPG Housing Ltd,66560
Manchester City Council,Childrens & Education Services,Grant and subscriptions awarded,08-Jan-24,5105909527,Walking Mum's Club,7465
Manchester City Council,Highways Services,Compensation Payments,08-Jan-24,1908325962,Ward & Rider Ltd T/as Ward & Rider,2836
Manchester City Council,Chief Executives,Legal Fees,08-Jan-24,5105909360,Weightmans LLP Solicitors,3000
Manchester City Council,Chief Executives,Legal Fees,08-Jan-24,5105909492,Weightmans LLP Solicitors,18318
Manchester City Council,Chief Executives,Legal Fees,08-Jan-24,5105909493,Weightmans LLP Solicitors,50776
Manchester City Council,Childrens & Education Services,Transport Coach Hire,08-Jan-24,5105909448,Westfield Minibuses,155027.5
Manchester City Council,Childrens & Education Services,Transport Coach Hire,08-Jan-24,5105909449,Westfield Minibuses,-155027.5
Manchester City Council,Childrens & Education Services,Transport Coach Hire,08-Jan-24,5105909450,Westfield Minibuses,98944.75
Manchester City Council,Manchester Leisure,Equipment,08-Jan-24,5105909486,Willfab Ltd,500
Manchester City Council,Childrens & Education Services,Grant and subscriptions awarded,08-Jan-24,5105909525,Wythenshawe Community Initiative,5325
Manchester City Council,Childrens & Education Services,Grant and subscriptions awarded,08-Jan-24,5105909526,Zion Arts Centre Ltd,9809.3
Manchester City Council,Regeneration Finance,Legal Fees,09-Jan-24,1908325386,18 St John Street Chambers,3500
Manchester City Council,Manchester Leisure,Bed & Breakfast Acc,09-Jan-24,5105910005,247Hotel.Com,1170
Manchester City Council,Manchester Leisure,Bed & Breakfast Acc,09-Jan-24,5105910007,247Hotel.Com,2160.5
Manchester City Council,Childrens & Education Services,Payments for services,09-Jan-24,5105909941,4CT Limited,670
Manchester City Council,Chief Executives,Professional fees,09-Jan-24,1908325897,A Brilliant Thing CIC,610
Manchester City Council,Regeneration Finance,Grant and subscriptions awarded,09-Jan-24,5105909606,All Arts & Media Ltd,500
Manchester City Council,Regeneration Finance,Grant and subscriptions awarded,09-Jan-24,5105909607,All Arts & Media Ltd,2170
Manchester City Council,Regeneration Finance,Grant and subscriptions awarded,09-Jan-24,5105909609,All Arts & Media Ltd,-2170
Manchester City Council,Highways Services,Private Finance and Public Private partnership initiatives,09-Jan-24,5105908863,Amey Highways Lighting (Manchester),739887.44
Manchester City Council,Manchester Leisure,Compensation Payments,09-Jan-24,1908326721,Antony Hodari Holding Ltd,2000
Manchester City Council,Corporate Services,Agency staff provision,09-Jan-24,5105909967,Ashberry Recruitment Ltd,1968.3
Manchester City Council,Corporate Services,Subsistence and Conference Expenses,09-Jan-24,5105909251,ASK Europe Limited,3425.51
Manchester City Council,Manchester Leisure,Compensation Payments,09-Jan-24,1908326724,AWH Solicitors,9500
Manchester City Council,Chief Executives,Works and associated costs for Land and Buildings,09-Jan-24,1908325456,BBS Law,2024
Manchester City Council,Manchester Leisure,Furniture,09-Jan-24,5105909325,Bennett Workplace Solutions Ltd,867.7
Manchester City Council,Highways Services,Subsistence and Conference Expenses,09-Jan-24,5105909893,Bike Right,-24690
Manchester City Council,Highways Services,Subsistence and Conference Expenses,09-Jan-24,5105909894,Bike Right,-16883
Manchester City Council,Highways Services,Subsistence and Conference Expenses,09-Jan-24,5105909895,Bike Right,-16761
Manchester City Council,Highways Services,Subsistence and Conference Expenses,09-Jan-24,5105909896,Bike Right,-9620
Manchester City Council,Corporate Services,Training and Development,09-Jan-24,1908324015,Blackburn College,2350
Manchester City Council,Manchester Leisure,Compensation Payments,09-Jan-24,1908326723,Bond Turner Solicitors,650
Manchester City Council,Chief Executives,Works and associated costs for Land and Buildings,09-Jan-24,1908325458,BWP Buidling and Project Consultant,1500
Manchester City Council,Adult Social Care,Third party payments to Health Authority,09-Jan-24,5105909388,Central Mcr Uni Hospital t/a,2500
Manchester City Council,Corporate Services,Legal Fees,09-Jan-24,1908274835,CGDM Ltd T/A,3302
Manchester City Council,Chief Executives,Printing,09-Jan-24,5105909572,Chapel Press Ltd,1058
Manchester City Council,Chief Executives,Printing,09-Jan-24,5105909573,Chapel Press Ltd,4284
Manchester City Council,Corporate Services,Professional fees,09-Jan-24,5105909408,Civica UK Ltd,12867
Manchester City Council,Manchester Leisure,Grant and subscriptions awarded,09-Jan-24,5105909885,Coffee4Craig Ltd,8750
Manchester City Council,Manchester Leisure,Testing Fees,09-Jan-24,5105909402,County Scientific Services,3459
Manchester City Council,Manchester Leisure,Grant and subscriptions awarded,09-Jan-24,5105909972,Creative Confidence CIC,1945.09
Manchester City Council,Adult Social Care,Supporting People Payments,09-Jan-24,5105909225,Creative Support Ltd,154898.12
Manchester City Council,Corporate Services,Data Links,09-Jan-24,5105909683,Daisy Corporate Services Trading,-3207.36
Manchester City Council,Corporate Services,Data Links,09-Jan-24,5105909684,Daisy Corporate Services Trading,3181.73
Manchester City Council,Adult Social Care,Counsel Costs,09-Jan-24,5105909929,DEANS COURT CHAMBERS,950
Manchester City Council,Corporate Services,Legal Fees,09-Jan-24,1908297824,Department For Work & Pensions,766
Manchester City Council,Manchester Leisure,Grant and subscriptions awarded,09-Jan-24,5105909983,Didsbury Good Neighbours Ltd,950
Manchester City Council,Regeneration Finance,Electricity,09-Jan-24,1908324010,E.ON Next,1039.13
Manchester City Council,Manchester Leisure,Rents,09-Jan-24,5105909720,Eeven Homes Ltd.,18342.57
Manchester City Council,Chief Executives,Works and associated costs for Land and Buildings,09-Jan-24,5105909590,EQUANS Regeneration Limited,22231.27
Manchester City Council,Corporate Services,Tracing fees,09-Jan-24,5105909988,Experian Limited,2120.71
Manchester City Council,Manchester Leisure,Grant and subscriptions awarded,09-Jan-24,5105909984,Friends of Didsbury Park,975
Manchester City Council,Manchester Leisure,GRIR,09-Jan-24,5105909897,Friends of Mauldeth Road Station,-2044.77
Manchester City Council,Chief Executives,Printing,09-Jan-24,5105909699,Geiger Limited,3643.75
Manchester City Council,Chief Executives,Printing,09-Jan-24,5105909700,Geiger Limited,4035
Manchester City Council,Environment and Operations,Construction Works,09-Jan-24,5105909232,GMCA,5932.51
Manchester City Council,Environment and Operations,Construction Works,09-Jan-24,5105909234,GMCA,824.96
Manchester City Council,Environment and Operations,Construction Works,09-Jan-24,5105909236,GMCA,3296.66
Manchester City Council,Adult Social Care,Funeral and coroner related services,09-Jan-24,5105909570,Greater Manchester Funeral Service,1550
Manchester City Council,Manchester Leisure,Works and associated costs for Land and Buildings,09-Jan-24,5105909871,Greenwich Leisure Limited,13390.17
Manchester City Council,Manchester Leisure,Works and associated costs for Land and Buildings,09-Jan-24,5105909872,Greenwich Leisure Limited,17337.28
Manchester City Council,Manchester Leisure,Goods purchased for resale in Council outlets,09-Jan-24,5105909617,Hachette UK Distribution,1454.92
Manchester City Council,Manchester Leisure,Goods purchased for resale in Council outlets,09-Jan-24,5105909620,Hachette UK Distribution,1350.1
Manchester City Council,Childrens & Education Services,Transport Coach Hire,09-Jan-24,5105908758,High Bee Ltd,3718
Manchester City Council,Manchester Leisure,Rents,09-Jan-24,5105909581,Houses4Homes 4U Ltd,9026
Manchester City Council,Corporate Services,Legal Fees,09-Jan-24,1908312522,Hugh James Solicitors,13500
Manchester City Council,Childrens & Education Services,Transport Coach Hire,09-Jan-24,5105909582,Ibuses,1820
Manchester City Council,Environment and Operations,Infrastructure Fees,09-Jan-24,5105909668,Jacobs UK Ltd,560
Manchester City Council,Housing General Fund,Building Works,09-Jan-24,5105909668,Jacobs UK Ltd,700
Manchester City Council,Housing Revenue Account,Professional fees,09-Jan-24,5105909645,Jacobs UK Ltd,2342
Manchester City Council,Housing Revenue Account,Professional fees,09-Jan-24,5105909645,Jacobs UK Ltd,3718
Manchester City Council,Housing Revenue Account,Professional fees,09-Jan-24,5105909668,Jacobs UK Ltd,3068.25
Manchester City Council,Housing Revenue Account,Surplus property Fees,09-Jan-24,5105909668,Jacobs UK Ltd,3312.5
Manchester City Council,Regeneration Finance,Professional fees,09-Jan-24,5105909641,Jacobs UK Ltd,1625
Manchester City Council,Regeneration Finance,Professional fees,09-Jan-24,5105909668,Jacobs UK Ltd,500
Manchester City Council,Regeneration Finance,Professional fees,09-Jan-24,5105909668,Jacobs UK Ltd,994.47
Manchester City Council,Regeneration Finance,Professional fees,09-Jan-24,5105909668,Jacobs UK Ltd,3940.2
Manchester City Council,Regeneration Finance,Professional fees,09-Jan-24,5105909668,Jacobs UK Ltd,8491.65
Manchester City Council,Regeneration Finance,Professional fees,09-Jan-24,5105909668,Jacobs UK Ltd,1384
Manchester City Council,Manchester Leisure,Rents,09-Jan-24,5105909550,K L Properties,17168.28
Manchester City Council,Corporate Services,Signers/Interpreters,09-Jan-24,5105909695,Language Line Ltd,957.68
Manchester City Council,Manchester Leisure,Court Fees,09-Jan-24,1908327083,Liberata,710
Manchester City Council,Manchester Leisure,Court Fees,09-Jan-24,1908327086,Liberata,3680
Manchester City Council,Childrens & Education Services,Court Fees,09-Jan-24,1908327072,Liberata,13641
Manchester City Council,Childrens & Education Services,Court Fees,09-Jan-24,1908327074,Liberata,11298
Manchester City Council,Childrens & Education Services,Court Fees,09-Jan-24,1908327079,Liberata,8930
Manchester City Council,Childrens & Education Services,Court Fees,09-Jan-24,1908327080,Liberata,5032
Manchester City Council,Chief Executives,Court Fees,09-Jan-24,1908327070,Liberata,20766
Manchester City Council,Chief Executives,Court Fees,09-Jan-24,1908327075,Liberata,3728
Manchester City Council,Adult Social Care,Supporting People Payments,09-Jan-24,5105909265,Making Space,8871.01
Manchester City Council,Regeneration Finance,Professional fees,09-Jan-24,5105909224,Manchester Care & Repair Ltd,40950
Manchester City Council,Childrens & Education Services,Special Event,09-Jan-24,1908327082,Manchester City Football Club Plc,2621.75
Manchester City Council,Childrens & Education Services,Professional fees,09-Jan-24,5105909930,Manchester Settlement,650
Manchester City Council,Manchester Leisure,Goods purchased for resale in Council outlets,09-Jan-24,5105909616,Mclaggan Smith Mugs Ltd,1209.6
Manchester City Council,Housing Revenue Account,Works and associated costs for Land and Buildings,09-Jan-24,5105909596,Mears Limited,9815.66
Manchester City Council,Corporate Services,Legal Fees,09-Jan-24,1908276257,Meller & Speakman,500
Manchester City Council,Manchester Leisure,Professional fees,09-Jan-24,5105909636,Metrolink Limited,-1475
Manchester City Council,Corporate Services,Agency staff provision,09-Jan-24,5105909637,Michael Page International,-672
Manchester City Council,Corporate Services,Agency staff provision,09-Jan-24,5105909638,Michael Page International,-672
Manchester City Council,Childrens & Education Services,Transport Coach Hire,09-Jan-24,5105909665,Middleton Cars Ltd,1295
Manchester City Council,Childrens & Education Services,Transport Coach Hire,09-Jan-24,5105909666,Middleton Cars Ltd,1920
Manchester City Council,Childrens & Education Services,Transport Coach Hire,09-Jan-24,5105909667,Middleton Cars Ltd,1280
Manchester City Council,Manchester Leisure,Grant and subscriptions awarded,09-Jan-24,5105909522,Moss Side Millennium Powerhouse Ltd,29142.5
Manchester City Council,Adult Social Care,Third party payments relating to Voluntary Organisations,09-Jan-24,5105909937,Mosscare St Vincent's Housing,10250
Manchester City Council,Childrens & Education Services,Transport Coach Hire,09-Jan-24,5105909688,MS Minibuses Ltd,4047
Manchester City Council,Corporate Services,I T Provision,09-Jan-24,5105909658,NEC Software Solutions UK Ltd,9000
Manchester City Council,Manchester Leisure,Grant and subscriptions awarded,09-Jan-24,5105909931,North Manchester Community,1164
Manchester City Council,Chief Executives,Funeral and coroner related services,09-Jan-24,5105909978,Northern Care Alliance NHS FT,1233
Manchester City Council,Corporate Services,Elec Car L-VAT contr,09-Jan-24,1700163932,Northumbria Healthcare NHS FT,-6015.82
Manchester City Council,Corporate Services,Elec Car L-VAT contr,09-Jan-24,1908327092,Northumbria Healthcare NHS FT,6015.82
Manchester City Council,Corporate Services,Elec Car Lease,09-Jan-24,1700163932,Northumbria Healthcare NHS FT,-68279.17
Manchester City Council,Corporate Services,Elec Car Lease,09-Jan-24,1908327092,Northumbria Healthcare NHS FT,68279.17
Manchester City Council,Manchester Leisure,Special Event,09-Jan-24,5105909521,Novum Audio Visual Limited,17929.79
Manchester City Council,Childrens & Education Services,Professional fees,09-Jan-24,5105909566,NSPCC,2600
Manchester City Council,Regeneration Finance,Training and Development,09-Jan-24,5105909655,Open Awards,850
Manchester City Council,Manchester Leisure,Compensation Payments,09-Jan-24,1908326722,Peasegoods,2500
Manchester City Council,Environment and Operations,Construction Works,09-Jan-24,5105909207,Pell Frischmann Consultants Ltd,9000
Manchester City Council,Adult Social Care,I T Provision,09-Jan-24,5105908737,Percy Westhead & Company,7956.67
Manchester City Council,Adult Social Care,Professional fees,09-Jan-24,5105909329,Permanent Futures Temp,3375
Manchester City Council,Adult Social Care,Professional fees,09-Jan-24,5105909330,Permanent Futures Temp,3037.5
Manchester City Council,Housing Revenue Account,Council Dwelling Adaptations,09-Jan-24,5105909702,Pollock Lifts Ltd,25120
Manchester City Council,Manchester Leisure,Special Event,09-Jan-24,5105909673,Pre-hospital Advanced Care Team,12997.75
Manchester City Council,Manchester Leisure,Special Event,09-Jan-24,5105909674,Pre-hospital Advanced Care Team,12997.75
Manchester City Council,Childrens & Education Services,Professional fees,09-Jan-24,5105909642,Prospero Teaching,500
Manchester City Council,Childrens & Education Services,Professional fees,09-Jan-24,5105909646,Prospero Teaching,500
Manchester City Council,Manchester Leisure,Compensation Payments,09-Jan-24,1908326931,Prowse Phillips Law,1500
Manchester City Council,Corporate Services,Hire of Premises,09-Jan-24,5105910003,Quaker Trading Ltd,2100.42
Manchester City Council,Manchester Leisure,Compensation Payments,09-Jan-24,1908326720,Quinn Noble Solicitors,6000
Manchester City Council,Chief Executives,Transport and Driver Hire,09-Jan-24,5105909518,Redacted Personal Information,915
Manchester City Council,Manchester Leisure,Compensation Payments,09-Jan-24,1908326736,Redacted Personal Information,500
Manchester City Council,Manchester Leisure,Compensation Payments,09-Jan-24,1908326927,Redacted Personal Information,7000
Manchester City Council,Childrens & Education Services,Transport Coach Hire,09-Jan-24,1908327073,Redacted Personal Information,700
Manchester City Council,Chief Executives,Legal Fees,09-Jan-24,5105909652,Redacted Personal Information,2250
Manchester City Council,Chief Executives,Legal Fees,09-Jan-24,5105909711,Redacted Personal Information,1500
Manchester City Council,Chief Executives,Legal Fees,09-Jan-24,5105909712,Redacted Personal Information,1251
Manchester City Council,Manchester Leisure,Bed & Breakfast Acc,09-Jan-24,5105909565,Redacted Personal Information,1860
Manchester City Council,Manchester Leisure,Professional Fees,09-Jan-24,5105909709,Redacted Personal Information,533.1
Manchester City Council,Chief Executives,Payments to Sub-Contractors,09-Jan-24,5105908981,Redacted Personal Information,1049.01
Manchester City Council,Manchester Leisure,Payments to Sub-Contractors,09-Jan-24,5105909605,Redacted Personal Information,1617
Manchester City Council,Manchester Leisure,Payments to Sub-Contractors,09-Jan-24,5105909621,Redacted Personal Information,538
Manchester City Council,Manchester Leisure,Payments to Sub-Contractors,09-Jan-24,5105909627,Redacted Personal Information,1471.5
Manchester City Council,Corporate Services,Agency staff provision,09-Jan-24,5105909948,Redacted Personal Information,6216
Manchester City Council,Childrens & Education Services,Professional fees,09-Jan-24,5105909569,Redacted Personal Information,500
Manchester City Council,Chief Executives,Transport and Driver Hire,09-Jan-24,5105909523,Redacted Personal Information,506.25
Manchester City Council,Corporate Services,Refuse Collection,09-Jan-24,5105909231,Restore Datashred Limited,-557
Manchester City Council,Corporate Services,Refuse Collection,09-Jan-24,5105909883,Restore Datashred Limited,4346.16
Manchester City Council,Childrens & Education Services,Transport Coach Hire,09-Jan-24,5105909585,Ricks Travel,1820
Manchester City Council,Corporate Services,Works and associated costs for Land and Buildings,09-Jan-24,5105909911,Rider Levett Bucknall UK Ltd,12320
Manchester City Council,Corporate Services,Postage,09-Jan-24,5105909952,Royal Mail Group Plc,870
Manchester City Council,Corporate Services,Postage,09-Jan-24,5105909953,Royal Mail Group Plc,7061.86
Manchester City Council,Corporate Services,Postage,09-Jan-24,5105909993,Royal Mail Group Plc,4740
Manchester City Council,Childrens & Education Services,Transport Coach Hire,09-Jan-24,5105909561,Royton Minibuses Ltd,13972.5
Manchester City Council,Manchester Leisure,Furniture,09-Jan-24,1908327076,RR Property Company Ltd,1200
Manchester City Council,Regeneration Finance,Professional fees,09-Jan-24,5105909599,Savills (UK) Ltd,15000
Manchester City Council,Regeneration Finance,Professional fees,09-Jan-24,5105909600,Savills (UK) Ltd,15000
Manchester City Council,Regeneration Finance,Security,09-Jan-24,5105909716,Showsec International Ltd,23245.08
Manchester City Council,Corporate Services,Professional Fees,09-Jan-24,5105909959,Sir Frederick Snow & Partners Ltd,2573
Manchester City Council,Adult Social Care,Home Care ,09-Jan-24,5105909921,Standwalk Ltd,2860.75
Manchester City Council,Adult Social Care,Home Care ,09-Jan-24,5105909922,Standwalk Ltd,529
Manchester City Council,Hospitality + Trading Services,I T Provision,09-Jan-24,5105909146,Stellar Network Solutions Ltd,1675
Manchester City Council,Childrens & Education Services,Transport Coach Hire,09-Jan-24,1908327084,Stockton-On Tees Borough Council,607.6
Manchester City Council,Childrens & Education Services,Third party payments to other Local Authorities,09-Jan-24,5105909634,Tameside Metropolitan Bouough,1060.2
Manchester City Council,Childrens & Education Services,Third party payments to other Local Authorities,09-Jan-24,5105909635,Tameside Metropolitan Bouough,3819.8
Manchester City Council,Childrens & Education Services,Professional fees,09-Jan-24,5105909040,Term2term Ltd,950
Manchester City Council,Childrens & Education Services,Transport Coach Hire,09-Jan-24,5105909602,The Birtenshaw Group,1472.32
Manchester City Council,Corporate Services,Agency staff provision,09-Jan-24,5105909947,The Oyster Partnership Limited,8491.5
Manchester City Council,Corporate Services,I T Provision,09-Jan-24,5105908880,Trimble Solutions (UK) Ltd,1060
Manchester City Council,Hospitality + Trading Services,Professional fees,09-Jan-24,5105909589,Triscan Systems Ltd,720
Manchester City Council,Adult Social Care,Personal needs of client,09-Jan-24,5105909708,Tunstall Healthcare (UK) Ltd,2400
Manchester City Council,Manchester Leisure,Environmental Services,09-Jan-24,5105909351,Ultra Cleaning Service,680
Manchester City Council,Corporate Services,Window Cleaning,09-Jan-24,5105909928,Ultra Cleaning Service,8325
Manchester City Council,Manchester Leisure,Security,09-Jan-24,5105909685,UNIQUE SPECIALIST SERVICES,1716
Manchester City Council,Manchester Leisure,Security,09-Jan-24,5105909686,UNIQUE SPECIALIST SERVICES,1134
Manchester City Council,Manchester Leisure,Security,09-Jan-24,5105909687,UNIQUE SPECIALIST SERVICES,1296
Manchester City Council,Manchester Leisure,Security,09-Jan-24,5105909689,UNIQUE SPECIALIST SERVICES,1092
Manchester City Council,Manchester Leisure,Security,09-Jan-24,5105909690,UNIQUE SPECIALIST SERVICES,1092
Manchester City Council,Manchester Leisure,Security,09-Jan-24,5105909701,UNIQUE SPECIALIST SERVICES,1092
Manchester City Council,Manchester Leisure,Security,09-Jan-24,5105909886,UNIQUE SPECIALIST SERVICES,2028
Manchester City Council,Manchester Leisure,Security,09-Jan-24,5105909887,UNIQUE SPECIALIST SERVICES,1620
Manchester City Council,Corporate Services,Agency staff provision,09-Jan-24,5105909973,Venn Group Ltd,14283
Manchester City Council,Chief Executives,Legal Fees,09-Jan-24,5105909888,Waddington & Son Solicitors,1137.5
Manchester City Council,Chief Executives,Legal Fees,09-Jan-24,5105909672,Warwickshire County Council,624.2
Manchester City Council,Highways Services,Building Materials for direct delivery,09-Jan-24,5105909654,William Smith Sons (Barnard Castle),652.2
Manchester City Council,Manchester Leisure,Payments for services,09-Jan-24,5105909938,Youth Elements,1465
Manchester City Council,Manchester Leisure,Grant and subscriptions awarded,09-Jan-24,5105908966,Youth Project @ Apostles &,35000
Manchester City Council,Chief Executives,Grant and subscriptions awarded,09-Jan-24,5105909960,Zion Arts Centre Ltd,46122
Manchester City Council,Manchester Leisure,Rents,10-Jan-24,5105910234,AJD Property Limited,13337.14
Manchester City Council,Adult Social Care,Personal needs of client,10-Jan-24,5105910080,AKW Medicare,547.65
Manchester City Council,Highways Services,Car Parking Permits,10-Jan-24,5105910095,Amey Highways Lighting (Manchester),10867.67
Manchester City Council,Manchester Leisure,Rents,10-Jan-24,5105910208,B & A Properties,2950
Manchester City Council,Manchester Leisure,Special Event,10-Jan-24,5105909909,Biffa Municipal Limited,3100
Manchester City Council,Adult Social Care,Payments for services,10-Jan-24,5105910260,Big Life Centres,238508
Manchester City Council,Adult Social Care,Payments for services,10-Jan-24,5105910262,Big Life Centres,10560.25
Manchester City Council,Highways Services,Subsistence and Conference Expenses,10-Jan-24,5105909488,Bike Right,5445
Manchester City Council,Manchester Leisure,Library Materials Acquisition,10-Jan-24,1908328654,Bolinda UK Limited,3352.11
Manchester City Council,Manchester Leisure,Compensation Payments,10-Jan-24,1908327105,Bond Turner Solicitors,4700
Manchester City Council,Housing Revenue Account,Professional fees,10-Jan-24,5105910024,Capita Property & Infras'ture Ltd,8450
Manchester City Council,Housing Revenue Account,Professional fees,10-Jan-24,5105910028,Capita Property & Infras'ture Ltd,3220
Manchester City Council,Childrens & Education Services,Carer Support Payments ,10-Jan-24,5105910106,Care Solutions Recruitment,9944.75
Manchester City Council,Childrens & Education Services,Grant Payments,10-Jan-24,5105910060,Catch 22 Charity Limited,3295
Manchester City Council,Childrens & Education Services,Third party payments relating to Voluntary Organisations,10-Jan-24,5105910235,Central Mcr Uni Hospital t/a,20833.33
Manchester City Council,Hospitality + Trading Services,Window Cleaning,10-Jan-24,5105910066,CG Cleaning Ltd,672.88
Manchester City Council,Hospitality + Trading Services,Window Cleaning,10-Jan-24,5105910214,CG Cleaning Ltd,740.84
Manchester City Council,Childrens & Education Services,Supporting People Payments,10-Jan-24,5105910254,Child Action Northwest,3809
Manchester City Council,Adult Social Care,Supporting People Payments,10-Jan-24,5105910254,Child Action Northwest,4057.15
Manchester City Council,Manchester Leisure,Third party payments relating to Voluntary Organisations,10-Jan-24,5105909494,Citizens Advice Manchester,80000
Manchester City Council,Manchester Leisure,Goods purchased for resale in Council outlets,10-Jan-24,5105910265,Cornflower Ltd,1180
Manchester City Council,Childrens & Education Services,Transport Coach Hire,10-Jan-24,5105908736,CW Travel,28970
Manchester City Council,Manchester Leisure,Library Materials Acquisition,10-Jan-24,1908328645,Dandy Booksellers,2500
Manchester City Council,Hospitality + Trading Services,Vehicle Hire Costs,10-Jan-24,5105910244,Dawsongroup Sweepers,3476.19
Manchester City Council,Corporate Services,Stationery,10-Jan-24,5105909610,Digital ID Ltd,2170
Manchester City Council,Manchester Leisure,Rents,10-Jan-24,5105910018,District Homes Cic,1048.16
Manchester City Council,Manchester Leisure,Grant and subscriptions awarded,10-Jan-24,5105909491,Divrse Ltd,18135
Manchester City Council,Manchester Leisure,Grant and subscriptions awarded,10-Jan-24,5105910271,Divrse Ltd,57195
Manchester City Council,Corporate Services,ICT Sup & Maintnance,10-Jan-24,5105909892,Document Output Solutions UK Ltd,11678
Manchester City Council,Adult Social Care,Equipment,10-Jan-24,5105909710,Drive Devilbiss Healthcare Ltd,538.38
Manchester City Council,Corporate Services,Works and associated costs for Land and Buildings,10-Jan-24,5105909958,ECS Consultants Ltd,3275
Manchester City Council,Childrens & Education Services,Third party payments to other Local Authorities,10-Jan-24,5105910269,Edstart Specialist Education Ltd,191066.68
Manchester City Council,Corporate Services,I T Provision,10-Jan-24,5105910120,EE/T-Mobile,942.12
Manchester City Council,Chief Executives,Works and associated costs for Land and Buildings,10-Jan-24,5105910125,Eversheds Llp,9765
Manchester City Council,Chief Executives,Works and associated costs for Land and Buildings,10-Jan-24,5105910126,Eversheds Llp,8775
Manchester City Council,Hospitality + Trading Services,Vehicle Hire Costs,10-Jan-24,5105910194,Fleet Dynamic Consultancy Ltd,901.6
Manchester City Council,Childrens & Education Services,Contract Cleaning External,10-Jan-24,5105910256,Freshwave Cleaning Services Ltd,544
Manchester City Council,Childrens & Education Services,Contract Cleaning External,10-Jan-24,5105910258,Freshwave Cleaning Services Ltd,748
Manchester City Council,Corporate Services,WPS Awards,10-Jan-24,5105910013,Furniture Resource Centre Ltd,661.8
Manchester City Council,Corporate Services,WPS Awards,10-Jan-24,5105910037,Furniture Resource Centre Ltd,539.19
Manchester City Council,Corporate Services,WPS Awards,10-Jan-24,5105910038,Furniture Resource Centre Ltd,1035.06
Manchester City Council,Corporate Services,Travel Season TLS,10-Jan-24,5105910017,Greater Manchester Travelcards Ltd,1400
Manchester City Council,Corporate Services,Gas,10-Jan-24,5105909870,Greenwich Leisure Limited,1496
Manchester City Council,Manchester Leisure,Refuse Collection,10-Jan-24,5105909998,GTS Steam Cleaners,1828.43
Manchester City Council,Manchester Leisure,Refuse Collection,10-Jan-24,5105909999,GTS Steam Cleaners,884.92
Manchester City Council,Adult Social Care,SSC Training,10-Jan-24,1908299699,HASCA,7300
Manchester City Council,Childrens & Education Services,Transport Taxis,10-Jan-24,5105910098,Hastings Private Hire,-6006
Manchester City Council,Childrens & Education Services,Transport Coach Hire,10-Jan-24,5105910099,Hastings Private Hire,6006
Manchester City Council,Chief Executives,Third party payments relating to Voluntary Organisations,10-Jan-24,5105908839,HOME,105699.5
Manchester City Council,Manchester Leisure,Rents,10-Jan-24,5105910100,Housing Social Ltd,31793.21
Manchester City Council,Manchester Leisure,Rents,10-Jan-24,5105910218,Housing Social Ltd,4720
Manchester City Council,Manchester Leisure,Rents,10-Jan-24,5105910231,Housing Social Ltd,37400.86
Manchester City Council,Corporate Services,Telecoms Equip,10-Jan-24,5105909195,Insight Direct (Uk) Ltd,3939.6
Manchester City Council,Corporate Services,I T Provision,10-Jan-24,5105909639,Insight Direct (Uk) Ltd,-1753.52
Manchester City Council,Manchester Leisure,Postage,10-Jan-24,5105910072,Integrity Print Ltd,1362.42
Manchester City Council,Environment and Operations,Construction Works,10-Jan-24,5105910209,J.Hopkins (Contractors) Ltd.,30781.48
Manchester City Council,Environment and Operations,Construction Works,10-Jan-24,5105910213,J.Hopkins (Contractors) Ltd.,5050
Manchester City Council,Environment and Operations,Construction Works,10-Jan-24,5105910259,J.Hopkins (Contractors) Ltd.,4850
Manchester City Council,Environment and Operations,Construction Works,10-Jan-24,5105910268,J.Hopkins (Contractors) Ltd.,19400
Manchester City Council,Environment and Operations,Construction Works,10-Jan-24,5105910274,J.Hopkins (Contractors) Ltd.,2384.9
Manchester City Council,Corporate Services,Professional Fees,10-Jan-24,5105909016,Lucion Environmental Ltd,16185.88
Manchester City Council,Corporate Services,Professional Fees,10-Jan-24,5105909019,Lucion Environmental Ltd,587.22
Manchester City Council,Manchester Leisure,Catering,10-Jan-24,5105910053,Manchester Art Gallery,511.2
Manchester City Council,Manchester Leisure,Catering,10-Jan-24,5105910054,Manchester Art Gallery,2765.5
Manchester City Council,Housing General Fund,Building Works,10-Jan-24,5105910094,Manchester Care & Repair Ltd,67189
Manchester City Council,Housing General Fund,Building Works,10-Jan-24,5105910097,Manchester Care & Repair Ltd,6718.9
Manchester City Council,Manchester Leisure,Library Materials Acquisition,10-Jan-24,1908328624,Martin-Lavell Limited,1409.62
Manchester City Council,Manchester Leisure,Compensation Payments,10-Jan-24,1908327103,McDermott Smith Law,2257.78
Manchester City Council,Adult Social Care,Extra Care Sheltd HP,10-Jan-24,5105910067,Meridian Health and Social Care Ltd,44843
Manchester City Council,Adult Social Care,Extra Care Sheltd HP,10-Jan-24,5105910068,Meridian Health and Social Care Ltd,-44843
Manchester City Council,Corporate Services,Agency staff provision,10-Jan-24,5105909942,Michael Page International,10340
Manchester City Council,Corporate Services,Agency staff provision,10-Jan-24,5105910020,Michael Page International,4032
Manchester City Council,Corporate Services,Agency staff provision,10-Jan-24,5105910031,Michael Page International,4500
Manchester City Council,Corporate Services,Agency staff provision,10-Jan-24,5105910032,Michael Page International,7395
Manchester City Council,Corporate Services,Agency staff provision,10-Jan-24,5105910033,Michael Page International,4508
Manchester City Council,Manchester Leisure,Professional fees,10-Jan-24,5105910228,Mobysoft Ltd,14256
Manchester City Council,Childrens & Education Services,Carer Support Payments ,10-Jan-24,5105910252,Mosscare Housing Ltd,65228.45
Manchester City Council,Manchester Leisure,Grant and subscriptions awarded,10-Jan-24,5105910064,Newall Green TARA,1100
Manchester City Council,Manchester Leisure,Grant and subscriptions awarded,10-Jan-24,5105910109,Northmoor Together,708
Manchester City Council,Corporate Services,Elec Car L-VAT contr,10-Jan-24,1908327095,Northumbria Healthcare NHS FT,553.29
Manchester City Council,Corporate Services,Elec Car L-VAT contr,10-Jan-24,1908327096,Northumbria Healthcare NHS FT,6015.82
Manchester City Council,Corporate Services,Elec Car Lease,10-Jan-24,1908327095,Northumbria Healthcare NHS FT,6418.93
Manchester City Council,Corporate Services,Elec Car Lease,10-Jan-24,1908327096,Northumbria Healthcare NHS FT,68279.17
Manchester City Council,Hospitality + Trading Services,Goods purchased for resale in Council outlets,10-Jan-24,5105910058,Obitus,1698
Manchester City Council,Childrens & Education Services,Grant Payments,10-Jan-24,1908327089,Paypoint,8401.1
Manchester City Council,Chief Executives,Professional fees,10-Jan-24,1908327097,Pickering Psychology Services Ltd,600.95
Manchester City Council,Corporate Services,HH Support Fund,10-Jan-24,5105910199,Post Office Ltd,541.72
Manchester City Council,Hospitality + Trading Services,Cleaning Equipment,10-Jan-24,5105909980,Power Care,858.3
Manchester City Council,Housing Revenue Account,Council Dwelling Adaptations,10-Jan-24,5105910229,Procare Shower & Bathroom Centre Lt,3466.46
Manchester City Council,Manchester Leisure,Library Materials Acquisition,10-Jan-24,1908328652,ProQuest,9284.62
Manchester City Council,Housing Revenue Account,Council Dwelling Adaptations,10-Jan-24,5105910220,Pts Plumbing Trade Supplies,4129.56
Manchester City Council,Manchester Leisure,Misc Insrnce Premium,10-Jan-24,1908329929,Redacted Personal Information,8330.38
Manchester City Council,Manchester Leisure,Goods purchased for resale in Council outlets,10-Jan-24,5105910193,Redacted Personal Information,676
Manchester City Council,Manchester Leisure,Professional fees,10-Jan-24,5105910251,Redacted Personal Information,39617.36
Manchester City Council,Chief Executives,Payments to Sub-Contractors,10-Jan-24,5105909898,Redacted Personal Information,-752.14
Manchester City Council,Chief Executives,Legal Fees,10-Jan-24,5105910249,Redacted Personal Information,4419.1
Manchester City Council,Corporate Services,Training and Development,10-Jan-24,5105910073,Redacted Personal Information,800
Manchester City Council,Manchester Leisure,Bed & Breakfast Acc,10-Jan-24,5105910202,Redacted Personal Information,12586
Manchester City Council,Manchester Leisure,Bed & Breakfast Acc,10-Jan-24,5105910205,Redacted Personal Information,3304
Manchester City Council,Adult Social Care,Counsel Costs,10-Jan-24,1908325924,Redacted Personal Information,750
Manchester City Council,Manchester Leisure,Bed & Breakfast Acc,10-Jan-24,5105910192,Redacted Personal Information,4610
Manchester City Council,Childrens & Education Services,Payments for services,10-Jan-24,5105908800,Reed Employment Plc,7183.2
Manchester City Council,Childrens & Education Services,Payments for services,10-Jan-24,5105910107,Reed Employment Plc,-7183.2
Manchester City Council,Manchester Leisure,Professional fees,10-Jan-24,5105910223,Response Team 247 Ltd,1390.87
Manchester City Council,Regeneration Finance,Removal and Storage of Furniture,10-Jan-24,5105909595,Restore PLC,657.34
Manchester City Council,Chief Executives,Postage,10-Jan-24,5105910255,Royal Mail Group Plc,33563.33
Manchester City Council,Manchester Leisure,Furniture,10-Jan-24,5105910240,Rtech Group Limited,1054.16
Manchester City Council,Regeneration Finance,Professional fees,10-Jan-24,5105910233,Savills (UK) Ltd,15000
Manchester City Council,Hospitality + Trading Services,Security,10-Jan-24,5105908836,Showsec International Ltd,252729.64
Manchester City Council,Manchester Leisure,Grant and subscriptions awarded,10-Jan-24,5105909594,Simpsons Over 60s Bowling Club,700
Manchester City Council,Manchester Leisure,Grant and subscriptions awarded,10-Jan-24,5105910108,Simpsons Over 60s Bowling Club,-700
Manchester City Council,Adult Social Care,Payments for services,10-Jan-24,5105909584,Slimming World,9365
Manchester City Council,Corporate Services,I T Provision,10-Jan-24,5105909332,Softcat,22176.92
Manchester City Council,Hospitality + Trading Services,Vehicle Fuel Costs,10-Jan-24,5105909603,Standard Fuels Oils,9077.93
Manchester City Council,Hospitality + Trading Services,Vehicle Fuel Costs,10-Jan-24,5105910041,Standard Fuels Oils,-9077.93
Manchester City Council,Hospitality + Trading Services,Vehicle Fuel Costs,10-Jan-24,5105910043,Standard Fuels Oils,9077.93
Manchester City Council,Manchester Leisure,Grant and subscriptions awarded,10-Jan-24,5105910127,Stepping Stone Projects,11000
Manchester City Council,Manchester Leisure,Grant and subscriptions awarded,10-Jan-24,5105910128,Stepping Stone Projects,1100
Manchester City Council,Adult Social Care,Personal needs of client,10-Jan-24,5105910071,Telecare Services Association,1355
Manchester City Council,Corporate Services,ICT Sup & Maintnance,10-Jan-24,5105910198,Texthelp Systems Ltd,4130
Manchester City Council,Corporate Services,Agency staff provision,10-Jan-24,5105909944,Triad Resourcing,17640
Manchester City Council,Manchester Leisure,Security,10-Jan-24,5105908731,UNIQUE SPECIALIST SERVICES,780
Manchester City Council,Manchester Leisure,Compensation Payments,10-Jan-24,1908327101,Veritas Solicitors,1574.93
Manchester City Council,Hospitality + Trading Services,Vehicle Hire Costs,10-Jan-24,5105910124,Verizon Connect UK Ltd,1424.5
Manchester City Council,Chief Executives,Legal Fees,10-Jan-24,5105910114,Waddington & Son Solicitors,2131.25
Manchester City Council,Chief Executives,Legal Fees,10-Jan-24,5105910115,Waddington & Son Solicitors,918.75
Manchester City Council,Chief Executives,Legal Fees,10-Jan-24,5105910132,Waddington & Son Solicitors,1131.25
Manchester City Council,Chief Executives,Legal Fees,10-Jan-24,5105910250,Waddington & Son Solicitors,4790.9
Manchester City Council,Childrens & Education Services,Legal Fees,10-Jan-24,5105910076,Warwickshire County Council,2434.34
Manchester City Council,Chief Executives,Legal Fees,10-Jan-24,5105910010,Weightmans LLP Solicitors,2325.25
Manchester City Council,Chief Executives,Legal Fees,10-Jan-24,5105910023,Weightmans LLP Solicitors,1710.25
Manchester City Council,Chief Executives,Legal Fees,10-Jan-24,5105910074,Weightmans LLP Solicitors,4253.88
Manchester City Council,Childrens & Education Services,Transport Coach Hire,10-Jan-24,5105909982,Youbus Ltd,13112
Manchester City Council,Corporate Services,Landline Telephone,11-Jan-24,5105910236,8x8 UK Ltd,49341.72
Manchester City Council,Hospitality + Trading Services,Professional fees,11-Jan-24,5105910358,Absolute DJs Ltd,25000
Manchester City Council,Adult Social Care,Payments for services,11-Jan-24,5105910451,ACORN Recovery Projects,3321.43
Manchester City Council,Adult Social Care,Payments for services,11-Jan-24,5105910452,ACORN Recovery Projects,3321.43
Manchester City Council,Adult Social Care,Payments for services,11-Jan-24,5105910453,ACORN Recovery Projects,3321.43
Manchester City Council,Adult Social Care,Payments for services,11-Jan-24,5105910454,ACORN Recovery Projects,1500
Manchester City Council,Adult Social Care,Payments for services,11-Jan-24,5105910455,ACORN Recovery Projects,3321.43
Manchester City Council,Adult Social Care,Payments for services,11-Jan-24,5105910456,ACORN Recovery Projects,3321.43
Manchester City Council,Adult Social Care,Payments for services,11-Jan-24,5105910457,ACORN Recovery Projects,4928.57
Manchester City Council,Adult Social Care,Payments for services,11-Jan-24,5105910458,ACORN Recovery Projects,2250
Manchester City Council,Adult Social Care,Payments for services,11-Jan-24,5105910459,ACORN Recovery Projects,1178.57
Manchester City Council,Childrens & Education Services,Transport Coach Hire,11-Jan-24,5105910418,AFJ Ltd,6397.6
Manchester City Council,Hospitality + Trading Services,Goods purchased for resale in Council outlets,11-Jan-24,5105910330,Albert Jones Memorials,6094.8
Manchester City Council,Childrens & Education Services,Professional fees,11-Jan-24,5105910327,Alpha Biolaboratories Limited,775
Manchester City Council,Manchester Leisure,Rents,11-Jan-24,5105909547,Amco Management,44331.83
Manchester City Council,Environment and Operations,Construction Works,11-Jan-24,5105910092,Amey Highways Lighting (Manchester),1858.78
Manchester City Council,Chief Executives,Hire of Equipment,11-Jan-24,5105910195,Arena Group,1755
Manchester City Council,Chief Executives,Hire of Equipment,11-Jan-24,5105910196,Arena Group,1267.5
Manchester City Council,Manchester Leisure,Rents,11-Jan-24,5105910423,Ashley Property services,4320
Manchester City Council,Corporate Services,Radio Charges,11-Jan-24,5105909509,AVOIRA Limited,500
Manchester City Council,Manchester Leisure,Compensation Payments,11-Jan-24,1908329949,Bond Turner Solicitors,1250
Manchester City Council,Manchester Leisure,Works and associated costs for Land and Buildings,11-Jan-24,5105910376,British Cycling Federation,25274.68
Manchester City Council,Adult Social Care,Payments for services,11-Jan-24,5105908738,Brook,44851.65
Manchester City Council,Regeneration Finance,Professional fees,11-Jan-24,5105910029,Capita Property & Infras'ture Ltd,2500
Manchester City Council,Childrens & Education Services,Payments for services,11-Jan-24,5105910320,Care Solutions Recruitment,1038.4
Manchester City Council,Adult Social Care,Personal needs of client,11-Jan-24,5105910339,Careium UK Ltd,3724
Manchester City Council,Highways Services,Professional Fees,11-Jan-24,5105910386,Causeway Technologies Ltd,-1900
Manchester City Council,Adult Social Care,Building Works,11-Jan-24,5105910324,Central Mcr Uni Hospital t/a,144330
Manchester City Council,Manchester Leisure,ICT Sup & Maintnance,11-Jan-24,5105910413,Cobweb Solutions Ltd,2393.6
Manchester City Council,Manchester Leisure,ICT Sup & Maintnance,11-Jan-24,5105910415,Cobweb Solutions Ltd,2426.65
Manchester City Council,Manchester Leisure,ICT Sup & Maintnance,11-Jan-24,5105910416,Cobweb Solutions Ltd,2402.92
Manchester City Council,Corporate Services,CRB Fees,11-Jan-24,5105910409,Complete Background Screening Ltd,733.5
Manchester City Council,Chief Executives,Legal Fees,11-Jan-24,5105910402,Cornerstone Barristers,4116.67
Manchester City Council,Manchester Leisure,Gas,11-Jan-24,1908331084,Corona Energy Ltd,940.99
Manchester City Council,Manchester Leisure,Gas,11-Jan-24,1908331085,Corona Energy Ltd,1188.71
Manchester City Council,Manchester Leisure,Gas,11-Jan-24,1908331087,Corona Energy Ltd,671.7
Manchester City Council,Manchester Leisure,Gas,11-Jan-24,1908331091,Corona Energy Ltd,594.23
Manchester City Council,Manchester Leisure,Gas,11-Jan-24,1908331099,Corona Energy Ltd,860.29
Manchester City Council,Manchester Leisure,Gas,11-Jan-24,1908331108,Corona Energy Ltd,13919.34
Manchester City Council,Manchester Leisure,Gas,11-Jan-24,1908331109,Corona Energy Ltd,938.74
Manchester City Council,Manchester Leisure,Gas,11-Jan-24,1908331112,Corona Energy Ltd,557.66
Manchester City Council,Manchester Leisure,Gas,11-Jan-24,1908331115,Corona Energy Ltd,567.8
Manchester City Council,Manchester Leisure,Gas,11-Jan-24,1908331118,Corona Energy Ltd,3677.41
Manchester City Council,Manchester Leisure,Gas,11-Jan-24,1908331119,Corona Energy Ltd,1197.4
Manchester City Council,Manchester Leisure,Gas,11-Jan-24,1908331120,Corona Energy Ltd,3117.23
Manchester City Council,Manchester Leisure,Gas,11-Jan-24,1908331125,Corona Energy Ltd,583.86
Manchester City Council,Manchester Leisure,Gas,11-Jan-24,1908331128,Corona Energy Ltd,651.56
Manchester City Council,Manchester Leisure,Gas,11-Jan-24,1908331130,Corona Energy Ltd,6644.16
Manchester City Council,Manchester Leisure,Gas,11-Jan-24,1908331131,Corona Energy Ltd,561.14
Manchester City Council,Manchester Leisure,Gas,11-Jan-24,1908331134,Corona Energy Ltd,835.66
Manchester City Council,Manchester Leisure,Gas,11-Jan-24,1908331145,Corona Energy Ltd,723.63
Manchester City Council,Manchester Leisure,Gas,11-Jan-24,1908331150,Corona Energy Ltd,11216.58
Manchester City Council,Manchester Leisure,Gas,11-Jan-24,1908331156,Corona Energy Ltd,2722
Manchester City Council,Manchester Leisure,Gas,11-Jan-24,1908331157,Corona Energy Ltd,602.93
Manchester City Council,Manchester Leisure,Gas,11-Jan-24,1908331223,Corona Energy Ltd,9889.99
Manchester City Council,Manchester Leisure,Gas,11-Jan-24,1908331228,Corona Energy Ltd,2188.41
Manchester City Council,Manchester Leisure,Gas,11-Jan-24,1908331232,Corona Energy Ltd,8730.25
Manchester City Council,Manchester Leisure,Gas,11-Jan-24,1908331234,Corona Energy Ltd,3756.89
Manchester City Council,Manchester Leisure,Gas,11-Jan-24,1908331236,Corona Energy Ltd,3200.13
Manchester City Council,Manchester Leisure,Gas,11-Jan-24,1908331240,Corona Energy Ltd,574.11
Manchester City Council,Manchester Leisure,Gas,11-Jan-24,1908331242,Corona Energy Ltd,6673.85
Manchester City Council,Manchester Leisure,Gas,11-Jan-24,1908331243,Corona Energy Ltd,1169.72
Manchester City Council,Manchester Leisure,Gas,11-Jan-24,1908331246,Corona Energy Ltd,888.68
Manchester City Council,Manchester Leisure,Gas,11-Jan-24,1908331247,Corona Energy Ltd,5301.16
Manchester City Council,Manchester Leisure,Gas,11-Jan-24,1908331248,Corona Energy Ltd,1421.05
Manchester City Council,Manchester Leisure,Gas,11-Jan-24,1908331249,Corona Energy Ltd,3811.64
Manchester City Council,Manchester Leisure,Gas,11-Jan-24,1908331253,Corona Energy Ltd,6458.19
Manchester City Council,Manchester Leisure,Gas,11-Jan-24,1908331254,Corona Energy Ltd,894.59
Manchester City Council,Manchester Leisure,Gas,11-Jan-24,1908331256,Corona Energy Ltd,585.92
Manchester City Council,Manchester Leisure,Gas,11-Jan-24,1908331265,Corona Energy Ltd,1529.58
Manchester City Council,Manchester Leisure,Gas,11-Jan-24,1908331276,Corona Energy Ltd,918.86
Manchester City Council,Manchester Leisure,Gas,11-Jan-24,1908331296,Corona Energy Ltd,1399.99
Manchester City Council,Manchester Leisure,Gas,11-Jan-24,1908331308,Corona Energy Ltd,506.99
Manchester City Council,Manchester Leisure,Gas,11-Jan-24,1908331309,Corona Energy Ltd,1621.62
Manchester City Council,Manchester Leisure,Gas,11-Jan-24,1908331312,Corona Energy Ltd,1483.2
Manchester City Council,Hospitality + Trading Services,Gas,11-Jan-24,1908331111,Corona Energy Ltd,1054.71
Manchester City Council,Hospitality + Trading Services,Gas,11-Jan-24,1908331123,Corona Energy Ltd,6525.59
Manchester City Council,Hospitality + Trading Services,Gas,11-Jan-24,1908331153,Corona Energy Ltd,519.66
Manchester City Council,Hospitality + Trading Services,Gas,11-Jan-24,1908331166,Corona Energy Ltd,667.26
Manchester City Council,Hospitality + Trading Services,Gas,11-Jan-24,1908331283,Corona Energy Ltd,538.08
Manchester City Council,Hospitality + Trading Services,Gas,11-Jan-24,1908331284,Corona Energy Ltd,1018.45
Manchester City Council,Childrens & Education Services,Gas,11-Jan-24,1700164002,Corona Energy Ltd,-503.72
Manchester City Council,Childrens & Education Services,Gas,11-Jan-24,1908331098,Corona Energy Ltd,562.16
Manchester City Council,Childrens & Education Services,Gas,11-Jan-24,1908331113,Corona Energy Ltd,637.22
Manchester City Council,Childrens & Education Services,Gas,11-Jan-24,1908331121,Corona Energy Ltd,978.61
Manchester City Council,Childrens & Education Services,Gas,11-Jan-24,1908331135,Corona Energy Ltd,501.63
Manchester City Council,Childrens & Education Services,Gas,11-Jan-24,1908331171,Corona Energy Ltd,588.2
Manchester City Council,Childrens & Education Services,Gas,11-Jan-24,1908331172,Corona Energy Ltd,922.46
Manchester City Council,Childrens & Education Services,Gas,11-Jan-24,1908331176,Corona Energy Ltd,526.65
Manchester City Council,Childrens & Education Services,Gas,11-Jan-24,1908331179,Corona Energy Ltd,503.72
Manchester City Council,Childrens & Education Services,Gas,11-Jan-24,1908331181,Corona Energy Ltd,984.92
Manchester City Council,Childrens & Education Services,Gas,11-Jan-24,1908331183,Corona Energy Ltd,2653.73
Manchester City Council,Childrens & Education Services,Gas,11-Jan-24,1908331187,Corona Energy Ltd,2009.65
Manchester City Council,Childrens & Education Services,Gas,11-Jan-24,1908331188,Corona Energy Ltd,2998.91
Manchester City Council,Childrens & Education Services,Gas,11-Jan-24,1908331189,Corona Energy Ltd,4217.52
Manchester City Council,Childrens & Education Services,Gas,11-Jan-24,1908331190,Corona Energy Ltd,3647.07
Manchester City Council,Childrens & Education Services,Gas,11-Jan-24,1908331191,Corona Energy Ltd,912.79
Manchester City Council,Childrens & Education Services,Gas,11-Jan-24,1908331192,Corona Energy Ltd,2145.81
Manchester City Council,Childrens & Education Services,Gas,11-Jan-24,1908331219,Corona Energy Ltd,676.67
Manchester City Council,Childrens & Education Services,Gas,11-Jan-24,1908331239,Corona Energy Ltd,713.33
Manchester City Council,Childrens & Education Services,Gas,11-Jan-24,1908331245,Corona Energy Ltd,1385.15
Manchester City Council,Childrens & Education Services,Gas,11-Jan-24,1908331266,Corona Energy Ltd,959.86
Manchester City Council,Childrens & Education Services,Gas,11-Jan-24,1908331315,Corona Energy Ltd,592.39
Manchester City Council,Adult Social Care,Gas,11-Jan-24,1908331169,Corona Energy Ltd,846.32
Manchester City Council,Adult Social Care,Gas,11-Jan-24,1908331299,Corona Energy Ltd,954.04
Manchester City Council,Adult Social Care,Gas,11-Jan-24,1908331316,Corona Energy Ltd,1924.8
Manchester City Council,Corporate Services,Gas,11-Jan-24,1700164008,Corona Energy Ltd,-866.66
Manchester City Council,Corporate Services,Gas,11-Jan-24,1700164009,Corona Energy Ltd,-5077.02
Manchester City Council,Corporate Services,Gas,11-Jan-24,1700164010,Corona Energy Ltd,-913.13
Manchester City Council,Corporate Services,Gas,11-Jan-24,1700164011,Corona Energy Ltd,-1657.23
Manchester City Council,Corporate Services,Gas,11-Jan-24,1700164014,Corona Energy Ltd,-22302.59
Manchester City Council,Corporate Services,Gas,11-Jan-24,1908331094,Corona Energy Ltd,7321.47
Manchester City Council,Corporate Services,Gas,11-Jan-24,1908331096,Corona Energy Ltd,9968.83
Manchester City Council,Corporate Services,Gas,11-Jan-24,1908331097,Corona Energy Ltd,2686.31
Manchester City Council,Corporate Services,Gas,11-Jan-24,1908331101,Corona Energy Ltd,1345.91
Manchester City Council,Corporate Services,Gas,11-Jan-24,1908331104,Corona Energy Ltd,515.98
Manchester City Council,Corporate Services,Gas,11-Jan-24,1908331124,Corona Energy Ltd,1232.56
Manchester City Council,Corporate Services,Gas,11-Jan-24,1908331136,Corona Energy Ltd,799.07
Manchester City Council,Corporate Services,Gas,11-Jan-24,1908331146,Corona Energy Ltd,1361.59
Manchester City Council,Corporate Services,Gas,11-Jan-24,1908331158,Corona Energy Ltd,1956.89
Manchester City Council,Corporate Services,Gas,11-Jan-24,1908331163,Corona Energy Ltd,1741.6
Manchester City Council,Corporate Services,Gas,11-Jan-24,1908331167,Corona Energy Ltd,1374.6
Manchester City Council,Corporate Services,Gas,11-Jan-24,1908331195,Corona Energy Ltd,1610.59
Manchester City Council,Corporate Services,Gas,11-Jan-24,1908331201,Corona Energy Ltd,676.23
Manchester City Council,Corporate Services,Gas,11-Jan-24,1908331202,Corona Energy Ltd,1577.89
Manchester City Council,Corporate Services,Gas,11-Jan-24,1908331203,Corona Energy Ltd,2448.82
Manchester City Council,Corporate Services,Gas,11-Jan-24,1908331204,Corona Energy Ltd,2642.73
Manchester City Council,Corporate Services,Gas,11-Jan-24,1908331205,Corona Energy Ltd,2566.5
Manchester City Council,Corporate Services,Gas,11-Jan-24,1908331209,Corona Energy Ltd,1445.01
Manchester City Council,Corporate Services,Gas,11-Jan-24,1908331210,Corona Energy Ltd,2818.14
Manchester City Council,Corporate Services,Gas,11-Jan-24,1908331212,Corona Energy Ltd,664.88
Manchester City Council,Corporate Services,Gas,11-Jan-24,1908331216,Corona Energy Ltd,1392.48
Manchester City Council,Corporate Services,Gas,11-Jan-24,1908331227,Corona Energy Ltd,818.77
Manchester City Council,Corporate Services,Gas,11-Jan-24,1908331231,Corona Energy Ltd,772.81
Manchester City Council,Corporate Services,Gas,11-Jan-24,1908331251,Corona Energy Ltd,618.06
Manchester City Council,Corporate Services,Gas,11-Jan-24,1908331255,Corona Energy Ltd,1026.37
Manchester City Council,Corporate Services,Gas,11-Jan-24,1908331263,Corona Energy Ltd,1293.87
Manchester City Council,Corporate Services,Gas,11-Jan-24,1908331275,Corona Energy Ltd,954.8
Manchester City Council,Corporate Services,Gas,11-Jan-24,1908331293,Corona Energy Ltd,832.1
Manchester City Council,Corporate Services,Gas,11-Jan-24,1908331297,Corona Energy Ltd,1030.37
Manchester City Council,Corporate Services,Gas,11-Jan-24,1908331300,Corona Energy Ltd,32003.98
Manchester City Council,Corporate Services,Gas,11-Jan-24,1908331301,Corona Energy Ltd,565.04
Manchester City Council,Corporate Services,Gas,11-Jan-24,1908331314,Corona Energy Ltd,1609.42
Manchester City Council,Corporate Services,Gas,11-Jan-24,1908331326,Corona Energy Ltd,912.9
Manchester City Council,Corporate Services,Gas,11-Jan-24,1908331328,Corona Energy Ltd,1354.95
Manchester City Council,Corporate Services,Gas,11-Jan-24,1908331331,Corona Energy Ltd,766.56
Manchester City Council,Corporate Services,Gas,11-Jan-24,1908331335,Corona Energy Ltd,1576.84
Manchester City Council,Corporate Services,Gas,11-Jan-24,1908331339,Corona Energy Ltd,1326.4
Manchester City Council,Housing Revenue Account,Gas,11-Jan-24,1908331106,Corona Energy Ltd,2482.59
Manchester City Council,Housing Revenue Account,Gas,11-Jan-24,1908331107,Corona Energy Ltd,2133.84
Manchester City Council,Housing Revenue Account,Gas,11-Jan-24,1908331126,Corona Energy Ltd,2178.17
Manchester City Council,Housing Revenue Account,Gas,11-Jan-24,1908331144,Corona Energy Ltd,14874.18
Manchester City Council,Housing Revenue Account,Gas,11-Jan-24,1908331149,Corona Energy Ltd,1175.12
Manchester City Council,Housing Revenue Account,Gas,11-Jan-24,1908331152,Corona Energy Ltd,2030.41
Manchester City Council,Housing Revenue Account,Gas,11-Jan-24,1908331164,Corona Energy Ltd,795.88
Manchester City Council,Housing Revenue Account,Gas,11-Jan-24,1908331206,Corona Energy Ltd,2848.96
Manchester City Council,Housing Revenue Account,Gas,11-Jan-24,1908331208,Corona Energy Ltd,2658.62
Manchester City Council,Housing Revenue Account,Gas,11-Jan-24,1908331224,Corona Energy Ltd,2513.38
Manchester City Council,Housing Revenue Account,Gas,11-Jan-24,1908331269,Corona Energy Ltd,905.64
Manchester City Council,Housing Revenue Account,Gas,11-Jan-24,1908331273,Corona Energy Ltd,2900.03
Manchester City Council,Housing Revenue Account,Gas,11-Jan-24,1908331274,Corona Energy Ltd,1972.53
Manchester City Council,Housing Revenue Account,Gas,11-Jan-24,1908331281,Corona Energy Ltd,2347.12
Manchester City Council,Housing Revenue Account,Gas,11-Jan-24,1908331302,Corona Energy Ltd,23273.9
Manchester City Council,Housing Revenue Account,Gas,11-Jan-24,1908331304,Corona Energy Ltd,17185.23
Manchester City Council,Regeneration Finance,Gas,11-Jan-24,1700164012,Corona Energy Ltd,-600.22
Manchester City Council,Regeneration Finance,Gas,11-Jan-24,1700164013,Corona Energy Ltd,-1826.14
Manchester City Council,Regeneration Finance,Gas,11-Jan-24,1908331089,Corona Energy Ltd,587.49
Manchester City Council,Regeneration Finance,Gas,11-Jan-24,1908331193,Corona Energy Ltd,2506.96
Manchester City Council,Regeneration Finance,Gas,11-Jan-24,1908331218,Corona Energy Ltd,3777.17
Manchester City Council,Regeneration Finance,Gas,11-Jan-24,1908331252,Corona Energy Ltd,563.19
Manchester City Council,Regeneration Finance,Gas,11-Jan-24,1908331257,Corona Energy Ltd,601.44
Manchester City Council,Regeneration Finance,Gas,11-Jan-24,1908331259,Corona Energy Ltd,603.46
Manchester City Council,Regeneration Finance,Gas,11-Jan-24,1908331271,Corona Energy Ltd,1779.5
Manchester City Council,Regeneration Finance,Gas,11-Jan-24,1908331277,Corona Energy Ltd,1030.36
Manchester City Council,Regeneration Finance,Gas,11-Jan-24,1908331288,Corona Energy Ltd,1284.37
Manchester City Council,Regeneration Finance,Gas,11-Jan-24,1908331313,Corona Energy Ltd,1231.72
Manchester City Council,Highways Services,Payments to Sub-Contractors,11-Jan-24,5105910027,CW Studio,4500
Manchester City Council,Adult Social Care,Payments for services,11-Jan-24,5105910490,Delphi Medical,570
Manchester City Council,Adult Social Care,Payments for services,11-Jan-24,5105910503,Delphi Medical,3135
Manchester City Council,Adult Social Care,Payments for services,11-Jan-24,5105910505,Delphi Medical,1995
Manchester City Council,Manchester Leisure,Grant and subscriptions awarded,11-Jan-24,5105910501,Didsbury Good Neighbours Ltd,2391.41
Manchester City Council,Corporate Services,CRB Fees,11-Jan-24,5105910352,Disclosure & Barring Service,15310
Manchester City Council,Adult Social Care,Equipment,11-Jan-24,5105910462,Drive Devilbiss Healthcare Ltd,1024.08
Manchester City Council,Hospitality + Trading Services,Floral Decorations,11-Jan-24,5105910340,E Smith & Son (Nurserymen),2586.3
Manchester City Council,Corporate Services,Internal Repairs and Maintenance for buildings,11-Jan-24,5105910378,EQUANS Services Limited,186672.72
Manchester City Council,Corporate Services,WPS Awards,11-Jan-24,5105909964,Furniture Resource Centre Ltd,1264.19
Manchester City Council,Chief Executives,Advertising,11-Jan-24,5105910295,Global Radio Services Ltd,779.17
Manchester City Council,Manchester Leisure,Legal Fees,11-Jan-24,1908329952,Greater Manchester Law Centre,4500
Manchester City Council,Regeneration Finance,Public Transport,11-Jan-24,5105910012,Greater Manchester Travelcards Ltd,8967
Manchester City Council,Regeneration Finance,Public Transport,11-Jan-24,5105910015,Greater Manchester Travelcards Ltd,8967
Manchester City Council,Manchester Leisure,Bed & Breakfast Acc,11-Jan-24,5105910411,Hala Guest House,820
Manchester City Council,Childrens & Education Services,Professional fees,11-Jan-24,5105910388,Home - Start Manchester South,16375
Manchester City Council,Childrens & Education Services,Transport Coach Hire,11-Jan-24,5105910440,Home to School Travel Ltd,8507
Manchester City Council,Manchester Leisure,Rents,11-Jan-24,5105908957,Housing Social Ltd,37756.29
Manchester City Council,Libraries and Theatres,Vehicle Plant Furniture and Equipment,11-Jan-24,5105909124,Insight Direct (Uk) Ltd,1177.6
Manchester City Council,Libraries and Theatres,Vehicle Plant Furniture and Equipment,11-Jan-24,5105909289,Insight Direct (Uk) Ltd,1177.6
Manchester City Council,Libraries and Theatres,Vehicle Plant Furniture and Equipment,11-Jan-24,5105909629,Insight Direct (Uk) Ltd,20442.4
Manchester City Council,Libraries and Theatres,Vehicle Plant Furniture and Equipment,11-Jan-24,5105909647,Insight Direct (Uk) Ltd,932.5
Manchester City Council,Chief Executives,Professional fees,11-Jan-24,1700164018,ISW Assessments Ltd,-2049.35
Manchester City Council,Environment and Operations,Construction Works,11-Jan-24,5105910277,J.Hopkins (Contractors) Ltd.,13950
Manchester City Council,Environment and Operations,Construction Works,11-Jan-24,5105910280,J.Hopkins (Contractors) Ltd.,2033.79
Manchester City Council,Adult Social Care,Payments for services,11-Jan-24,5105910294,Kaleidoscope Project,6720
Manchester City Council,Manchester Leisure,Compensation Payments,11-Jan-24,1908329953,KPHP Limited,1200
Manchester City Council,Corporate Services,Signers/Interpreters,11-Jan-24,5105910315,Language Line Ltd,985.77
Manchester City Council,Adult Social Care,Grant and subscriptions awarded,11-Jan-24,5105910051,LGBT Foundation,4795.25
Manchester City Council,Adult Social Care,Third party payments relating to Voluntary Organisations,11-Jan-24,5105910055,LGBT Foundation,12500
Manchester City Council,Regeneration Finance,Contract Cleaning External,11-Jan-24,5105909467,M & M Cleaning Services Ltd,1235.21
Manchester City Council,Manchester Leisure,Rents,11-Jan-24,5105910354,M&D Residential Ltd,20030.7
Manchester City Council,Corporate Services,Works and associated costs for Land and Buildings,11-Jan-24,5105910304,Mace Ltd,31298
Manchester City Council,Corporate Services,Works and associated costs for Land and Buildings,11-Jan-24,5105910304,Mace Ltd,1875.52
Manchester City Council,Corporate Services,Works and associated costs for Land and Buildings,11-Jan-24,5105910304,Mace Ltd,12039.6
Manchester City Council,Corporate Services,Works and associated costs for Land and Buildings,11-Jan-24,5105910304,Mace Ltd,2250
Manchester City Council,Corporate Services,Works and associated costs for Land and Buildings,11-Jan-24,5105910304,Mace Ltd,10086.15
Manchester City Council,Manchester Leisure,Bed & Breakfast Acc,11-Jan-24,5105910317,Medlock House Ltd,8673
Manchester City Council,Manchester Leisure,Bed & Breakfast Acc,11-Jan-24,5105910321,Medlock House Ltd,8624
Manchester City Council,Corporate Services,Grant and subscriptions awarded,11-Jan-24,5105910377,MetaCompliance,30536.75
Manchester City Council,Adult Social Care,Rents,11-Jan-24,5105910257,Mosscare Housing Ltd,25790.28
Manchester City Council,Highways Services,Professional Fees,11-Jan-24,5105910496,Mott Macdonald Uk Limited,20627.79
Manchester City Council,Manchester Leisure,Third party payments relating to Voluntary Organisations,11-Jan-24,5105908734,Nacro,117306
Manchester City Council,Manchester Leisure,Special Event,11-Jan-24,5105910291,NASIMA J DUNNE LTD,3020.14
Manchester City Council,Manchester Leisure,Compensation Payments,11-Jan-24,1908329955,New Law Solicitors,1146
Manchester City Council,Childrens & Education Services,Supported Accommodation,11-Jan-24,1908331007,Northern Community Pathways,4777.54
Manchester City Council,Corporate Services,Travel Season TLS,11-Jan-24,5105909191,Northern Trains Limited,1186.8
Manchester City Council,Manchester Leisure,Mobilephone Charges,11-Jan-24,5105910290,O2 (UK) Ltd,2177.13
Manchester City Council,Hospitality + Trading Services,Goods purchased for resale in Council outlets,11-Jan-24,5105910359,Obitus,1965
Manchester City Council,Childrens & Education Services,Professional fees,11-Jan-24,5105910309,One Education Ltd,523
Manchester City Council,Corporate Services,Works and associated costs for Land and Buildings,11-Jan-24,5105910278,Ove Arup & Partners Ltd,14355
Manchester City Council,Corporate Services,Works and associated costs for Land and Buildings,11-Jan-24,5105910279,Ove Arup & Partners Ltd,6294
Manchester City Council,Corporate Services,Works and associated costs for Land and Buildings,11-Jan-24,5105910301,Ove Arup & Partners Ltd,2797.5
Manchester City Council,Corporate Services,Works and associated costs for Land and Buildings,11-Jan-24,5105910302,Ove Arup & Partners Ltd,8587.5
Manchester City Council,Corporate Services,Works and associated costs for Land and Buildings,11-Jan-24,5105910303,Ove Arup & Partners Ltd,10394.8
Manchester City Council,Regeneration Finance,External repairs and maintenance for buildings,11-Jan-24,5105909171,P Mcguinness & Co Ltd,860
Manchester City Council,Manchester Leisure,Grant and subscriptions awarded,11-Jan-24,5105910360,People Place Planet Didsbury,1000
Manchester City Council,Manchester Leisure,Professional fees,11-Jan-24,5105910286,Pinnacle Building and Surveying,550
Manchester City Council,Regeneration Finance,Planning Invalid,11-Jan-24,1908325833,PortalPlanQuest Ltd,578
Manchester City Council,Corporate Services,Works and associated costs for Land and Buildings,11-Jan-24,5105910308,Purcell Architecture Limited,7000
Manchester City Council,Corporate Services,Works and associated costs for Land and Buildings,11-Jan-24,5105910312,Purcell Architecture Limited,35000
Manchester City Council,Childrens & Education Services,Transport Coach Hire,11-Jan-24,5105910476,Redacted Personal Information,4940
Manchester City Council,Childrens & Education Services,Transport Coach Hire,11-Jan-24,5105910478,Redacted Personal Information,4680
Manchester City Council,Chief Executives,Legal Fees,11-Jan-24,5105910474,Redacted Personal Information,1566
Manchester City Council,Childrens & Education Services,Transport Coach Hire,11-Jan-24,5105910414,Redacted Personal Information,16546
Manchester City Council,Regeneration Finance,Professional fees,11-Jan-24,5105910333,Redacted Personal Information,40000
Manchester City Council,Childrens & Education Services,Professional fees,11-Jan-24,1908332057,Redacted Personal Information,690.5
Manchester City Council,Adult Social Care,Counsel Costs,11-Jan-24,5105910464,Redacted Personal Information,587.5
Manchester City Council,Manchester Leisure,Special Event,11-Jan-24,5105910216,Redacted Personal Information,644.53
Manchester City Council,Libraries and Theatres,Works and associated costs for Land and Buildings,11-Jan-24,5105909900,Robertson Construction Group,24727.29
Manchester City Council,Corporate Services,Postage,11-Jan-24,5105909913,Royal Mail Group Plc,906.13
Manchester City Council,Corporate Services,Postage,11-Jan-24,5105910276,Royal Mail Group Plc,8868.08
Manchester City Council,Manchester Leisure,Furniture,11-Jan-24,5105910319,Rtech Group Limited,637.5
Manchester City Council,Manchester Leisure,Furniture,11-Jan-24,5105910466,Rtech Group Limited,2795.84
Manchester City Council,Manchester Leisure,Furniture,11-Jan-24,5105910511,Rtech Group Limited,8208.34
Manchester City Council,Chief Executives,Legal Fees,11-Jan-24,5105910357,Russell & Russell Solicitors LLP,4192.75
Manchester City Council,Chief Executives,Legal Fees,11-Jan-24,5105910371,Russell & Russell Solicitors LLP,6229.17
Manchester City Council,Chief Executives,Legal Fees,11-Jan-24,5105910372,Russell & Russell Solicitors LLP,2793.75
Manchester City Council,Chief Executives,Legal Fees,11-Jan-24,5105910374,Russell & Russell Solicitors LLP,4011.75
Manchester City Council,Chief Executives,Legal Fees,11-Jan-24,5105910375,Russell & Russell Solicitors LLP,4171.75
Manchester City Council,Chief Executives,Legal Fees,11-Jan-24,5105910410,Russell & Russell Solicitors LLP,3778.55
Manchester City Council,Chief Executives,Legal Fees,11-Jan-24,5105910431,Russell & Russell Solicitors LLP,5596.25
Manchester City Council,Chief Executives,Legal Fees,11-Jan-24,5105910433,Russell & Russell Solicitors LLP,3722.35
Manchester City Council,Chief Executives,Legal Fees,11-Jan-24,5105910434,Russell & Russell Solicitors LLP,3866.66
Manchester City Council,Chief Executives,Legal Fees,11-Jan-24,5105910435,Russell & Russell Solicitors LLP,2421.55
Manchester City Council,Chief Executives,Legal Fees,11-Jan-24,5105910436,Russell & Russell Solicitors LLP,5949.66
Manchester City Council,Chief Executives,Legal Fees,11-Jan-24,5105910492,Russell & Russell Solicitors LLP,5896.25
Manchester City Council,Chief Executives,Legal Fees,11-Jan-24,5105910495,Russell & Russell Solicitors LLP,6468.75
Manchester City Council,Regeneration Finance,Professional fees,11-Jan-24,5105910449,Savills (UK) Ltd,11689
Manchester City Council,Childrens & Education Services,Payments for services,11-Jan-24,5105910482,Sendcode CIC,2196.92
Manchester City Council,Adult Social Care,External repairs and maintenance for buildings,11-Jan-24,5105910201,Sheridan Lifts Ltd,9215.19
Manchester City Council,Adult Social Care,Equipment,11-Jan-24,5105910437,Smitcare Ltd,4950
Manchester City Council,Adult Social Care,Equipment,11-Jan-24,5105910438,Smitcare Ltd,2954
Manchester City Council,Adult Social Care,Personal needs of client,11-Jan-24,5105910439,Smitcare Ltd,669.9
Manchester City Council,Childrens & Education Services,Home Care ,11-Jan-24,5105910396,SRA Cover Staff Ltd,661.2
Manchester City Council,Childrens & Education Services,Home Care ,11-Jan-24,5105910398,SRA Cover Staff Ltd,604.88
Manchester City Council,Highways Services,Vehicle Fuel Costs,11-Jan-24,5105910512,Standard Fuels Oils,932.88
Manchester City Council,Corporate Services,Works and associated costs for Land and Buildings,11-Jan-24,5105910203,Strata Consulting Ltd,550
Manchester City Council,Adult Social Care,External repairs and maintenance for buildings,11-Jan-24,5105910207,T F Jones Property Services Ltd,688.89
Manchester City Council,Corporate Services,Rents,11-Jan-24,1908330365,Tesco (Rent Only),3116.4
Manchester City Council,Chief Executives,Vehicle Plant Furniture and Equipment,11-Jan-24,5105910270,The Networking People (TNP) Ltd,1962.5
Manchester City Council,Manchester Leisure,Catering,11-Jan-24,5105910510,The Pavilion,950
Manchester City Council,Highways Services,Payments to Sub-Contractors,11-Jan-24,5105910133,ThinkProject UK Limited,13770
Manchester City Council,Childrens & Education Services,Payments for services,11-Jan-24,5105910316,Time Specialist Support Ltd,2764.16
Manchester City Council,Regeneration Finance,Contract Cleaning External,11-Jan-24,5105909974,Time-Out Cleaning Services,3460.73
Manchester City Council,Corporate Services,Travel Season TLS,11-Jan-24,5105910243,Transport for Greater Manchester,608.4
Manchester City Council,Manchester Leisure,Counsel Costs,11-Jan-24,1908329950,Trinity Chambers,1200
Manchester City Council,Chief Executives,Counsel Costs,11-Jan-24,1908329947,Trinity Chambers,1250
Manchester City Council,Highways Services,Payments to Sub-Contractors,11-Jan-24,5105910134,Trinity House Community Resource Ce,525
Manchester City Council,Adult Social Care,Payments for services,11-Jan-24,5105910292,Turning Point,11130
Manchester City Council,Manchester Leisure,Professional fees,11-Jan-24,5105910329,UNIQUE SPECIALIST SERVICES,624
Manchester City Council,Regeneration Finance,Taxi Vehicle Materia,11-Jan-24,5105910400,VIP-System Ltd,661.6
Manchester City Council,Regeneration Finance,Taxi Vehicle Materia,11-Jan-24,5105910412,VIP-System Ltd,1148.8
Manchester City Council,Manchester Leisure,Third party payments relating to Voluntary Organisations,11-Jan-24,5105910288,VSP BEAUCLIFFE LTD,5115
Manchester City Council,Manchester Leisure,Rents,11-Jan-24,5105910508,VSPG Housing Ltd,11430
Manchester City Council,Chief Executives,Legal Fees,11-Jan-24,5105910362,Waddington & Son Solicitors,1168.75
Manchester City Council,Chief Executives,Legal Fees,11-Jan-24,5105910367,Waddington & Son Solicitors,618.75
Manchester City Council,Chief Executives,Legal Fees,11-Jan-24,5105910489,Waddington & Son Solicitors,768.75
Manchester City Council,Housing Revenue Account,Works and associated costs for Land and Buildings,11-Jan-24,5105910373,Warden Construction Ltd,12908.81
Manchester City Council,Chief Executives,Legal Fees,11-Jan-24,5105910282,Warwickshire County Council,3051.57
Manchester City Council,Chief Executives,Legal Fees,11-Jan-24,5105910284,Warwickshire County Council,1772.47
Manchester City Council,Chief Executives,Legal Fees,11-Jan-24,5105910481,Warwickshire County Council,1489.26
Manchester City Council,Childrens & Education Services,Water - Metered,11-Jan-24,1908331323,Water Plus Limited,2198.88
Manchester City Council,Chief Executives,Legal Fees,11-Jan-24,5105910370,Weightmans LLP Solicitors,916.25
Manchester City Council,Chief Executives,Legal Fees,11-Jan-24,5105910391,Weightmans LLP Solicitors,546
Manchester City Council,Chief Executives,Legal Fees,11-Jan-24,5105910393,Weightmans LLP Solicitors,4385.75
Manchester City Council,Chief Executives,Legal Fees,11-Jan-24,5105910424,Weightmans LLP Solicitors,3403.78
Manchester City Council,Chief Executives,Legal Fees,11-Jan-24,5105910445,Weightmans LLP Solicitors,4108.5
Manchester City Council,Chief Executives,Legal Fees,11-Jan-24,5105910470,Weightmans LLP Solicitors,868
Manchester City Council,Childrens & Education Services,Rents,11-Jan-24,1908329930,WT Gunson,8993.63
Manchester City Council,Adult Social Care,Third party payments relating to Voluntary Organisations,11-Jan-24,5105910232,Wythenshawe Community Housing Group,4550.91
Manchester City Council,Adult Social Care,Third party payments relating to Voluntary Organisations,11-Jan-24,5105910364,Wythenshawe Community Housing Group,4550.91
Manchester City Council,Adult Social Care,Third party payments relating to Voluntary Organisations,11-Jan-24,5105910369,Wythenshawe Community Housing Group,4550.91
Manchester City Council,Adult Social Care,Third party payments relating to Voluntary Organisations,11-Jan-24,5105910384,Wythenshawe Community Housing Group,14656.26
Manchester City Council,Corporate Services,Grant Payments,11-Jan-24,1908332059,ZOOM.US 888-799-9666,1998
Manchester City Council,Manchester Leisure,Rents,12-Jan-24,5105909598,Accommodation Links Ltd,90408.86
Manchester City Council,Childrens & Education Services,Compensation Payments,12-Jan-24,1908332090,Aequitas Legal,80000
Manchester City Council,Childrens & Education Services,Transport Taxis,12-Jan-24,5105910513,Alt Payee Acorn Care & Education,2320
Manchester City Council,Manchester Leisure,Cash Collection,12-Jan-24,5105910499,APCOA PARKING UK Ltd,23494.51
Manchester City Council,Manchester Leisure,Cleaning Equipment and Materials,12-Jan-24,5105910245,Arrow County Supplies,503.18
Manchester City Council,Manchester Leisure,Cleaning Equipment and Materials,12-Jan-24,5105910306,Arrow County Supplies,-1027.34
Manchester City Council,Adult Social Care,Cleaning Equipment and Materials,12-Jan-24,5105910644,Arrow County Supplies,-681.37
Manchester City Council,Highways Services,Professional Fees,12-Jan-24,5105910584,Balfour Beatty Living Places Ltd,51749.46
Manchester City Council,Regeneration Finance,Refuse Collection,12-Jan-24,5105909370,Biffa Municipal Limited,507.29
Manchester City Council,Environment and Operations,Works and associated costs for Land and Buildings,12-Jan-24,5105908756,Blacklime Graphics,1738
Manchester City Council,Childrens & Education Services,Contract Cleaning External,12-Jan-24,5105910531,Brighter Beginnings (Charlestown),2231.25
Manchester City Council,Childrens & Education Services,Contract Cleaning External,12-Jan-24,5105910518,Brighter Beginnings (Newton Heath),2231.25
Manchester City Council,Childrens & Education Services,Contract Cleaning External,12-Jan-24,5105910516,Brighter Beginnings Day Nursery,2231.25
Manchester City Council,Childrens & Education Services,Contract Cleaning External,12-Jan-24,5105910519,Brighter Beginnings Day Nursery,1673.43
Manchester City Council,Chief Executives,Professional Fees,12-Jan-24,5105909657,Caci Ltd,3150
Manchester City Council,Corporate Services,Agency staff provision,12-Jan-24,5105909358,Cadence Resourcing Ltd,29780.67
Manchester City Council,Childrens & Education Services,Carer Support Payments ,12-Jan-24,5105910684,Care Solutions Recruitment,10233.2
Manchester City Council,Adult Social Care,Third party payments to Health Authority,12-Jan-24,5105910604,Central Mcr Uni Hospital t/a,-43755.31
Manchester City Council,Manchester Leisure,Equipment,12-Jan-24,5105909933,Cromwell Polythene Limited,9800
Manchester City Council,Manchester Leisure,Rents,12-Jan-24,5105910560,Cromwood Ltd,148885.23
Manchester City Council,Manchester Leisure,Professional Fees,12-Jan-24,5105909671,DASCO Construction Limited,1345.45
Manchester City Council,Manchester Leisure,Rents,12-Jan-24,5105910585,Devon Homes,39810
Manchester City Council,Childrens & Education Services,Rents,12-Jan-24,5105910323,Diocese of Salford,7604.39
Manchester City Council,Childrens & Education Services,Transport Coach Hire,12-Jan-24,5105910631,DM Travel,3920
Manchester City Council,Environment and Operations,Construction Works,12-Jan-24,5105909956,Eric Wright Civil Engineering Limit,234802.27
Manchester City Council,Corporate Services,Works and associated costs for Land and Buildings,12-Jan-24,5105910533,Eversheds Llp,19218
Manchester City Council,Corporate Services,Works and associated costs for Land and Buildings,12-Jan-24,5105910534,Eversheds Llp,13005
Manchester City Council,Highways Services,Payments to Sub-Contractors,12-Jan-24,5105909623,Fairway Landscapes Ltd,6091.37
Manchester City Council,Chief Executives,Advertising,12-Jan-24,5105910527,Fonemedia Limited,6000
Manchester City Council,Hospitality + Trading Services,Funeral and coroner related services,12-Jan-24,5105910575,G E Robinson & Co Ltd,2794.29
Manchester City Council,Hospitality + Trading Services,Funeral and coroner related services,12-Jan-24,5105910576,G E Robinson & Co Ltd,2891.75
Manchester City Council,Insurance Fund,Insurance,12-Jan-24,5105910638,Gallagher Bassett International Ltd,1730
Manchester City Council,Chief Executives,Advertising,12-Jan-24,5105910530,Global Radio Services Ltd,544.77
Manchester City Council,Manchester Leisure,Third party payments relating to Voluntary Organisations,12-Jan-24,5105910623,Greater Manchester Immigration Aid,8158
Manchester City Council,Manchester Leisure,Refuse Collection,12-Jan-24,5105909927,GTS Steam Cleaners,602
Manchester City Council,Housing General Fund,Building Works,12-Jan-24,1908332269,Hoist & Shower Chair Company,2793
Manchester City Council,Housing General Fund,Building Works,12-Jan-24,1908332270,Hoist & Shower Chair Company,2968
Manchester City Council,Manchester Leisure,Rents,12-Jan-24,5105910238,Houses4Homes 4U Ltd,9026
Manchester City Council,Manchester Leisure,Rents,12-Jan-24,5105910389,Houses4Homes 4U Ltd,-9026
Manchester City Council,Manchester Leisure,Rents,12-Jan-24,5105910390,Houses4Homes 4U Ltd,9026
Manchester City Council,Environment and Operations,Construction Works,12-Jan-24,5105910006,IDS Land Survey,1400
Manchester City Council,Childrens & Education Services,Personal needs of client,12-Jan-24,1908311217,Jigsaw Homes North West,2105.37
Manchester City Council,Hospitality + Trading Services,Building Works,12-Jan-24,1908332511,Khanjra International Foods Ltd,247500
Manchester City Council,Adult Social Care,Counsel Costs,12-Jan-24,5105910616,Kings Chambers,500
Manchester City Council,Childrens & Education Services,Transport Coach Hire,12-Jan-24,5105909114,Liddle Hackney Carriage,3300
Manchester City Council,Manchester Leisure,Refuse Collection,12-Jan-24,5105910314,Manchester Active,60000
Manchester City Council,Manchester Leisure,Payments for services,12-Jan-24,5105910318,Manchester Active,98000
Manchester City Council,Regeneration Finance,Transport Taxis,12-Jan-24,5105910619,MCR Blackcab Ltd,1993.4
Manchester City Council,Chief Executives,Advertising,12-Jan-24,5105910571,MediaCo Outdoor Limited,900
Manchester City Council,Manchester Leisure,Special Event,12-Jan-24,5105910379,National Football Museum,4250
Manchester City Council,Corporate Services,Agency staff provision,12-Jan-24,5105910583,NES UK Limited,17847.4
Manchester City Council,Chief Executives,Counsel Costs,12-Jan-24,1908330360,New Bailey Chambers,500
Manchester City Council,Manchester Leisure,Grant and subscriptions awarded,12-Jan-24,5105910703,North West Media Ltd,4719
Manchester City Council,Adult Social Care,Third party payments to Health Authority,12-Jan-24,5105910217,Northenden Group Practice,22500
Manchester City Council,Adult Social Care,Equipment,12-Jan-24,5105909987,NRS Healthcare,1920
Manchester City Council,Manchester Leisure,Mobilephone Charges,12-Jan-24,1908332513,O2 (UK) Ltd,2445.58
Manchester City Council,Adult Social Care,Equipment,12-Jan-24,5105910366,Osprey Healthcare Ltd,3540
Manchester City Council,Manchester Leisure,Compensation Payments,12-Jan-24,1908332091,Peasegoods,500
Manchester City Council,Adult Social Care,Payments for services,12-Jan-24,5105910541,Phoenix Futures,5757.14
Manchester City Council,Adult Social Care,Payments for services,12-Jan-24,5105910543,Phoenix Futures,8857.14
Manchester City Council,Adult Social Care,Payments for services,12-Jan-24,5105910546,Phoenix Futures,600
Manchester City Council,Adult Social Care,Payments for services,12-Jan-24,5105910546,Phoenix Futures,5600
Manchester City Council,Corporate Services,Works and associated costs for Land and Buildings,12-Jan-24,5105910307,Planit,6641.25
Manchester City Council,Corporate Services,Works and associated costs for Land and Buildings,12-Jan-24,5105910621,Planit,-6641.25
Manchester City Council,Corporate Services,Works and associated costs for Land and Buildings,12-Jan-24,5105910622,Planit,3360
Manchester City Council,Corporate Services,Works and associated costs for Land and Buildings,12-Jan-24,5105910622,Planit,3281.25
Manchester City Council,Adult Social Care,Professional fees,12-Jan-24,5105910500,Prepaid Financial Services Limited,1543.4
Manchester City Council,Housing Revenue Account,Council Dwelling Adaptations,12-Jan-24,5105910692,Pts Plumbing Trade Supplies,9843.39
Manchester City Council,Housing Revenue Account,Council Dwelling Adaptations,12-Jan-24,5105910694,Pts Plumbing Trade Supplies,7750.23
Manchester City Council,Chief Executives,Advertising,12-Jan-24,5105910574,Reach Publishing Services Ltd,3929.44
Manchester City Council,Manchester Leisure,Bed & Breakfast Acc,12-Jan-24,5105910570,Redacted Personal Information,12586
Manchester City Council,Manchester Leisure,Bed & Breakfast Acc,12-Jan-24,5105910581,Redacted Personal Information,6636
Manchester City Council,Corporate Services,Agency staff provision,12-Jan-24,5105910636,Redacted Personal Information,5838.6
Manchester City Council,Chief Executives,Counsel Costs,12-Jan-24,1908332088,Redacted Personal Information,2225
Manchester City Council,Corporate Services,Professional Fees,12-Jan-24,5105910634,Resulting Limited,9750
Manchester City Council,Highways Services,Payments to Sub-Contractors,12-Jan-24,5105910538,Rhodes and Sons Construction Ltd,3392.35
Manchester City Council,Highways Services,Payments to Sub-Contractors,12-Jan-24,5105908835,Rosgal Ltd,19256.5
Manchester City Council,Highways Services,Payments to Sub-Contractors,12-Jan-24,5105908837,Rosgal Ltd,12787.5
Manchester City Council,Childrens & Education Services,Payments for services,12-Jan-24,5105910675,Seashell trust,594.5
Manchester City Council,Manchester Leisure,Seconded Employees,12-Jan-24,5105909891,Skills and Work Solutions,3025.58
Manchester City Council,Adult Social Care,Payments for services,12-Jan-24,5105910553,Somewhere House Ltd,3199.84
Manchester City Council,Hospitality + Trading Services,Vehicle Fuel Costs,12-Jan-24,5105909373,Standard Fuels Oils,932.88
Manchester City Council,Hospitality + Trading Services,Vehicle Fuel Costs,12-Jan-24,5105910509,Standard Fuels Oils,-932.88
Manchester City Council,Housing General Fund,Building Works,12-Jan-24,1908332266,Stannah Lift Services Ltd,720
Manchester City Council,Housing General Fund,Building Works,12-Jan-24,1908332268,Stannah Lift Services Ltd,3694
Manchester City Council,Corporate Services,Works and associated costs for Land and Buildings,12-Jan-24,5105910385,Stellar Network Solutions Ltd,785
Manchester City Council,Regeneration Finance,Professional fees,12-Jan-24,5105910336,Tep-The Environment Partnership,7840
Manchester City Council,Manchester Leisure,Grant and subscriptions awarded,12-Jan-24,5105910593,The Pavilion,640
Manchester City Council,Corporate Services,Travel Season TLS,12-Jan-24,5105910493,Transport for Greater Manchester,1038.6
Manchester City Council,Housing General Fund,Building Works,12-Jan-24,1908332267,UPS Building & Maintenance Ltd,19446.65
Manchester City Council,Chief Executives,I T Provision,12-Jan-24,5105910540,Verint Systems UK Ltd,-3080.01
Manchester City Council,Chief Executives,Licences Purchase,12-Jan-24,5105910542,Verint Systems UK Ltd,3080.01
Manchester City Council,Manchester Leisure,Third party payments relating to Voluntary Organisations,12-Jan-24,5105908951,Walk The Plank Ltd,34571
Manchester City Council,Highways Services,Professional fees,12-Jan-24,5105908728,Waterman Aspen Ltd,-17988.44
Manchester City Council,Highways Services,Professional fees,12-Jan-24,5105910429,Waterman Aspen Ltd,6312.31
Manchester City Council,Highways Services,Professional fees,12-Jan-24,5105910430,Waterman Aspen Ltd,6890.63
Manchester City Council,Highways Services,Professional fees,12-Jan-24,5105910442,Waterman Aspen Ltd,3565.5
Manchester City Council,Highways Services,Professional fees,12-Jan-24,5105910443,Waterman Aspen Ltd,6798
Manchester City Council,Highways Services,Professional fees,12-Jan-24,5105910446,Waterman Aspen Ltd,-4031.25
Manchester City Council,Corporate Services,Contract Cleaning External,12-Jan-24,5105910000,Westgrove Support Services Ltd,9808.77
Manchester City Council,Adult Social Care,Payments for services,12-Jan-24,5105910539,Yeldall Manor,1750
Manchester City Council,Chief Executives,Counsel Costs,15-Jan-24,1908327117,18 St John Street Chambers,650
Manchester City Council,Chief Executives,Counsel Costs,15-Jan-24,1908327119,18 St John Street Chambers,650
Manchester City Council,Manchester Leisure,Bed & Breakfast Acc,15-Jan-24,5105910845,247Hotel.Com,2907.5
Manchester City Council,Childrens & Education Services,Payments for services,15-Jan-24,5105910848,4CT Limited,21676.38
Manchester City Council,Childrens & Education Services,Payments for services,15-Jan-24,5105910818,A S K Healthcare Ltd,8464
Manchester City Council,Childrens & Education Services,Transport Coach Hire,15-Jan-24,5105910428,AA Buses,5236
Manchester City Council,Corporate Services,Agency staff provision,15-Jan-24,5105909945,Access Computer Consulting plc,9606.78
Manchester City Council,Childrens & Education Services,Grant and subscriptions awarded,15-Jan-24,1908332093,Across Ummah,9487
Manchester City Council,Chief Executives,Professional fees,15-Jan-24,1908330361,Advanced Child Care Assessments,1848.5
Manchester City Council,Corporate Services,Subsistence and Conference Expenses,15-Jan-24,1908332103,Alarm,690
Manchester City Council,Manchester Leisure,Compensation Payments,15-Jan-24,1908332507,Antony Hodari Holding Ltd,6500
Manchester City Council,Manchester Leisure,Building Materials for direct delivery,15-Jan-24,5105910341,Arboricultural Services Treework,4150
Manchester City Council,Manchester Leisure,Payments to Sub-Contractors,15-Jan-24,5105910350,Arboricultural Services Treework,10250
Manchester City Council,Manchester Leisure,Payments to Sub-Contractors,15-Jan-24,5105910826,Arboricultural Services Treework,6240
Manchester City Council,Manchester Leisure,Payments to Sub-Contractors,15-Jan-24,5105910828,Arboricultural Services Treework,840
Manchester City Council,Corporate Services,Grounds Maintenance,15-Jan-24,5105910346,Arboricultural Services Treework,3000
Manchester City Council,Corporate Services,Grounds Maintenance,15-Jan-24,5105910348,Arboricultural Services Treework,2000
Manchester City Council,Corporate Services,Grounds Maintenance,15-Jan-24,5105910617,Arboricultural Services Treework,950
Manchester City Council,Manchester Leisure,Grant Payments,15-Jan-24,5105910750,Art UK,1500
Manchester City Council,Manchester Leisure,Rents,15-Jan-24,5105910740,B & A Properties,600
Manchester City Council,Chief Executives,Equipment,15-Jan-24,5105910091,Bennett Workplace Solutions Ltd,655.99
Manchester City Council,Manchester Leisure,Refuse Collection,15-Jan-24,5105909158,Biffa Municipal Limited,58432.58
Manchester City Council,Housing Revenue Account,Council Dwelling Adaptations,15-Jan-24,5105910700,British Gas Social Housing Ltd,4393.9
Manchester City Council,Housing Revenue Account,Council Dwelling Adaptations,15-Jan-24,5105910731,British Gas Social Housing Ltd,20808.32
Manchester City Council,Housing Revenue Account,Council Dwelling Adaptations,15-Jan-24,5105910732,British Gas Social Housing Ltd,6181.84
Manchester City Council,Housing Revenue Account,Council Dwelling Adaptations,15-Jan-24,5105910733,British Gas Social Housing Ltd,1849.02
Manchester City Council,Housing Revenue Account,Council Dwelling Adaptations,15-Jan-24,5105910734,British Gas Social Housing Ltd,1753.47
Manchester City Council,Housing Revenue Account,Council Dwelling Adaptations,15-Jan-24,5105910735,British Gas Social Housing Ltd,10650.25
Manchester City Council,Manchester Leisure,Grant and subscriptions awarded,15-Jan-24,5105910840,Brooklands Church of The Nazarene,1130.99
Manchester City Council,Childrens & Education Services,Subsistence and Conference Expenses,15-Jan-24,5105909398,Career Connect,62311.76
Manchester City Council,Chief Executives,Counsel Costs,15-Jan-24,1908327113,Central Chambers,1800
Manchester City Council,Chief Executives,Counsel Costs,15-Jan-24,1908327116,Central Chambers,800
Manchester City Council,Manchester Leisure,Training and Development,15-Jan-24,5105910310,Chartered Institute of Housing,3275
Manchester City Council,Manchester Leisure,Environmental Services,15-Jan-24,5105910744,Chubb  Systems Limited,575.32
Manchester City Council,Childrens & Education Services,Transport Coach Hire,15-Jan-24,5105910719,Club Radio Cars Manchester Ltd,5454
Manchester City Council,Manchester Leisure,Contract Cleaning External,15-Jan-24,5105910580,CPD Property Services,595
Manchester City Council,Childrens & Education Services,Transport Coach Hire,15-Jan-24,5105910766,Cresta Car Hire,1680
Manchester City Council,Childrens & Education Services,Transport Coach Hire,15-Jan-24,5105910767,Cresta Car Hire,1015
Manchester City Council,Childrens & Education Services,Transport Coach Hire,15-Jan-24,5105910768,Cresta Car Hire,660
Manchester City Council,Childrens & Education Services,Transport Coach Hire,15-Jan-24,5105910769,Cresta Car Hire,1638
Manchester City Council,Childrens & Education Services,Transport Coach Hire,15-Jan-24,5105910820,Cresta Car Hire,768
Manchester City Council,Childrens & Education Services,Transport Coach Hire,15-Jan-24,5105910844,Cresta Car Hire,806
Manchester City Council,Childrens & Education Services,Transport Coach Hire,15-Jan-24,5105910885,Cresta Car Hire,513
Manchester City Council,Manchester Leisure,Rents,15-Jan-24,5105910781,District Homes Cic,5859.96
Manchester City Council,Adult Social Care,Equipment,15-Jan-24,5105910406,Drive Devilbiss Healthcare Ltd,905
Manchester City Council,Adult Social Care,Equipment,15-Jan-24,5105910408,Drive Devilbiss Healthcare Ltd,5463
Manchester City Council,Hospitality + Trading Services,Floral Decorations,15-Jan-24,5105910347,E Smith & Son (Nurserymen),2140.9
Manchester City Council,Manchester Leisure,Rents,15-Jan-24,5105910850,Eeven Homes Ltd.,17738
Manchester City Council,Corporate Services,Internal Repairs and Maintenance for buildings,15-Jan-24,5105909592,EQUANS Services Limited,327309.86
Manchester City Council,Environment and Operations,Construction Works,15-Jan-24,5105909957,Eric Wright Civil Engineering Limit,43510.63
Manchester City Council,Chief Executives,Vehicle Plant Furniture and Equipment,15-Jan-24,5105910803,euNetworks The Loop Limited,800
Manchester City Council,Childrens & Education Services,Payments for services,15-Jan-24,5105910813,Fairfield Care Ltd,5182.16
Manchester City Council,Childrens & Education Services,Payments for services,15-Jan-24,5105910814,Fairfield Care Ltd,1995.84
Manchester City Council,Childrens & Education Services,Payments for services,15-Jan-24,5105910815,Fairfield Care Ltd,1942.84
Manchester City Council,Corporate Services,Refuse Collection,15-Jan-24,1908332260,Flint Bishop LLP,549.88
Manchester City Council,Corporate Services,Hire of Equipment,15-Jan-24,5105910461,Flowbird Smart City Uk Ltd,3824
Manchester City Council,Manchester Leisure,Grant and subscriptions awarded,15-Jan-24,5105910788,Friends of Didsbury Park,975
Manchester City Council,Corporate Services,WPS Awards,15-Jan-24,5105910797,Furniture Resource Centre Ltd,962.18
Manchester City Council,Corporate Services,WPS Awards,15-Jan-24,5105910800,Furniture Resource Centre Ltd,634.51
Manchester City Council,Corporate Services,WPS Awards,15-Jan-24,5105910849,Furniture Resource Centre Ltd,568.05
Manchester City Council,Corporate Services,Agency staff provision,15-Jan-24,5105909971,G2V Recruitment Grp t/a Vivid Resou,7500
Manchester City Council,General Fund,Levies,15-Jan-24,,GMCA,3905500
Manchester City Council,Childrens & Education Services,Catering,15-Jan-24,5105910792,Greenwich Leisure Limited,787.2
Manchester City Council,Corporate Services,Works and associated costs for Land and Buildings,15-Jan-24,5105910748,GVA Grimley Ltd,518.66
Manchester City Council,Corporate Services,Works and associated costs for Land and Buildings,15-Jan-24,5105910761,GVA Grimley Ltd,1250
Manchester City Council,Adult Social Care,Third party payments relating to Voluntary Organisations,15-Jan-24,5105908961,Healthwatch Manchester,36750
Manchester City Council,Chief Executives,Counsel Costs,15-Jan-24,1908327115,Holborn Chambers,751
Manchester City Council,Manchester Leisure,Rents,15-Jan-24,5105910745,Houses4Homes 4U Ltd,9026
Manchester City Council,Corporate Services,I T Provision,15-Jan-24,5105910557,Insight Direct (Uk) Ltd,533.85
Manchester City Council,Environment and Operations,Construction Works,15-Jan-24,5105910069,J.Hopkins (Contractors) Ltd.,4700
Manchester City Council,Environment and Operations,Construction Works,15-Jan-24,5105910070,J.Hopkins (Contractors) Ltd.,1074.34
Manchester City Council,Environment and Operations,Construction Works,15-Jan-24,5105910081,J.Hopkins (Contractors) Ltd.,47850
Manchester City Council,Environment and Operations,Construction Works,15-Jan-24,5105910082,J.Hopkins (Contractors) Ltd.,5692.7
Manchester City Council,Environment and Operations,Construction Works,15-Jan-24,5105910083,J.Hopkins (Contractors) Ltd.,37550
Manchester City Council,Environment and Operations,Construction Works,15-Jan-24,5105910084,J.Hopkins (Contractors) Ltd.,4962.49
Manchester City Council,Environment and Operations,Construction Works,15-Jan-24,5105910085,J.Hopkins (Contractors) Ltd.,10900
Manchester City Council,Environment and Operations,Construction Works,15-Jan-24,5105910086,J.Hopkins (Contractors) Ltd.,521.36
Manchester City Council,Environment and Operations,Construction Works,15-Jan-24,5105910087,J.Hopkins (Contractors) Ltd.,10100
Manchester City Council,Environment and Operations,Construction Works,15-Jan-24,5105910088,J.Hopkins (Contractors) Ltd.,1187.55
Manchester City Council,Environment and Operations,Construction Works,15-Jan-24,5105910089,J.Hopkins (Contractors) Ltd.,24500
Manchester City Council,Environment and Operations,Construction Works,15-Jan-24,5105910090,J.Hopkins (Contractors) Ltd.,591.04
Manchester City Council,Environment and Operations,Construction Works,15-Jan-24,5105910101,J.Hopkins (Contractors) Ltd.,23547.97
Manchester City Council,Environment and Operations,Construction Works,15-Jan-24,5105910102,J.Hopkins (Contractors) Ltd.,15428.28
Manchester City Council,Environment and Operations,Construction Works,15-Jan-24,5105910103,J.Hopkins (Contractors) Ltd.,13805.22
Manchester City Council,Environment and Operations,Construction Works,15-Jan-24,5105910104,J.Hopkins (Contractors) Ltd.,33300
Manchester City Council,Environment and Operations,Construction Works,15-Jan-24,5105910105,J.Hopkins (Contractors) Ltd.,1694.05
Manchester City Council,Chief Executives,Payments to Sub-Contractors,15-Jan-24,5105909906,Janus,797.15
Manchester City Council,Manchester Leisure,Rents,15-Jan-24,5105910559,K L Properties,17011
Manchester City Council,Corporate Services,Training and Development,15-Jan-24,5105910806,LA Directories Limited,1080
Manchester City Council,Corporate Services,Agency staff provision,15-Jan-24,5105910816,Liquid Personnel Ltd,12604.55
Manchester City Council,Childrens & Education Services,Day Care Payments,15-Jan-24,5105910709,Little Spuds Day Nursery,824
Manchester City Council,Childrens & Education Services,Day Care Payments,15-Jan-24,5105910711,Little Spuds Day Nursery,1030
Manchester City Council,Manchester Leisure,Third party payments relating to Voluntary Organisations,15-Jan-24,5105910219,Lives on Track,2500
Manchester City Council,Childrens Services,Building Works,15-Jan-24,5105910725,Manchester Enterprise Academy,25514.24
Manchester City Council,Corporate Services,Electricity,15-Jan-24,1700164054,Manchester Heat Network SupplyCo Lt,97249.05
Manchester City Council,Childrens & Education Services,Gas,15-Jan-24,5105910728,Manchester School Services Limited,40591.42
Manchester City Council,Childrens & Education Services,Private Finance and Public Private partnership initiatives,15-Jan-24,5105909196,Manchester School Services Limited,-934.88
Manchester City Council,Childrens & Education Services,Private Finance and Public Private partnership initiatives,15-Jan-24,5105910727,Manchester School Services Limited,457087.67
Manchester City Council,Childrens & Education Services,Grant and subscriptions awarded,15-Jan-24,1908332098,Manchester Vineyard,10000
Manchester City Council,Housing Revenue Account,Council Dwelling Adaptations,15-Jan-24,5105910729,Manchester Working Ltd,234502.35
Manchester City Council,Manchester Leisure,Contract Cleaning External,15-Jan-24,5105910716,Master Moves Ltd,693.29
Manchester City Council,Regeneration Finance,Training and Development,15-Jan-24,5105910756,Ncfe,17987
Manchester City Council,Corporate Services,Professional fees,15-Jan-24,5105909717,NE1 Procurement Services Limited,4500
Manchester City Council,Corporate Services,Professional fees,15-Jan-24,5105909912,NE1 Procurement Services Limited,4500
Manchester City Council,Corporate Services,Professional fees,15-Jan-24,5105909954,NE1 Procurement Services Limited,8500
Manchester City Council,Corporate Services,Professional fees,15-Jan-24,5105909955,NE1 Procurement Services Limited,4500
Manchester City Council,Corporate Services,Professional fees,15-Jan-24,5105910477,NE1 Procurement Services Limited,4020.51
Manchester City Council,Childrens & Education Services,Private Finance and Public Private partnership initiatives,15-Jan-24,5105910601,NU3PS,92486.67
Manchester City Council,Manchester Leisure,Bed & Breakfast Acc,15-Jan-24,5105910765,Parkview Residence,33770
Manchester City Council,Manchester Leisure,Goods purchased for resale in Council outlets,15-Jan-24,5105910674,Petra Boase Ltd,633
Manchester City Council,Regeneration Finance,Planning Invalid,15-Jan-24,1908327125,PortalPlanQuest Ltd,924
Manchester City Council,Adult Social Care,Equipment,15-Jan-24,5105910754,Prism Medical UK Carefree Division,2711.3
Manchester City Council,Adult Social Care,Equipment,15-Jan-24,5105910755,Prism Medical UK Carefree Division,-562.2
Manchester City Council,Manchester Leisure,Rents,15-Jan-24,1908333461,PSGBN Ltd,2400
Manchester City Council,Housing Revenue Account,Council Dwelling Adaptations,15-Jan-24,5105910696,Pts Plumbing Trade Supplies,12086.95
Manchester City Council,Childrens & Education Services,Hire of Premises,15-Jan-24,5105910117,Quaker Trading Ltd,697.91
Manchester City Council,Childrens & Education Services,Hire of Premises,15-Jan-24,5105910119,Quaker Trading Ltd,944.17
Manchester City Council,Corporate Services,Works and associated costs for Land and Buildings,15-Jan-24,5105910657,R Development Ltd,51497.26
Manchester City Council,Chief Executives,Counsel Costs,15-Jan-24,1908332046,Redacted Personal Information,1062.5
Manchester City Council,Chief Executives,Payments to Sub-Contractors,15-Jan-24,5105910368,Redacted Personal Information,815.4
Manchester City Council,Chief Executives,Counsel Costs,15-Jan-24,1908332066,Redacted Personal Information,850
Manchester City Council,Manchester Leisure,Books-Adult Fiction,15-Jan-24,1908332089,Redacted Personal Information,500
Manchester City Council,Regeneration Finance,Grant and subscriptions awarded,15-Jan-24,1908332069,Redacted Personal Information,2500
Manchester City Council,Manchester Leisure,Compensation Payments,15-Jan-24,1908332503,Redacted Personal Information,3000
Manchester City Council,Manchester Leisure,Bed & Breakfast Acc,15-Jan-24,5105910717,Redacted Personal Information,5625
Manchester City Council,Manchester Leisure,Special Event,15-Jan-24,5105910506,Redacted Personal Information,500
Manchester City Council,Manchester Leisure,Payments to Sub-Contractors,15-Jan-24,5105910825,Redacted Personal Information,1482
Manchester City Council,Manchester Leisure,Payments to Sub-Contractors,15-Jan-24,5105910827,Redacted Personal Information,524.5
Manchester City Council,Manchester Leisure,Payments to Sub-Contractors,15-Jan-24,5105910829,Redacted Personal Information,526
Manchester City Council,Manchester Leisure,Special Event,15-Jan-24,1908332048,Redacted Personal Information,550
Manchester City Council,Chief Executives,Counsel Costs,15-Jan-24,1908327121,Redacted Personal Information,1000
Manchester City Council,Chief Executives,Counsel Costs,15-Jan-24,1908327112,Redacted Personal Information,1000
Manchester City Council,Manchester Leisure,Bed & Breakfast Acc,15-Jan-24,5105910345,Redacted Personal Information,2250
Manchester City Council,Manchester Leisure,Bed & Breakfast Acc,15-Jan-24,5105910399,Redacted Personal Information,810
Manchester City Council,Regeneration Finance,Grant and subscriptions awarded,15-Jan-24,1908332099,Redacted Personal Information,1769
Manchester City Council,Corporate Services,Professional fees,15-Jan-24,5105909397,Rosgal Ltd,5865
Manchester City Council,Highways Services,Payments to Sub-Contractors,15-Jan-24,5105908924,Rosgal Ltd,510
Manchester City Council,Highways Services,Payments to Sub-Contractors,15-Jan-24,5105908928,Rosgal Ltd,10725
Manchester City Council,Highways Services,Payments to Sub-Contractors,15-Jan-24,5105909401,Rosgal Ltd,8250
Manchester City Council,Highways Services,Payments to Sub-Contractors,15-Jan-24,5105909412,Rosgal Ltd,15799.9
Manchester City Council,Highways Services,Payments to Sub-Contractors,15-Jan-24,5105909415,Rosgal Ltd,31449.93
Manchester City Council,Manchester Leisure,Special Event,15-Jan-24,5105910796,Showmed,4000
Manchester City Council,Hospitality + Trading Services,Security,15-Jan-24,5105910419,Showsec International Ltd,981.72
Manchester City Council,Regeneration Finance,Security,15-Jan-24,5105910467,Showsec International Ltd,23245.08
Manchester City Council,Regeneration Finance,Security,15-Jan-24,5105910808,Showsec International Ltd,-23245.08
Manchester City Council,Corporate Services,Professional fees,15-Jan-24,5105910484,Solace In Business Ltd,3250
Manchester City Council,Manchester Leisure,Equipment,15-Jan-24,5105910843,Solon Security Ltd,1830
Manchester City Council,Manchester Leisure,Grant and subscriptions awarded,15-Jan-24,5105910789,St Catherines R.C.Primary School,2400
Manchester City Council,Environment and Operations,Construction Works,15-Jan-24,5105910883,St Margarets C.E Primary School,8684.88
Manchester City Council,Hospitality + Trading Services,Vehicle Fuel Costs,15-Jan-24,5105910275,Standard Fuels Oils,17245.17
Manchester City Council,Highways Services,Building Materials for direct delivery,15-Jan-24,5105910743,STANDARD SIGNS & TRAFFIC SYSTEMS,9516
Manchester City Council,Manchester Leisure,Grant and subscriptions awarded,15-Jan-24,5105910782,Station South CIC,2500
Manchester City Council,Manchester Leisure,Equipment,15-Jan-24,5105910852,Steroplast Healthcare Ltd,2049
Manchester City Council,Childrens & Education Services,Grant and subscriptions awarded,15-Jan-24,1908332095,Strong Roots,10000
Manchester City Council,Manchester Leisure,Grant and subscriptions awarded,15-Jan-24,5105910707,Supporting People In Need,1100
Manchester City Council,Manchester Leisure,Grant and subscriptions awarded,15-Jan-24,5105910708,Supporting People In Need,22000
Manchester City Council,Adult Social Care,Personal needs of client,15-Jan-24,5105910486,Supra UK Ltd,2999.5
Manchester City Council,Childrens & Education Services,Grant and subscriptions awarded,15-Jan-24,1908332094,The Bird Box Mcr CIC,10000
Manchester City Council,Corporate Services,ICT Sup & Maintnance,15-Jan-24,5105910613,The Networking People (TNP) Ltd,4650
Manchester City Council,Childrens & Education Services,Payments for services,15-Jan-24,5105910762,The Together Trust,36176.28
Manchester City Council,Childrens & Education Services,Payments for services,15-Jan-24,5105910854,The Together Trust,6714
Manchester City Council,Childrens & Education Services,Payments for services,15-Jan-24,5105910855,The Together Trust,4564
Manchester City Council,Childrens & Education Services,Payments for services,15-Jan-24,5105910856,The Together Trust,1420
Manchester City Council,Regeneration Finance,Supporting People Payments,15-Jan-24,5105910770,Train-to-TEFL Ltd,6600
Manchester City Council,Manchester Leisure,Hire of Equipment,15-Jan-24,5105910648,Tube UK Ltd,3540.65
Manchester City Council,Manchester Leisure,Stationery,15-Jan-24,5105910804,White Ribbon UK,1022.5
Manchester City Council,Highways Services,Professional Fees,15-Jan-24,5105910865,Wilde Consultants Ltd,3139.67
Manchester City Council,Highways Services,Professional Fees,15-Jan-24,5105910866,Wilde Consultants Ltd,5019.22
Manchester City Council,Highways Services,Professional fees,15-Jan-24,5105909008,Wilde Consultants Ltd,1637.7
Manchester City Council,Highways Services,Professional fees,15-Jan-24,5105909009,Wilde Consultants Ltd,1146.06
Manchester City Council,Childrens & Education Services,First Home Grant,15-Jan-24,1908333464,Wilkinson Bros,970
Manchester City Council,Manchester Leisure,Professional fees,15-Jan-24,5105910881,WILKYS FLOORING CONTRACTORS LTD,1380
Manchester City Council,Hospitality + Trading Services,Vehicle Hire Costs,15-Jan-24,5105910802,Winners Contract Hire Ltd,62113.77
Manchester City Council,Regeneration Finance,Rents,15-Jan-24,1908329928,XXXHelix/Savills pls use 30043872,113022.72
Manchester City Council,Childrens & Education Services,Training and Development,16-Jan-24,5105910933,Ability Smart Ltd,600
Manchester City Council,Corporate Services,Bank Charges,16-Jan-24,1908333441,Access Paysuite Limited,9075.72
Manchester City Council,Adult Social Care,Payments for services,16-Jan-24,5105910942,ACORN Recovery Projects,3214.29
Manchester City Council,Adult Social Care,Payments for services,16-Jan-24,5105910943,ACORN Recovery Projects,3214.29
Manchester City Council,Adult Social Care,Payments for services,16-Jan-24,5105910944,ACORN Recovery Projects,3214.29
Manchester City Council,Adult Social Care,Payments for services,16-Jan-24,5105910945,ACORN Recovery Projects,3214.29
Manchester City Council,Adult Social Care,Payments for services,16-Jan-24,5105910946,ACORN Recovery Projects,3214.29
Manchester City Council,Adult Social Care,Payments for services,16-Jan-24,5105910947,ACORN Recovery Projects,3214.29
Manchester City Council,Childrens & Education Services,Transport Coach Hire,16-Jan-24,5105911008,AFJ Ltd,5066
Manchester City Council,Childrens & Education Services,Transport Coach Hire,16-Jan-24,5105911009,AFJ Ltd,4318
Manchester City Council,Childrens & Education Services,Transport Coach Hire,16-Jan-24,5105911010,AFJ Ltd,4943.6
Manchester City Council,Childrens & Education Services,Transport Coach Hire,16-Jan-24,5105911021,AFJ Ltd,4064
Manchester City Council,Childrens & Education Services,Transport Coach Hire,16-Jan-24,5105911022,AFJ Ltd,5264
Manchester City Council,Childrens & Education Services,Transport Coach Hire,16-Jan-24,5105911023,AFJ Ltd,4318
Manchester City Council,Childrens & Education Services,Transport Coach Hire,16-Jan-24,5105911024,AFJ Ltd,4064
Manchester City Council,Childrens & Education Services,Transport Coach Hire,16-Jan-24,5105911025,AFJ Ltd,4320
Manchester City Council,Childrens & Education Services,Transport Coach Hire,16-Jan-24,5105911026,AFJ Ltd,5066
Manchester City Council,Childrens & Education Services,Transport Coach Hire,16-Jan-24,5105911027,AFJ Ltd,4320
Manchester City Council,Childrens & Education Services,Transport Coach Hire,16-Jan-24,5105911028,AFJ Ltd,4828
Manchester City Council,Childrens & Education Services,Transport Coach Hire,16-Jan-24,5105911029,AFJ Ltd,2822
Manchester City Council,Childrens & Education Services,Transport Coach Hire,16-Jan-24,5105911030,AFJ Ltd,2822
Manchester City Council,Childrens & Education Services,Transport Coach Hire,16-Jan-24,5105911031,AFJ Ltd,2822
Manchester City Council,Childrens & Education Services,Transport Coach Hire,16-Jan-24,5105911032,AFJ Ltd,4318
Manchester City Council,Childrens & Education Services,Transport Coach Hire,16-Jan-24,5105911033,AFJ Ltd,5338
Manchester City Council,Childrens & Education Services,Transport Coach Hire,16-Jan-24,5105911034,AFJ Ltd,2032.52
Manchester City Council,Childrens & Education Services,Transport Coach Hire,16-Jan-24,5105911035,AFJ Ltd,2717.79
Manchester City Council,Childrens & Education Services,Transport Coach Hire,16-Jan-24,5105911036,AFJ Ltd,4318
Manchester City Council,Childrens & Education Services,Transport Coach Hire,16-Jan-24,5105911037,AFJ Ltd,4590
Manchester City Council,Childrens & Education Services,Transport Coach Hire,16-Jan-24,5105911038,AFJ Ltd,3534.3
Manchester City Council,Childrens & Education Services,Transport Coach Hire,16-Jan-24,5105911040,AFJ Ltd,5588
Manchester City Council,Childrens & Education Services,Transport Coach Hire,16-Jan-24,5105911041,AFJ Ltd,7238
Manchester City Council,Childrens & Education Services,Transport Coach Hire,16-Jan-24,5105911042,AFJ Ltd,5334
Manchester City Council,Childrens & Education Services,Transport Coach Hire,16-Jan-24,5105911043,AFJ Ltd,5670
Manchester City Council,Childrens & Education Services,Transport Coach Hire,16-Jan-24,5105911044,AFJ Ltd,6258
Manchester City Council,Childrens & Education Services,Transport Coach Hire,16-Jan-24,5105911045,AFJ Ltd,5670
Manchester City Council,Childrens & Education Services,Transport Coach Hire,16-Jan-24,5105911046,AFJ Ltd,6248
Manchester City Council,Childrens & Education Services,Transport Coach Hire,16-Jan-24,5105911047,AFJ Ltd,3652
Manchester City Council,Childrens & Education Services,Transport Coach Hire,16-Jan-24,5105911048,AFJ Ltd,6908
Manchester City Council,Childrens & Education Services,Transport Coach Hire,16-Jan-24,5105911049,AFJ Ltd,5670
Manchester City Council,Chief Executives,Works and associated costs for Land and Buildings,16-Jan-24,5105910979,Allied London Campfield,282045.37
Manchester City Council,Childrens & Education Services,I T Provision,16-Jan-24,5105910998,Allied Publicity Services (M\cr) Lt,2005.64
Manchester City Council,Manchester Leisure,Compensation Payments,16-Jan-24,1908333440,Antony Hodari Holding Ltd,750
Manchester City Council,Corporate Services,Rents,16-Jan-24,1908332076,Asda Stores Ltd (Leeds),12500
Manchester City Council,Hospitality + Trading Services,Special Event,16-Jan-24,5105910957,Ashtead Plant Hire,7651.96
Manchester City Council,Hospitality + Trading Services,Special Event,16-Jan-24,5105911151,Ashtead Plant Hire,-7651.96
Manchester City Council,Manchester Leisure,Rents,16-Jan-24,5105910960,B & A Properties,43744
Manchester City Council,Manchester Leisure,Grant and subscriptions awarded,16-Jan-24,5105911079,Barlow Moor Community Association,16322
Manchester City Council,Childrens & Education Services,Payments for services,16-Jan-24,5105910896,Beech Hall School Ltd,3188.67
Manchester City Council,Manchester Leisure,Contract Cleaning External,16-Jan-24,5105909138,Biffa Municipal Limited,4333.33
Manchester City Council,Manchester Leisure,Refuse Collection,16-Jan-24,5105909139,Biffa Municipal Limited,27607.4
Manchester City Council,Manchester Leisure,Refuse Collection,16-Jan-24,5105909156,Biffa Municipal Limited,8472.92
Manchester City Council,Manchester Leisure,Refuse Collection,16-Jan-24,5105909161,Biffa Municipal Limited,7942.28
Manchester City Council,Manchester Leisure,Refuse Collection,16-Jan-24,5105909162,Biffa Municipal Limited,15103.25
Manchester City Council,Manchester Leisure,Refuse Collection,16-Jan-24,5105909165,Biffa Municipal Limited,21721
Manchester City Council,Manchester Leisure,Refuse Collection,16-Jan-24,5105910641,Biffa Municipal Limited,59436
Manchester City Council,Manchester Leisure,Payments to Sub-Contractors,16-Jan-24,5105909140,Biffa Municipal Limited,29032.83
Manchester City Council,Manchester Leisure,Reuse credits,16-Jan-24,5105909131,Biffa Municipal Limited,3975
Manchester City Council,Manchester Leisure,Reuse credits,16-Jan-24,5105909134,Biffa Municipal Limited,2275
Manchester City Council,Manchester Leisure,Reuse credits,16-Jan-24,5105909137,Biffa Municipal Limited,5166.67
Manchester City Council,Manchester Leisure,Professional fees,16-Jan-24,5105910642,Biffa Municipal Limited,3622.8
Manchester City Council,Regeneration Finance,Non Housing Rent Receipts,16-Jan-24,1908295333,Bolton Mbc,7005.57
Manchester City Council,Hospitality + Trading Services,Rents,16-Jan-24,1908330242,Booker Ltd,1642.5
Manchester City Council,Adult Social Care,Payments for services,16-Jan-24,5105911005,Brook,19063.4
Manchester City Council,Chief Executives,Printing,16-Jan-24,5105910997,Browns CTP Ltd,1200
Manchester City Council,Manchester Leisure,I T Provision,16-Jan-24,5105910898,BT PLC,3675.74
Manchester City Council,Regeneration Finance,Non Housing Rent Receipts,16-Jan-24,1908295332,Bury M.B.C.,7005.57
Manchester City Council,Manchester Leisure,Contract Cleaning External,16-Jan-24,5105910822,Clearview Event Services Limited,13820.09
Manchester City Council,Childrens & Education Services,Transport Coach Hire,16-Jan-24,5105910902,Cresta Car Hire,561
Manchester City Council,Childrens & Education Services,Transport Coach Hire,16-Jan-24,5105910905,Cresta Car Hire,759
Manchester City Council,Childrens & Education Services,Transport Coach Hire,16-Jan-24,5105910910,Cresta Car Hire,1080
Manchester City Council,Manchester Leisure,Professional fees,16-Jan-24,5105910928,DeepStore,709.11
Manchester City Council,Manchester Leisure,Professional fees,16-Jan-24,5105910929,DeepStore,4202.35
Manchester City Council,Housing Revenue Account,Council Dwelling Fees,16-Jan-24,5105910956,Emanuel Whittaker Ltd,82023.87
Manchester City Council,Hospitality + Trading Services,Hire of Machinery,16-Jan-24,5105910931,F.R.Sharrock Ltd,970
Manchester City Council,Chief Executives,Advertising,16-Jan-24,5105911171,Fonemedia Limited,1500
Manchester City Council,Chief Executives,Advertising,16-Jan-24,5105911172,Fonemedia Limited,1000
Manchester City Council,Corporate Services,WPS Awards,16-Jan-24,5105911150,Furniture Resource Centre Ltd,716.14
Manchester City Council,Corporate Services,WPS Awards,16-Jan-24,5105911154,Furniture Resource Centre Ltd,601.56
Manchester City Council,Corporate Services,WPS Awards,16-Jan-24,5105911157,Furniture Resource Centre Ltd,763.83
Manchester City Council,Corporate Services,WPS Awards,16-Jan-24,5105911165,Furniture Resource Centre Ltd,817.48
Manchester City Council,Corporate Services,Agency staff provision,16-Jan-24,5105911158,G2V Recruitment Grp t/a Vivid Resou,7500
Manchester City Council,Corporate Services,Agency staff provision,16-Jan-24,5105911160,G2V Recruitment Grp t/a Vivid Resou,8518.5
Manchester City Council,Manchester Leisure,Equipment,16-Jan-24,5105910629,GB Sport & Leisure UK Ltd,1017.5
Manchester City Council,Manchester Leisure,Equipment,16-Jan-24,5105910630,GB Sport & Leisure UK Ltd,631.4
Manchester City Council,Hospitality + Trading Services,Hire of Machinery,16-Jan-24,5105910941,GGM Group Ltd,2291.2
Manchester City Council,Childrens & Education Services,Grant and subscriptions awarded,16-Jan-24,5105910790,Global Policing Ltd,-16000
Manchester City Council,Childrens & Education Services,Equipment,16-Jan-24,5105910940,Gordon Morris Ltd,1144.54
Manchester City Council,Manchester Leisure,Compensation Payments,16-Jan-24,1908333460,Gowing Law Solicitors,1800
Manchester City Council,Housing Revenue Account,Private Finance and Public Private partnership initiatives,16-Jan-24,5105909206,Grove Village Ltd,570814.05
Manchester City Council,Manchester Leisure,Bed & Breakfast Acc,16-Jan-24,5105910936,Hala Guest House,10615
Manchester City Council,Chief Executives,Catering,16-Jan-24,1908314875,Harvey Nichols & Company Ltd,2005
Manchester City Council,Corporate Services,Data Registration,16-Jan-24,1908324640,HMCS Traffic EC,54000
Manchester City Council,Corporate Services,Data Registration,16-Jan-24,1908324641,HMCS Traffic EC,54000
Manchester City Council,Chief Executives,Agency staff provision,16-Jan-24,5105911111,Isherwood Legal Limited,1008
Manchester City Council,Adult Social Care,Personal needs of client,16-Jan-24,5105911166,James Leckey Design Ltd,1465.2
Manchester City Council,Childrens & Education Services,Professional fees,16-Jan-24,5105910877,KD Safeguarding Ltd,4800
Manchester City Council,Adult Social Care,Third party payments to Health Authority,16-Jan-24,1908327109,Leeds City Council,641
Manchester City Council,Corporate Services,Gas,16-Jan-24,1700164050,M\cr Heat Network Supply Co Ltd,-19064
Manchester City Council,Corporate Services,Gas,16-Jan-24,1700164052,M\cr Heat Network Supply Co Ltd,-52686
Manchester City Council,Corporate Services,Gas,16-Jan-24,1908332518,M\cr Heat Network Supply Co Ltd,23450.84
Manchester City Council,Corporate Services,Gas,16-Jan-24,1908332523,M\cr Heat Network Supply Co Ltd,120819.16
Manchester City Council,Corporate Services,Electricity,16-Jan-24,1700164053,M\cr Heat Network Supply Co Ltd,-76987.9
Manchester City Council,Corporate Services,Electricity,16-Jan-24,1908332524,M\cr Heat Network Supply Co Ltd,102156.3
Manchester City Council,Corporate Services,Electricity,16-Jan-24,1908333449,M\cr Heat Network Supply Co Ltd,79788.33
Manchester City Council,Regeneration Finance,Electricity,16-Jan-24,1700164051,M\cr Heat Network Supply Co Ltd,-57657.91
Manchester City Council,Regeneration Finance,Electricity,16-Jan-24,1908332522,M\cr Heat Network Supply Co Ltd,62391.86
Manchester City Council,Childrens & Education Services,Grant and subscriptions awarded,16-Jan-24,5105910915,Manchester Metropolitan University,8475
Manchester City Council,Childrens & Education Services,Grant and subscriptions awarded,16-Jan-24,5105910916,Manchester Metropolitan University,12712.5
Manchester City Council,Childrens & Education Services,Grant and subscriptions awarded,16-Jan-24,5105910917,Manchester Metropolitan University,12712.5
Manchester City Council,Manchester Leisure,Bed & Breakfast Acc,16-Jan-24,5105910999,Manchester Stay Hotel,24895
Manchester City Council,Regeneration Finance,Third party payments relating to Voluntary Organisations,16-Jan-24,5105910939,Manchester Young Lives,64410
Manchester City Council,Childrens & Education Services,Hire of Premises,16-Jan-24,5105911003,Martenscroft Nursery School,550
Manchester City Council,Adult Social Care,Professional fees,16-Jan-24,1908332085,Merseybank Garden Group,4000
Manchester City Council,Manchester Leisure,Compensation Payments,16-Jan-24,1908333459,MJV & Co Solicitors Ltd,5500
Manchester City Council,Corporate Services,Rents,16-Jan-24,1908332505,Moss Side Millennium Powerhouse Ltd,10622.59
Manchester City Council,Adult Social Care,Rents,16-Jan-24,5105910989,Mosscare Housing Ltd,4184.8
Manchester City Council,Adult Social Care,Rents,16-Jan-24,5105911011,Mosscare Housing Ltd,4184.8
Manchester City Council,Childrens & Education Services,Payments for services,16-Jan-24,5105911070,National Offender Mgt Services,9840
Manchester City Council,Childrens & Education Services,Payments for services,16-Jan-24,5105911081,National Offender Mgt Services,9840
Manchester City Council,Childrens & Education Services,Payments for services,16-Jan-24,5105911082,National Offender Mgt Services,834
Manchester City Council,Childrens & Education Services,Payments for services,16-Jan-24,5105911083,National Offender Mgt Services,9840
Manchester City Council,Childrens & Education Services,Payments for services,16-Jan-24,5105911084,National Offender Mgt Services,4264
Manchester City Council,Childrens & Education Services,Payments for services,16-Jan-24,5105911085,National Offender Mgt Services,834
Manchester City Council,Childrens & Education Services,Payments for services,16-Jan-24,5105911086,National Offender Mgt Services,24302
Manchester City Council,Childrens & Education Services,Payments for services,16-Jan-24,5105911087,National Offender Mgt Services,25020
Manchester City Council,Childrens & Education Services,Payments for services,16-Jan-24,5105911088,National Offender Mgt Services,1640
Manchester City Council,Childrens & Education Services,Payments for services,16-Jan-24,5105911089,National Offender Mgt Services,834
Manchester City Council,Childrens & Education Services,Payments for services,16-Jan-24,5105911090,National Offender Mgt Services,6672
Manchester City Council,Childrens & Education Services,Payments for services,16-Jan-24,5105911091,National Offender Mgt Services,18436
Manchester City Council,Childrens & Education Services,Payments for services,16-Jan-24,5105911092,National Offender Mgt Services,9840
Manchester City Council,Childrens & Education Services,Payments for services,16-Jan-24,5105911093,National Offender Mgt Services,4592
Manchester City Council,Childrens & Education Services,Payments for services,16-Jan-24,5105911095,National Offender Mgt Services,4170
Manchester City Council,Childrens & Education Services,Payments for services,16-Jan-24,5105911096,National Offender Mgt Services,20850
Manchester City Council,Childrens & Education Services,Payments for services,16-Jan-24,5105911097,National Offender Mgt Services,19182
Manchester City Council,Childrens & Education Services,Payments for services,16-Jan-24,5105911098,National Offender Mgt Services,6560
Manchester City Council,Childrens & Education Services,Payments for services,16-Jan-24,5105911099,National Offender Mgt Services,1968
Manchester City Council,Childrens & Education Services,Payments for services,16-Jan-24,5105911100,National Offender Mgt Services,6888
Manchester City Council,Adult Social Care,Third party payments to Health Authority,16-Jan-24,5105909995,NHS GREATER MANCHESTER ICB,819000
Manchester City Council,Adult Social Care,Third party payments to Health Authority,16-Jan-24,5105909996,NHS GREATER MANCHESTER ICB,819000
Manchester City Council,Adult Social Care,Third party payments to Health Authority,16-Jan-24,5105909997,NHS GREATER MANCHESTER ICB,819000
Manchester City Council,Manchester Leisure,Rents,16-Jan-24,5105910912,NWA Housing Ltd,1660.12
Manchester City Council,Regeneration Finance,Non Housing Rent Receipts,16-Jan-24,1908295331,Oldham Borough Council,7005.57
Manchester City Council,Regeneration Finance,Professional fees,16-Jan-24,5105910890,OPen  (Optimised Environments Ltd),7036
Manchester City Council,Regeneration Finance,Professional fees,16-Jan-24,5105910901,OPen  (Optimised Environments Ltd),3400
Manchester City Council,Regeneration Finance,Professional fees,16-Jan-24,5105910903,OPen  (Optimised Environments Ltd),1750.3
Manchester City Council,Housing Revenue Account,Council Dwelling Adaptations,16-Jan-24,5105910925,P Casey & Co Ltd,47795.59
Manchester City Council,Childrens & Education Services,Grant Payments,16-Jan-24,1908333442,Paypoint,9384.98
Manchester City Council,Regeneration Finance,Third party payments relating to Voluntary Organisations,16-Jan-24,5105911039,Proper Job Theatre company,7882
Manchester City Council,Chief Executives,Postage,16-Jan-24,5105910987,Quadient Ltd (Credifon),16252.85
Manchester City Council,Manchester Leisure,Compensation Payments,16-Jan-24,1908333443,Quinn Noble Solicitors,3500
Manchester City Council,Chief Executives,Payments to Sub-Contractors,16-Jan-24,5105911168,Redacted Personal Information,691.43
Manchester City Council,Manchester Leisure,Professional fees,16-Jan-24,5105910948,Redacted Personal Information,513.28
Manchester City Council,Manchester Leisure,Professional fees,16-Jan-24,5105910969,Redacted Personal Information,500
Manchester City Council,Manchester Leisure,Professional fees,16-Jan-24,5105910994,Redacted Personal Information,558.18
Manchester City Council,Manchester Leisure,Professional fees,16-Jan-24,5105910982,Redacted Personal Information,770
Manchester City Council,Chief Executives,Payments to Sub-Contractors,16-Jan-24,5105911063,Redacted Personal Information,1542.6
Manchester City Council,Manchester Leisure,Professional fees,16-Jan-24,5105910970,Redacted Personal Information,541.96
Manchester City Council,Regeneration Finance,Non Housing Rent Receipts,16-Jan-24,1908295325,Rochdale Mbc,7005.57
Manchester City Council,Manchester Leisure,Furniture,16-Jan-24,5105911078,Rtech Group Limited,1225
Manchester City Council,Manchester Leisure,Furniture,16-Jan-24,5105911174,Rtech Group Limited,1066.67
Manchester City Council,Regeneration Finance,Non Housing Rent Receipts,16-Jan-24,1908295329,Salford City Council,7005.57
Manchester City Council,Environment and Operations,Works and associated costs for Land and Buildings,16-Jan-24,5105910878,Seddon Construction Ltd,35000
Manchester City Council,Environment and Operations,Works and associated costs for Land and Buildings,16-Jan-24,5105910879,Seddon Construction Ltd,7210.65
Manchester City Council,Regeneration Finance,External repairs and maintenance for buildings,16-Jan-24,1908295318,Sedgwick International UK,585
Manchester City Council,Manchester Leisure,Third party payments relating to Voluntary Organisations,16-Jan-24,5105911135,Shared Habitat Limited,3687
Manchester City Council,Manchester Leisure,Security,16-Jan-24,5105911131,Showsec International Ltd,15977.04
Manchester City Council,Hospitality + Trading Services,Security,16-Jan-24,5105910964,Showsec International Ltd,11008
Manchester City Council,Childrens & Education Services,Professional fees,16-Jan-24,5105911006,Softcat,5233.15
Manchester City Council,Regeneration Finance,Non Housing Rent Receipts,16-Jan-24,1908295327,Stockport Metropolitan Borough,7005.57
Manchester City Council,Manchester Leisure,Refuse Collection,16-Jan-24,5105911018,Streetspace Ltd,45020
Manchester City Council,Regeneration Finance,Non Housing Rent Receipts,16-Jan-24,1908295326,Tameside Metropolitan Bouough,7005.57
Manchester City Council,Highways Services,Building Materials for direct delivery,16-Jan-24,5105911064,TARMAC,1469.87
Manchester City Council,Highways Services,Building Materials for direct delivery,16-Jan-24,5105911066,TARMAC,1172.49
Manchester City Council,Childrens & Education Services,Payments for services,16-Jan-24,5105911015,Teenage Works,590738.4
Manchester City Council,Corporate Services,Rents,16-Jan-24,1908332596,Tesco (Rent Only),26003
Manchester City Council,Childrens & Education Services,Professional fees,16-Jan-24,5105910894,The 0161 Project Ltd,89310
Manchester City Council,Corporate Services,Data Links,16-Jan-24,5105910907,The Loop t/a Gamma Telecom Ltd,2857.34
Manchester City Council,Regeneration Finance,Non Housing Rent Receipts,16-Jan-24,1908295323,Trafford M B C,7005.57
Manchester City Council,Regeneration Finance,Training and Development,16-Jan-24,5105910961,Training Qualifications UK Ltd,1100
Manchester City Council,Chief Executives,Advertising,16-Jan-24,5105911136,Transport for Greater Manchester,7860.2
Manchester City Council,Manchester Leisure,Security,16-Jan-24,5105910677,UNIQUE SPECIALIST SERVICES,1944
Manchester City Council,Manchester Leisure,Security,16-Jan-24,5105911129,UNIQUE SPECIALIST SERVICES,-1944
Manchester City Council,Highways Services,Compensation Payments,16-Jan-24,1908333463,Virgin Media Limited,2000
Manchester City Council,Manchester Leisure,Bed & Breakfast Acc,16-Jan-24,5105910951,VSP BEAUCLIFFE LTD,128100
Manchester City Council,Manchester Leisure,Bed & Breakfast Acc,16-Jan-24,5105910954,VSP BEAUCLIFFE LTD,141174
Manchester City Council,Manchester Leisure,Furniture,16-Jan-24,5105911080,VSPG Housing Ltd,23700
Manchester City Council,Manchester Leisure,Compensation Payments,16-Jan-24,1908333462,Weightmans,7500
Manchester City Council,Childrens & Education Services,Transport Coach Hire,16-Jan-24,5105910923,Westfield Minibuses,155027.5
Manchester City Council,Regeneration Finance,Non Housing Rent Receipts,16-Jan-24,1908295330,Wigan Metropolitan Borough Council,7005.57
Manchester City Council,Highways Services,Professional Fees,16-Jan-24,5105910861,Wilde Consultants Ltd,55486.59
Manchester City Council,Adult Social Care,Third party payments relating to Voluntary Organisations,16-Jan-24,5105910959,Wythenshawe Community Housing Group,4550.91
Manchester City Council,Adult Social Care,Third party payments relating to Voluntary Organisations,16-Jan-24,5105910976,Wythenshawe Community Housing Group,4550.91
Manchester City Council,Childrens & Education Services,Professional fees,16-Jan-24,5105910986,Your Chapter Ltd,29734.09
Manchester City Council,Regeneration Finance,Professional fees,17-Jan-24,5105911202,AA Projects Ltd,510
Manchester City Council,Regeneration Finance,Professional fees,17-Jan-24,5105911203,AA Projects Ltd,2610
Manchester City Council,Regeneration Finance,Professional fees,17-Jan-24,5105911238,AA Projects Ltd,7700
Manchester City Council,Regeneration Finance,Professional fees,17-Jan-24,5105911239,AA Projects Ltd,7700
Manchester City Council,Adult Social Care,Personal needs of client,17-Jan-24,5105911184,Accora,2342
Manchester City Council,Childrens & Education Services,Professional fees,17-Jan-24,5105911260,AECOM Limited,12707
Manchester City Council,Regeneration Finance,Grant and subscriptions awarded,17-Jan-24,5105911335,Alchemy Arts Limited,30000
Manchester City Council,Chief Executives,Machinery and equipment repairs,17-Jan-24,5105911218,Alphatec 2000 Ltd,520
Manchester City Council,Environment and Operations,Construction Works,17-Jan-24,5105910992,Amey Highways Lighting (Manchester),12302.22
Manchester City Council,Environment and Operations,Construction Works,17-Jan-24,5105910992,Amey Highways Lighting (Manchester),1559.02
Manchester City Council,Manchester Leisure,Other Insurance,17-Jan-24,1908331001,AON UK Limited,1698
Manchester City Council,Adult Social Care,Cleaning Equipment and Materials,17-Jan-24,5105911211,Arrow County Supplies,681.37
Manchester City Council,Manchester Leisure,Hire of Equipment,17-Jan-24,5105911053,Ashtead Plant Hire,994
Manchester City Council,Manchester Leisure,Library Materials Acquisition,17-Jan-24,1908334985,Askews and Holts,885.21
Manchester City Council,Manchester Leisure,Library Materials Acquisition,17-Jan-24,1908334989,Askews and Holts,896.17
Manchester City Council,Corporate Services,Furniture,17-Jan-24,5105910847,BCL,1011.92
Manchester City Council,Corporate Services,Removal and Storage of Furniture,17-Jan-24,5105911114,BCL,589
Manchester City Council,Corporate Services,Works and associated costs for Land and Buildings,17-Jan-24,5105911113,BCL,2480
Manchester City Council,Chief Executives,Equipment,17-Jan-24,5105911365,Bennett Workplace Solutions Ltd,628
Manchester City Council,Corporate Services,Works and associated costs for Land and Buildings,17-Jan-24,5105909341,Brentwood Moss Nurseries,1316.5
Manchester City Council,Corporate Services,Works and associated costs for Land and Buildings,17-Jan-24,5105911290,Brentwood Moss Nurseries,-1316.5
Manchester City Council,Manchester Leisure,Special Event,17-Jan-24,5105911138,British Taekwondo Limited,12809.13
Manchester City Council,Manchester Leisure,Special Event,17-Jan-24,5105911139,British Taekwondo Limited,-12809.13
Manchester City Council,Childrens & Education Services,Bed & Breakfast Acc,17-Jan-24,1908332509,BV Property Group Ltd,3500
Manchester City Council,Childrens & Education Services,Payments for services,17-Jan-24,5105911267,Cambian Whinfell School Ltd,33599.2
Manchester City Council,Adult Social Care,Third party payments to Health Authority,17-Jan-24,5105910730,Central Mcr Uni Hospital t/a,30000
Manchester City Council,Manchester Leisure,Grant and subscriptions awarded,17-Jan-24,5105911333,Centrepoint-YPSF,95316
Manchester City Council,Manchester Leisure,Third party payments relating to Voluntary Organisations,17-Jan-24,5105911323,Centrepoint-YPSF,16250
Manchester City Council,Manchester Leisure,Third party payments relating to Voluntary Organisations,17-Jan-24,5105911324,Centrepoint-YPSF,16250
Manchester City Council,Manchester Leisure,Third party payments relating to Voluntary Organisations,17-Jan-24,5105911325,Centrepoint-YPSF,16250
Manchester City Council,Manchester Leisure,Environmental Services,17-Jan-24,5105911231,Chubb  Systems Limited,575.32
Manchester City Council,Highways Services,Payments to Sub-Contractors,17-Jan-24,5105910851,Conservation Contracts Northwest,1143
Manchester City Council,Childrens & Education Services,Professional fees,17-Jan-24,5105911360,Cornerstone Design and Marketing,600
Manchester City Council,Manchester Leisure,Cleaning Equipment,17-Jan-24,5105909624,CPD Property Services,1295
Manchester City Council,Corporate Services,Agency staff provision,17-Jan-24,5105911364,Deekay Technical Recruitment Ltd,13219.01
Manchester City Council,Manchester Leisure,Grant and subscriptions awarded,17-Jan-24,5105911178,Didsbury Traders & Business Assoc,1500
Manchester City Council,Childrens & Education Services,Payments for services,17-Jan-24,5105911246,Digital Advantage,98913
Manchester City Council,Manchester Leisure,Third party payments relating to Voluntary Organisations,17-Jan-24,5105911312,District Homes Cic,65566.04
Manchester City Council,Adult Social Care,Equipment,17-Jan-24,5105911188,Drive Devilbiss Healthcare Ltd,1002.26
Manchester City Council,Manchester Leisure,Works and associated costs for Land and Buildings,17-Jan-24,5105911198,Earth Anchors Ltd,1084
Manchester City Council,Highways Services,Purchase of stores for re-distribution,17-Jan-24,5105911243,Fabrikat (Nottingham) Limited,4234
Manchester City Council,Childrens & Education Services,Payments for services,17-Jan-24,5105911205,Fairfield Care Ltd,1852.28
Manchester City Council,Childrens & Education Services,Payments for services,17-Jan-24,5105911237,Fairfield Care Ltd,2743.49
Manchester City Council,Childrens & Education Services,Foster Payments,17-Jan-24,5105911311,Foster Talk,3397.68
Manchester City Council,Environment and Operations,Construction Works,17-Jan-24,5105910950,Fred Aldous Ltd,600
Manchester City Council,Manchester Leisure,Special Event,17-Jan-24,5105910953,Global Grooves,12300
Manchester City Council,Adult Social Care,Funeral and coroner related services,17-Jan-24,5105909086,Greater Manchester Funeral Service,1699
Manchester City Council,Regeneration Finance,Professional fees,17-Jan-24,5105911140,H.M. Land Registry,1193
Manchester City Council,Regeneration Finance,Third party payments relating to Voluntary Organisations,17-Jan-24,5105911337,Healthy Me Healthy Communities,3790.4
Manchester City Council,Childrens & Education Services,Professional fees,17-Jan-24,5105911224,Home - Start Manchester South,16375
Manchester City Council,Manchester Leisure,Special Event,17-Jan-24,1908332087,Inevent Branding Limited,18354.15
Manchester City Council,Environment and Operations,Construction Works,17-Jan-24,5105911248,J.Hopkins (Contractors) Ltd.,3702.53
Manchester City Council,Housing Revenue Account,Council Dwelling Adaptations,17-Jan-24,5105911219,"Jackson, Jackson & Sons Ltd",71691.85
Manchester City Council,Adult Social Care,Rents,17-Jan-24,5105911229,Johnnie Johnson Housing,3307.07
Manchester City Council,Adult Social Care,Rents,17-Jan-24,5105911230,Johnnie Johnson Housing,2614.17
Manchester City Council,Manchester Leisure,Payments to Sub-Contractors,17-Jan-24,5105909255,LK Remediate Limited,2200
Manchester City Council,Corporate Services,Works and associated costs for Land and Buildings,17-Jan-24,5105911250,Mace Ltd,31298
Manchester City Council,Corporate Services,Works and associated costs for Land and Buildings,17-Jan-24,5105911250,Mace Ltd,2187.78
Manchester City Council,Corporate Services,Works and associated costs for Land and Buildings,17-Jan-24,5105911250,Mace Ltd,12039.6
Manchester City Council,Corporate Services,Works and associated costs for Land and Buildings,17-Jan-24,5105911250,Mace Ltd,3750
Manchester City Council,Corporate Services,Works and associated costs for Land and Buildings,17-Jan-24,5105911250,Mace Ltd,10086.15
Manchester City Council,Manchester Leisure,Third party payments relating to Voluntary Organisations,17-Jan-24,5105911014,Manchester Womens Aid,41666.7
Manchester City Council,Manchester Leisure,Library Materials Acquisition,17-Jan-24,1908334990,Mantra Lingua Limited,1187.5
Manchester City Council,Childrens & Education Services,Professional fees,17-Jan-24,5105911194,Max Turton Education,3800
Manchester City Council,Manchester Leisure,Equipment,17-Jan-24,5105911269,MGB Plastics Limited,13320
Manchester City Council,Manchester Leisure,Equipment,17-Jan-24,5105911270,MGB Plastics Limited,13320
Manchester City Council,Manchester Leisure,Equipment,17-Jan-24,5105911281,MGB Plastics Limited,13392
Manchester City Council,Corporate Services,Agency staff provision,17-Jan-24,5105911285,Michael Page International,672
Manchester City Council,Corporate Services,Agency staff provision,17-Jan-24,5105911286,Michael Page International,-672
Manchester City Council,Childrens & Education Services,Transport Coach Hire,17-Jan-24,5105909669,Middleton Cars Ltd,2080
Manchester City Council,Childrens & Education Services,Transport Coach Hire,17-Jan-24,5105909670,Middleton Cars Ltd,1128
Manchester City Council,Childrens & Education Services,Transport Coach Hire,17-Jan-24,5105909682,Middleton Cars Ltd,2560
Manchester City Council,Childrens & Education Services,Professional fees,17-Jan-24,5105911210,MJSSE,10833.33
Manchester City Council,Manchester Leisure,Licences Purchase,17-Jan-24,5105911265,Mobysoft Ltd,182618
Manchester City Council,Adult Social Care,Rents,17-Jan-24,5105911213,Mosscare Housing Ltd,2088.4
Manchester City Council,Regeneration Finance,Taxi Vehicle Materia,17-Jan-24,5105911346,New Auto Ltd T/A Mogo (Uk),866.9
Manchester City Council,Corporate Services,Grant and subscriptions awarded,17-Jan-24,1908332097,North Manchester Community Kindness,3000
Manchester City Council,Regeneration Finance,Storage Costs,17-Jan-24,5105911372,Oasis UK formerly Box-It (NW),595.43
Manchester City Council,Regeneration Finance,Storage Costs,17-Jan-24,5105911375,Oasis UK formerly Box-It (NW),999.38
Manchester City Council,Regeneration Finance,Furniture,17-Jan-24,5105911185,Oasis UK formerly Box-It (NW),1433.77
Manchester City Council,Regeneration Finance,Furniture,17-Jan-24,5105911186,Oasis UK formerly Box-It (NW),1370.25
Manchester City Council,Regeneration Finance,Professional Fees,17-Jan-24,5105911371,P Mcguinness & Co Ltd,1551
Manchester City Council,Manchester Leisure,Professional Fees,17-Jan-24,5105910736,Parking Matters Ltd,-5000
Manchester City Council,Highways Services,Professional fees,17-Jan-24,5105910704,Pell Frischmann Consultants Ltd,3195.77
Manchester City Council,Hospitality + Trading Services,Hire of Machinery,17-Jan-24,5105911297,R & M Developments Ltd,541.67
Manchester City Council,Chief Executives,Payments to Sub-Contractors,17-Jan-24,5105911222,Redacted Personal Information,823.07
Manchester City Council,Manchester Leisure,Responsive Repairs Work,17-Jan-24,1908325831,Redacted Personal Information,1040.88
Manchester City Council,Manchester Leisure,Professional fees,17-Jan-24,1908313922,Redacted Personal Information,928
Manchester City Council,Manchester Leisure,Responsive Repairs Work,17-Jan-24,1908325912,Redacted Personal Information,700
Manchester City Council,Manchester Leisure,Responsive Repairs Work,17-Jan-24,1908325433,Redacted Personal Information,800
Manchester City Council,Manchester Leisure,Responsive Repairs Work,17-Jan-24,1908320503,Redacted Personal Information,500
Manchester City Council,Chief Executives,Payments to Sub-Contractors,17-Jan-24,5105911227,Redacted Personal Information,1005.38
Manchester City Council,Chief Executives,Payments to Sub-Contractors,17-Jan-24,5105910776,Redacted Personal Information,1223.27
Manchester City Council,Chief Executives,Payments to Sub-Contractors,17-Jan-24,5105911221,Redacted Personal Information,641.28
Manchester City Council,Manchester Leisure,Grant and subscriptions awarded,17-Jan-24,5105910652,Riverside ECHG,25662
Manchester City Council,Manchester Leisure,Grant and subscriptions awarded,17-Jan-24,5105910653,Riverside ECHG,93030.5
Manchester City Council,Manchester Leisure,Third party payments relating to Voluntary Organisations,17-Jan-24,5105910602,Riverside ECHG,51708
Manchester City Council,Manchester Leisure,Third party payments relating to Voluntary Organisations,17-Jan-24,5105910651,Riverside ECHG,51708
Manchester City Council,Manchester Leisure,Furniture,17-Jan-24,5105911304,Rtech Group Limited,-10490
Manchester City Council,Manchester Leisure,Furniture,17-Jan-24,5105911305,Rtech Group Limited,-9233.34
Manchester City Council,Manchester Leisure,Furniture,17-Jan-24,5105911306,Rtech Group Limited,9233.34
Manchester City Council,Manchester Leisure,Furniture,17-Jan-24,5105911307,Rtech Group Limited,9233.34
Manchester City Council,Manchester Leisure,Furniture,17-Jan-24,5105911366,Rtech Group Limited,2750.01
Manchester City Council,Corporate Services,Grant and subscriptions awarded,17-Jan-24,1908333599,Ryder Brow Community Allotment Soci,984.65
Manchester City Council,Childrens & Education Services,Transport Coach Hire,17-Jan-24,5105911208,School Transport Solutions,11229
Manchester City Council,Manchester Leisure,Special Event,17-Jan-24,5105910779,SilverbackUk,1070
Manchester City Council,Chief Executives,Subsistence and Conference Expenses,17-Jan-24,5105910344,SOLACE Group,970
Manchester City Council,Chief Executives,Courier Costs,17-Jan-24,5105911321,Speed Couriers (Northern) Ltd,732.83
Manchester City Council,Manchester Leisure,Grant and subscriptions awarded,17-Jan-24,5105911225,St Crispins Church l,1000
Manchester City Council,Corporate Services,Travel Season TLS,17-Jan-24,5105911069,Stagecoach Manchester,670
Manchester City Council,Hospitality + Trading Services,Vehicle Fuel Costs,17-Jan-24,5105911094,Standard Fuels Oils,1158.6
Manchester City Council,Housing Revenue Account,Council Dwelling Adaptations,17-Jan-24,5105911341,Stannah Lift Services Ltd,2466
